Payment Date,Transaction Number,Net Amount,Supplier (Beneficiary) Name,Local Supplier Internal Reference,Directorate / Service Where Expenditure Incurred,Service Category Label,Service Category URI,SeRCOP Expenditure Category,SeRCOP Expenditure Code,Purpose of Spend,SeRCOP Detailed Expenditure Code,Capital/Revenue,Procurement Classification
01/09/2017,1491823,360.00,BOOTS UK LTD,383616,"Health, Education, Care and Safeguarding",Public Health,112,Supplies and Services,504,Miscellaneous Expenses,5034,Revenue,00.DOCTORS/MEDICAL FEES
01/09/2017,1491824,600.00,BOOTS UK LTD,383616,"Health, Education, Care and Safeguarding",Public Health,112,Supplies and Services,504,Miscellaneous Expenses,5034,Revenue,00.DOCTORS/MEDICAL FEES
01/09/2017,1491825,300.00,BOOTS UK LTD,383616,"Health, Education, Care and Safeguarding",Public Health,112,Supplies and Services,504,Miscellaneous Expenses,5034,Revenue,00.DOCTORS/MEDICAL FEES
01/09/2017,1491830,870.00,GILL & SCHOFIELD PHARMACEUTICAL CHEMISTS LTD,391264,"Health, Education, Care and Safeguarding",Public Health,112,Supplies and Services,504,Miscellaneous Expenses,5034,Revenue,PUB HEALTH.PUBLIC HEALTH
01/09/2017,1491833,269.00,GENERAL BACS PAYMENTS - BSS ONLY,381148,Central Items,Holding A/C,N/A,Control Accounts,N/A,Control Accounts,N/A,Revenue,00.NON INFLUENCIBLE
01/09/2017,1491836,300.00,HOMECARE REFUNDS - BSS ONLY,384082,Housing Revenue Account,Housing Revenue Account,N/A,Supplies and Services,504,Miscellaneous Expenses,5034,Revenue,NON INDIVIDUAL
01/09/2017,1491837,300.00,HOMECARE REFUNDS - BSS ONLY,384082,Housing Revenue Account,Housing Revenue Account,N/A,Supplies and Services,504,Miscellaneous Expenses,5034,Revenue,NON INDIVIDUAL
01/09/2017,1491838,1000.00,HOMECARE REFUNDS - BSS ONLY,384082,Housing Revenue Account,Housing Revenue Account,N/A,Supplies and Services,504,Miscellaneous Expenses,5034,Revenue,NON INDIVIDUAL
01/09/2017,1491842,2000.00,PREPAID FINANCIAL SERVICES LIMITED,395003,"Health, Education, Care and Safeguarding",Adult Social Care,101,Third Party Payments,505,Voluntary Associations,5040,Revenue,09.FINANCIAL SERVICES
01/09/2017,1491843,12660.00,A SIGNIFICANT OTHER LTD,395369,"Health, Education, Care and Safeguarding",Children's & Education Services,103,Third Party Payments,505,Private Contractors,5042,Revenue,CHILDCARE
01/09/2017,1491843,12660.00,A SIGNIFICANT OTHER LTD,395369,"Health, Education, Care and Safeguarding",Children's & Education Services,103,Third Party Payments,505,Private Contractors,5042,Revenue,CHILDCARE
01/09/2017,1491843,14960.00,A SIGNIFICANT OTHER LTD,395369,"Health, Education, Care and Safeguarding",Children's & Education Services,103,Third Party Payments,505,Private Contractors,5042,Revenue,CHILDCARE
01/09/2017,1491847,250.00,THE LINKS ART GALLERY,394845,Capital,Capital,Capital,Capital Expenditure,Capital,Capital Expenditure,Capital,Capital,FINANCE RENTS
01/09/2017,1491854,607.35,DE LAGE LANDEN LEASING LIMITED,392448,Central Items,Central Services,102,Capital,Capital,Capital,Capital,Revenue,01.LIFT MAINTENANCE
01/09/2017,1491854,780.41,DE LAGE LANDEN LEASING LIMITED,392448,Central Items,Central Services,102,Capital,Capital,Capital,Capital,Revenue,01.LIFT MAINTENANCE
01/09/2017,1491854,817.73,DE LAGE LANDEN LEASING LIMITED,392448,Central Items,Central Services,102,Capital,Capital,Capital,Capital,Revenue,01.LIFT MAINTENANCE
01/09/2017,1491854,4713.10,DE LAGE LANDEN LEASING LIMITED,392448,Central Items,Central Services,102,Capital,Capital,Capital,Capital,Revenue,01.LIFT MAINTENANCE
01/09/2017,1491855,2912.59,NEPRO LIMITED,392147,Capital,Capital,Capital,Third Party Payments,505,Private Contractors,5042,Capital,18.CONSULTANTS FEES
01/09/2017,1491855,9603.67,NEPRO LIMITED,392147,Capital,Capital,Capital,Third Party Payments,505,Private Contractors,5042,Capital,18.CONSULTANTS FEES
01/09/2017,1491857,-648.90,NORTHERN ELEVATOR LTD,384491,Central Items,Holding A/C,N/A,Supplies and Services,504,Miscellaneous Expenses,5034,Revenue,01.LIFT MAINTENANCE
01/09/2017,1491857,1081.50,NORTHERN ELEVATOR LTD,384491,Housing Revenue Account,Housing Services,108,Third Party Payments,505,Private Contractors,5042,Revenue,01.LIFT MAINTENANCE
01/09/2017,1491857,1081.50,NORTHERN ELEVATOR LTD,384491,Housing Revenue Account,Housing Services,108,Third Party Payments,505,Private Contractors,5042,Revenue,01.LIFT MAINTENANCE
01/09/2017,1491857,1081.50,NORTHERN ELEVATOR LTD,384491,Housing Revenue Account,Housing Services,108,Third Party Payments,505,Private Contractors,5042,Revenue,01.LIFT MAINTENANCE
01/09/2017,1491861,270.00,BOOTS UK LTD,383616,"Health, Education, Care and Safeguarding",Public Health,112,Supplies and Services,504,Miscellaneous Expenses,5034,Revenue,00.DOCTORS/MEDICAL FEES
01/09/2017,1491862,299.31,TMP (UK) LTD,386724,"Environment, Housing & Leisure",Planning Services,110,Supplies and Services,504,"Printing, Stationery and General Office Expenses",5026,Revenue,16.ADVERTISING
01/09/2017,1491864,22.07,NHC NHS FOUNDATION TRUST,317869,Central Items,Obsolete Code Community,102,Third Party Payments,505,Private Contractors,5042,Revenue,PUB HEALTH.PUBLIC HEALTH
01/09/2017,1491864,22.53,NHC NHS FOUNDATION TRUST,317869,Central Items,Obsolete Code Community,102,Third Party Payments,505,Private Contractors,5042,Revenue,PUB HEALTH.PUBLIC HEALTH
01/09/2017,1491864,50.64,NHC NHS FOUNDATION TRUST,317869,Central Items,Obsolete Code Community,102,Third Party Payments,505,Private Contractors,5042,Revenue,PUB HEALTH.PUBLIC HEALTH
01/09/2017,1491864,61.62,NHC NHS FOUNDATION TRUST,317869,Central Items,Obsolete Code Community,102,Third Party Payments,505,Private Contractors,5042,Revenue,PUB HEALTH.PUBLIC HEALTH
01/09/2017,1491864,110.35,NHC NHS FOUNDATION TRUST,317869,Central Items,Obsolete Code Community,102,Third Party Payments,505,Private Contractors,5042,Revenue,PUB HEALTH.PUBLIC HEALTH
01/09/2017,1491864,110.35,NHC NHS FOUNDATION TRUST,317869,Central Items,Obsolete Code Community,102,Third Party Payments,505,Private Contractors,5042,Revenue,PUB HEALTH.PUBLIC HEALTH
01/09/2017,1491864,112.68,NHC NHS FOUNDATION TRUST,317869,Central Items,Obsolete Code Community,102,Third Party Payments,505,Private Contractors,5042,Revenue,PUB HEALTH.PUBLIC HEALTH
01/09/2017,1491864,112.68,NHC NHS FOUNDATION TRUST,317869,Central Items,Obsolete Code Community,102,Third Party Payments,505,Private Contractors,5042,Revenue,PUB HEALTH.PUBLIC HEALTH
01/09/2017,1491864,258.12,NHC NHS FOUNDATION TRUST,317869,Central Items,Obsolete Code Community,102,Third Party Payments,505,Private Contractors,5042,Revenue,PUB HEALTH.PUBLIC HEALTH
01/09/2017,1491864,838.20,NHC NHS FOUNDATION TRUST,317869,Central Items,Obsolete Code Community,102,Third Party Payments,505,Private Contractors,5042,Revenue,PUB HEALTH.PUBLIC HEALTH
01/09/2017,1491864,1290.58,NHC NHS FOUNDATION TRUST,317869,Central Items,Obsolete Code Community,102,Third Party Payments,505,Private Contractors,5042,Revenue,PUB HEALTH.PUBLIC HEALTH
01/09/2017,1491864,1290.58,NHC NHS FOUNDATION TRUST,317869,Central Items,Obsolete Code Community,102,Third Party Payments,505,Private Contractors,5042,Revenue,PUB HEALTH.PUBLIC HEALTH
01/09/2017,1491868,30485.02,GATESHEAD COUNCIL,231440,Commissioning & Investment,Children's & Education Services,103,Third Party Payments,505,Other Local Authorities,5037,Revenue,00.PUBLIC SECTOR
01/09/2017,1491870,400.00,THE TRUSTEES OF THE DIOCESE OF HEXHAM & NEWCASTLE,004510,Commissioning & Investment,Children's & Education Services,103,Premises-Related Expenditure,502,Rents,5007,Revenue,16.REAL ESTATE
01/09/2017,1491873,390.00,SHIREMOOR PHARMACY,390745,"Health, Education, Care and Safeguarding",Public Health,112,Supplies and Services,504,Miscellaneous Expenses,5034,Revenue,00.DOCTORS/MEDICAL FEES
01/09/2017,1491874,450.00,Redacted Personal Data,390704,"Health, Education, Care and Safeguarding",Adult Social Care,101,Supplies and Services,504,Expenses,5030,Revenue,16.REAL ESTATE
01/09/2017,1491877,390.00,NEWLINE PHARMACY LTD,390491,"Health, Education, Care and Safeguarding",Public Health,112,Supplies and Services,504,Miscellaneous Expenses,5034,Revenue,00.DOCTORS/MEDICAL FEES
01/09/2017,1491879,420.00,ASHCHEM LTD T/A ASHCHEM CHEMISTS,390289,"Health, Education, Care and Safeguarding",Public Health,112,Supplies and Services,504,Miscellaneous Expenses,5034,Revenue,PUB HEALTH.PUBLIC HEALTH
01/09/2017,1491885,480.00,LLOYDS PHARMACY LIMITED,327974,"Health, Education, Care and Safeguarding",Public Health,112,Supplies and Services,504,Miscellaneous Expenses,5034,Revenue,PUB HEALTH.PUBLIC HEALTH
01/09/2017,1491886,330.00,LLOYDS PHARMACY LIMITED,327974,"Health, Education, Care and Safeguarding",Public Health,112,Supplies and Services,504,Miscellaneous Expenses,5034,Revenue,PUB HEALTH.PUBLIC HEALTH
01/09/2017,1491889,450.00,FAIRMAN CHEMISTS LTD,309306,"Health, Education, Care and Safeguarding",Public Health,112,Supplies and Services,504,Miscellaneous Expenses,5034,Revenue,PUB HEALTH.PUBLIC HEALTH
01/09/2017,1491890,2130.00,FAIRMAN CHEMISTS LTD,309306,"Health, Education, Care and Safeguarding",Public Health,112,Supplies and Services,504,Miscellaneous Expenses,5034,Revenue,PUB HEALTH.PUBLIC HEALTH
04/09/2017,18542,644.51,COUNCIL TAX REFUND,299993,General Fund Financing,Holding A/C,N/A,Excluded from General Fund,N/A,Collection Fund,N/A,Revenue,00.NON INFLUENCIBLE
04/09/2017,18552,916.25,COUNCIL TAX REFUND,299993,General Fund Financing,Holding A/C,N/A,Excluded from General Fund,N/A,Collection Fund,N/A,Revenue,00.NON INFLUENCIBLE
04/09/2017,1491894,1236.07,HOUSING BENEFIT,299992,Finance,Housing Services,108,Transfer Payments,506,Housing Benefits,5048,Revenue,00.NON INFLUENCIBLE
04/09/2017,1491896,908.09,HOUSING BENEFIT,299992,Finance,Housing Services,108,Transfer Payments,506,Housing Benefits,5048,Revenue,00.NON INFLUENCIBLE
04/09/2017,1491897,363.60,HOUSING BENEFIT,299992,Finance,Housing Services,108,Transfer Payments,506,Housing Benefits,5048,Revenue,00.NON INFLUENCIBLE
04/09/2017,1491898,263.08,HOUSING BENEFIT,299992,Finance,Housing Services,108,Transfer Payments,506,Housing Benefits,5048,Revenue,00.NON INFLUENCIBLE
04/09/2017,1491904,252.09,HOUSING BENEFIT,299992,Finance,Housing Services,108,Transfer Payments,506,Housing Benefits,5048,Revenue,00.NON INFLUENCIBLE
04/09/2017,1491905,454.50,HOUSING BENEFIT,299992,Finance,Housing Services,108,Transfer Payments,506,Housing Benefits,5048,Revenue,00.NON INFLUENCIBLE
04/09/2017,1491906,277.38,HOUSING BENEFIT,299992,Finance,Housing Services,108,Transfer Payments,506,Housing Benefits,5048,Revenue,00.NON INFLUENCIBLE
04/09/2017,1491908,315.18,HOUSING BENEFIT,299992,Finance,Housing Services,108,Transfer Payments,506,Housing Benefits,5048,Revenue,00.NON INFLUENCIBLE
04/09/2017,1491909,1636.20,HOUSING BENEFIT,299992,Finance,Housing Services,108,Transfer Payments,506,Housing Benefits,5048,Revenue,00.NON INFLUENCIBLE
04/09/2017,1491914,932.04,HOUSING BENEFIT,299992,Finance,Housing Services,108,Transfer Payments,506,Housing Benefits,5048,Revenue,00.NON INFLUENCIBLE
04/09/2017,1491917,423.96,HOUSING BENEFIT,299992,Finance,Housing Services,108,Transfer Payments,506,Housing Benefits,5048,Revenue,00.NON INFLUENCIBLE
04/09/2017,1491918,1926.71,HOUSING BENEFIT,299992,Finance,Housing Services,108,Transfer Payments,506,Housing Benefits,5048,Revenue,00.NON INFLUENCIBLE
04/09/2017,1491920,470.41,HOUSING BENEFIT,299992,Finance,Housing Services,108,Transfer Payments,506,Housing Benefits,5048,Revenue,00.NON INFLUENCIBLE
04/09/2017,1491923,352.08,HOUSING BENEFIT,299992,Finance,Housing Services,108,Transfer Payments,506,Housing Benefits,5048,Revenue,00.NON INFLUENCIBLE
04/09/2017,1491924,6443.71,HOUSING BENEFIT,299992,Finance,Housing Services,108,Transfer Payments,506,Housing Benefits,5048,Revenue,00.NON INFLUENCIBLE
04/09/2017,1491927,307.80,HOUSING BENEFIT,299992,Finance,Housing Services,108,Transfer Payments,506,Housing Benefits,5048,Revenue,00.NON INFLUENCIBLE
04/09/2017,1491932,375.64,HOUSING BENEFIT,299992,Finance,Housing Services,108,Transfer Payments,506,Housing Benefits,5048,Revenue,00.NON INFLUENCIBLE
04/09/2017,1491933,513.90,HOUSING BENEFIT,299992,Finance,Housing Services,108,Transfer Payments,506,Housing Benefits,5048,Revenue,00.NON INFLUENCIBLE
04/09/2017,1491936,310.83,SWIFT - PREPAID CARDS,299980,"Health, Education, Care and Safeguarding",Adult Social Care,101,Third Party Payments,505,Other Establishments,5041,Revenue,22.SUPPORT SERVICES
04/09/2017,1491940,490.91,SWIFT - PREPAID CARDS,299980,"Health, Education, Care and Safeguarding",Adult Social Care,101,Third Party Payments,505,Other Establishments,5041,Revenue,22.SUPPORT SERVICES
04/09/2017,1491945,301.62,SWIFT - PREPAID CARDS,299980,"Health, Education, Care and Safeguarding",Adult Social Care,101,Third Party Payments,505,Other Establishments,5041,Revenue,22.SUPPORT SERVICES
04/09/2017,1491946,257.59,SWIFT - PREPAID CARDS,299980,"Health, Education, Care and Safeguarding",Adult Social Care,101,Third Party Payments,505,Other Establishments,5041,Revenue,22.SUPPORT SERVICES
04/09/2017,1491950,650.00,SWIFT - PREPAID CARDS,299980,"Health, Education, Care and Safeguarding",Adult Social Care,101,Third Party Payments,505,Other Establishments,5041,Revenue,22.SUPPORT SERVICES
04/09/2017,1491954,342.72,SWIFT - PREPAID CARDS,299980,"Health, Education, Care and Safeguarding",Adult Social Care,101,Third Party Payments,505,Other Establishments,5041,Revenue,22.SUPPORT SERVICES
04/09/2017,1491957,954.57,SWIFT - PREPAID CARDS,299980,"Health, Education, Care and Safeguarding",Adult Social Care,101,Third Party Payments,505,Other Establishments,5041,Revenue,22.SUPPORT SERVICES
04/09/2017,1491962,586.92,SWIFT - PREPAID CARDS,299980,"Health, Education, Care and Safeguarding",Adult Social Care,101,Third Party Payments,505,Other Establishments,5041,Revenue,22.SUPPORT SERVICES
04/09/2017,1491965,259.92,SWIFT - PREPAID CARDS,299980,"Health, Education, Care and Safeguarding",Adult Social Care,101,Third Party Payments,505,Other Establishments,5041,Revenue,22.SUPPORT SERVICES
04/09/2017,1491966,321.25,SWIFT - PREPAID CARDS,299980,"Health, Education, Care and Safeguarding",Adult Social Care,101,Third Party Payments,505,Other Establishments,5041,Revenue,22.SUPPORT SERVICES
04/09/2017,1491970,332.01,SWIFT - PREPAID CARDS,299980,"Health, Education, Care and Safeguarding",Adult Social Care,101,Third Party Payments,505,Other Establishments,5041,Revenue,22.SUPPORT SERVICES
04/09/2017,1491973,311.61,SWIFT - PREPAID CARDS,299980,"Health, Education, Care and Safeguarding",Adult Social Care,101,Third Party Payments,505,Other Establishments,5041,Revenue,22.SUPPORT SERVICES
04/09/2017,1491977,309.00,SWIFT - PREPAID CARDS,299980,"Health, Education, Care and Safeguarding",Adult Social Care,101,Third Party Payments,505,Other Establishments,5041,Revenue,22.SUPPORT SERVICES
04/09/2017,1491978,538.64,SWIFT - PREPAID CARDS,299980,"Health, Education, Care and Safeguarding",Adult Social Care,101,Third Party Payments,505,Other Establishments,5041,Revenue,22.SUPPORT SERVICES
04/09/2017,1491980,278.75,SWIFT - PREPAID CARDS,299980,"Health, Education, Care and Safeguarding",Adult Social Care,101,Third Party Payments,505,Other Establishments,5041,Revenue,22.SUPPORT SERVICES
04/09/2017,1491983,271.16,SWIFT - PREPAID CARDS,299980,"Health, Education, Care and Safeguarding",Adult Social Care,101,Third Party Payments,505,Other Establishments,5041,Revenue,22.SUPPORT SERVICES
04/09/2017,1491984,922.46,SWIFT - PREPAID CARDS,299980,"Health, Education, Care and Safeguarding",Adult Social Care,101,Third Party Payments,505,Other Establishments,5041,Revenue,22.SUPPORT SERVICES
04/09/2017,1491985,280.00,SWIFT - PREPAID CARDS,299980,"Health, Education, Care and Safeguarding",Adult Social Care,101,Third Party Payments,505,Other Establishments,5041,Revenue,22.SUPPORT SERVICES
04/09/2017,1491992,2219.25,SWIFT - PREPAID CARDS,299980,"Health, Education, Care and Safeguarding",Adult Social Care,101,Third Party Payments,505,Other Establishments,5041,Revenue,22.SUPPORT SERVICES
04/09/2017,1492001,442.68,SWIFT - PREPAID CARDS,299980,"Health, Education, Care and Safeguarding",Adult Social Care,101,Third Party Payments,505,Other Establishments,5041,Revenue,22.SUPPORT SERVICES
04/09/2017,1492007,264.60,SWIFT - PREPAID CARDS,299980,"Health, Education, Care and Safeguarding",Adult Social Care,101,Third Party Payments,505,Other Establishments,5041,Revenue,22.SUPPORT SERVICES
04/09/2017,1492008,415.50,SWIFT - PREPAID CARDS,299980,"Health, Education, Care and Safeguarding",Adult Social Care,101,Third Party Payments,505,Other Establishments,5041,Revenue,22.SUPPORT SERVICES
04/09/2017,1492011,267.78,SWIFT - PREPAID CARDS,299980,"Health, Education, Care and Safeguarding",Adult Social Care,101,Third Party Payments,505,Other Establishments,5041,Revenue,22.SUPPORT SERVICES
04/09/2017,1492016,287.00,SWIFT - PREPAID CARDS,299980,"Health, Education, Care and Safeguarding",Adult Social Care,101,Third Party Payments,505,Other Establishments,5041,Revenue,22.SUPPORT SERVICES
04/09/2017,1492017,1075.20,SWIFT - PREPAID CARDS,299980,"Health, Education, Care and Safeguarding",Adult Social Care,101,Third Party Payments,505,Other Establishments,5041,Revenue,22.SUPPORT SERVICES
04/09/2017,1492018,1716.53,SWIFT - PREPAID CARDS,299980,"Health, Education, Care and Safeguarding",Adult Social Care,101,Third Party Payments,505,Other Establishments,5041,Revenue,22.SUPPORT SERVICES
04/09/2017,1492023,261.20,SWIFT - PREPAID CARDS,299980,"Health, Education, Care and Safeguarding",Adult Social Care,101,Third Party Payments,505,Other Establishments,5041,Revenue,22.SUPPORT SERVICES
04/09/2017,1492027,727.98,SWIFT - PREPAID CARDS,299980,"Health, Education, Care and Safeguarding",Adult Social Care,101,Third Party Payments,505,Other Establishments,5041,Revenue,22.SUPPORT SERVICES
04/09/2017,1492029,668.15,SWIFT - PREPAID CARDS,299980,"Health, Education, Care and Safeguarding",Adult Social Care,101,Third Party Payments,505,Other Establishments,5041,Revenue,22.SUPPORT SERVICES
04/09/2017,1492032,1770.72,SWIFT - PREPAID CARDS,299980,"Health, Education, Care and Safeguarding",Adult Social Care,101,Third Party Payments,505,Other Establishments,5041,Revenue,22.SUPPORT SERVICES
04/09/2017,1492036,627.13,SWIFT - PREPAID CARDS,299980,"Health, Education, Care and Safeguarding",Adult Social Care,101,Third Party Payments,505,Other Establishments,5041,Revenue,22.SUPPORT SERVICES
04/09/2017,1492037,383.82,SWIFT - PREPAID CARDS,299980,"Health, Education, Care and Safeguarding",Adult Social Care,101,Third Party Payments,505,Other Establishments,5041,Revenue,22.SUPPORT SERVICES
04/09/2017,1492038,359.66,SWIFT - PREPAID CARDS,299980,"Health, Education, Care and Safeguarding",Adult Social Care,101,Third Party Payments,505,Other Establishments,5041,Revenue,22.SUPPORT SERVICES
04/09/2017,1492039,645.12,SWIFT - PREPAID CARDS,299980,"Health, Education, Care and Safeguarding",Adult Social Care,101,Third Party Payments,505,Other Establishments,5041,Revenue,22.SUPPORT SERVICES
04/09/2017,1492040,405.79,SWIFT - PREPAID CARDS,299980,"Health, Education, Care and Safeguarding",Adult Social Care,101,Third Party Payments,505,Other Establishments,5041,Revenue,22.SUPPORT SERVICES
04/09/2017,1492041,1008.71,SWIFT - PREPAID CARDS,299980,"Health, Education, Care and Safeguarding",Adult Social Care,101,Third Party Payments,505,Other Establishments,5041,Revenue,22.SUPPORT SERVICES
04/09/2017,1492043,267.19,SWIFT - PREPAID CARDS,299980,"Health, Education, Care and Safeguarding",Adult Social Care,101,Third Party Payments,505,Other Establishments,5041,Revenue,22.SUPPORT SERVICES
04/09/2017,1492046,823.47,SWIFT - PREPAID CARDS,299980,"Health, Education, Care and Safeguarding",Adult Social Care,101,Third Party Payments,505,Other Establishments,5041,Revenue,22.SUPPORT SERVICES
04/09/2017,1492053,1261.24,SWIFT - PREPAID CARDS,299980,"Health, Education, Care and Safeguarding",Adult Social Care,101,Third Party Payments,505,Other Establishments,5041,Revenue,22.SUPPORT SERVICES
04/09/2017,1492054,349.57,SWIFT - PREPAID CARDS,299980,"Health, Education, Care and Safeguarding",Adult Social Care,101,Third Party Payments,505,Other Establishments,5041,Revenue,22.SUPPORT SERVICES
04/09/2017,1492055,378.44,SWIFT - PREPAID CARDS,299980,"Health, Education, Care and Safeguarding",Adult Social Care,101,Third Party Payments,505,Other Establishments,5041,Revenue,22.SUPPORT SERVICES
04/09/2017,1492059,497.93,SWIFT - PREPAID CARDS,299980,"Health, Education, Care and Safeguarding",Adult Social Care,101,Third Party Payments,505,Other Establishments,5041,Revenue,22.SUPPORT SERVICES
04/09/2017,1492065,884.20,SWIFT - PREPAID CARDS,299980,"Health, Education, Care and Safeguarding",Adult Social Care,101,Third Party Payments,505,Other Establishments,5041,Revenue,22.SUPPORT SERVICES
04/09/2017,1492066,254.88,SWIFT - PREPAID CARDS,299980,"Health, Education, Care and Safeguarding",Adult Social Care,101,Third Party Payments,505,Other Establishments,5041,Revenue,22.SUPPORT SERVICES
04/09/2017,1492073,691.08,SWIFT - PREPAID CARDS,299980,"Health, Education, Care and Safeguarding",Adult Social Care,101,Third Party Payments,505,Other Establishments,5041,Revenue,22.SUPPORT SERVICES
04/09/2017,1492082,2359.40,SWIFT - PREPAID CARDS,299980,"Health, Education, Care and Safeguarding",Adult Social Care,101,Third Party Payments,505,Other Establishments,5041,Revenue,22.SUPPORT SERVICES
04/09/2017,1492085,252.80,SWIFT - PREPAID CARDS,299980,"Health, Education, Care and Safeguarding",Adult Social Care,101,Third Party Payments,505,Other Establishments,5041,Revenue,22.SUPPORT SERVICES
04/09/2017,1492095,1054.00,SWIFT - PREPAID CARDS,299980,"Health, Education, Care and Safeguarding",Adult Social Care,101,Third Party Payments,505,Other Establishments,5041,Revenue,22.SUPPORT SERVICES
04/09/2017,1492096,329.46,SWIFT - PREPAID CARDS,299980,"Health, Education, Care and Safeguarding",Adult Social Care,101,Third Party Payments,505,Other Establishments,5041,Revenue,22.SUPPORT SERVICES
04/09/2017,1492105,267.72,SWIFT - PREPAID CARDS,299980,"Health, Education, Care and Safeguarding",Adult Social Care,101,Third Party Payments,505,Other Establishments,5041,Revenue,22.SUPPORT SERVICES
04/09/2017,1492109,343.23,SWIFT - PREPAID CARDS,299980,"Health, Education, Care and Safeguarding",Adult Social Care,101,Third Party Payments,505,Other Establishments,5041,Revenue,22.SUPPORT SERVICES
04/09/2017,1492114,2109.35,SWIFT - PREPAID CARDS,299980,"Health, Education, Care and Safeguarding",Adult Social Care,101,Third Party Payments,505,Other Establishments,5041,Revenue,22.SUPPORT SERVICES
04/09/2017,1492121,508.00,SWIFT - PREPAID CARDS,299980,"Health, Education, Care and Safeguarding",Adult Social Care,101,Third Party Payments,505,Other Establishments,5041,Revenue,22.SUPPORT SERVICES
04/09/2017,1492122,759.50,SWIFT - PREPAID CARDS,299980,"Health, Education, Care and Safeguarding",Adult Social Care,101,Third Party Payments,505,Other Establishments,5041,Revenue,22.SUPPORT SERVICES
04/09/2017,1492125,457.50,SWIFT - PREPAID CARDS,299980,"Health, Education, Care and Safeguarding",Adult Social Care,101,Third Party Payments,505,Other Establishments,5041,Revenue,22.SUPPORT SERVICES
04/09/2017,1492131,253.45,SWIFT - PREPAID CARDS,299980,"Health, Education, Care and Safeguarding",Adult Social Care,101,Third Party Payments,505,Other Establishments,5041,Revenue,22.SUPPORT SERVICES
04/09/2017,1492136,1771.17,SWIFT - PREPAID CARDS,299980,"Health, Education, Care and Safeguarding",Adult Social Care,101,Third Party Payments,505,Other Establishments,5041,Revenue,22.SUPPORT SERVICES
04/09/2017,1492137,314.14,SWIFT - PREPAID CARDS,299980,"Health, Education, Care and Safeguarding",Adult Social Care,101,Third Party Payments,505,Other Establishments,5041,Revenue,22.SUPPORT SERVICES
04/09/2017,1492146,1770.20,SWIFT - PREPAID CARDS,299980,"Health, Education, Care and Safeguarding",Adult Social Care,101,Third Party Payments,505,Other Establishments,5041,Revenue,22.SUPPORT SERVICES
04/09/2017,1492152,940.20,SWIFT - PREPAID CARDS,299980,"Health, Education, Care and Safeguarding",Adult Social Care,101,Third Party Payments,505,Other Establishments,5041,Revenue,22.SUPPORT SERVICES
04/09/2017,1492159,1099.79,SWIFT - PREPAID CARDS,299980,"Health, Education, Care and Safeguarding",Adult Social Care,101,Third Party Payments,505,Other Establishments,5041,Revenue,22.SUPPORT SERVICES
04/09/2017,1492160,916.50,SWIFT - PREPAID CARDS,299980,"Health, Education, Care and Safeguarding",Adult Social Care,101,Third Party Payments,505,Other Establishments,5041,Revenue,22.SUPPORT SERVICES
04/09/2017,1492164,737.00,SWIFT - PREPAID CARDS,299980,"Health, Education, Care and Safeguarding",Adult Social Care,101,Third Party Payments,505,Other Establishments,5041,Revenue,22.SUPPORT SERVICES
04/09/2017,1492170,565.11,SWIFT - PREPAID CARDS,299980,"Health, Education, Care and Safeguarding",Adult Social Care,101,Third Party Payments,505,Other Establishments,5041,Revenue,22.SUPPORT SERVICES
04/09/2017,1492171,324.44,SWIFT - PREPAID CARDS,299980,"Health, Education, Care and Safeguarding",Adult Social Care,101,Third Party Payments,505,Other Establishments,5041,Revenue,22.SUPPORT SERVICES
04/09/2017,1492172,329.00,SWIFT - PREPAID CARDS,299980,"Health, Education, Care and Safeguarding",Adult Social Care,101,Third Party Payments,505,Other Establishments,5041,Revenue,22.SUPPORT SERVICES
04/09/2017,1492173,735.00,SWIFT - PREPAID CARDS,299980,"Health, Education, Care and Safeguarding",Adult Social Care,101,Third Party Payments,505,Other Establishments,5041,Revenue,22.SUPPORT SERVICES
04/09/2017,1492174,1842.15,SWIFT - PREPAID CARDS,299980,"Health, Education, Care and Safeguarding",Adult Social Care,101,Third Party Payments,505,Other Establishments,5041,Revenue,22.SUPPORT SERVICES
04/09/2017,1492184,1638.99,SWIFT - PREPAID CARDS,299980,"Health, Education, Care and Safeguarding",Adult Social Care,101,Third Party Payments,505,Other Establishments,5041,Revenue,22.SUPPORT SERVICES
04/09/2017,1492189,295.12,Redacted Personal Data,329504,"Health, Education, Care and Safeguarding",Adult Social Care,101,Third Party Payments,505,Other Establishments,5041,Revenue,NON INDIVIDUAL
04/09/2017,1492192,561.12,FOUR SEASONS HEALTH CARE,371477,"Health, Education, Care and Safeguarding",Adult Social Care,101,Third Party Payments,505,Private Contractors,5042,Revenue,22.RESIDENTIAL
04/09/2017,1492192,561.12,FOUR SEASONS HEALTH CARE,371477,"Health, Education, Care and Safeguarding",Adult Social Care,101,Third Party Payments,505,Private Contractors,5042,Revenue,22.RESIDENTIAL
04/09/2017,1492192,561.12,FOUR SEASONS HEALTH CARE,371477,"Health, Education, Care and Safeguarding",Adult Social Care,101,Third Party Payments,505,Private Contractors,5042,Revenue,22.RESIDENTIAL
04/09/2017,1492192,561.12,FOUR SEASONS HEALTH CARE,371477,"Health, Education, Care and Safeguarding",Adult Social Care,101,Third Party Payments,505,Private Contractors,5042,Revenue,22.RESIDENTIAL
04/09/2017,1492192,689.29,FOUR SEASONS HEALTH CARE,371477,"Health, Education, Care and Safeguarding",Public Health,112,Third Party Payments,505,Other Establishments,5041,Revenue,22.RESIDENTIAL
04/09/2017,1492192,723.91,FOUR SEASONS HEALTH CARE,371477,"Health, Education, Care and Safeguarding",Public Health,112,Third Party Payments,505,Other Establishments,5041,Revenue,22.RESIDENTIAL
04/09/2017,1492193,259.00,NEW BEGINNINGS (N.E.) LTD,337005,"Health, Education, Care and Safeguarding",Adult Social Care,101,Third Party Payments,505,Private Contractors,5042,Revenue,22.RESIDENTIAL
04/09/2017,1492193,730.28,NEW BEGINNINGS (N.E.) LTD,337005,"Health, Education, Care and Safeguarding",Adult Social Care,101,Third Party Payments,505,Other Establishments,5041,Revenue,22.RESIDENTIAL
04/09/2017,1492193,730.28,NEW BEGINNINGS (N.E.) LTD,337005,"Health, Education, Care and Safeguarding",Adult Social Care,101,Third Party Payments,505,Other Establishments,5041,Revenue,22.RESIDENTIAL
04/09/2017,1492193,772.36,NEW BEGINNINGS (N.E.) LTD,337005,"Health, Education, Care and Safeguarding",Adult Social Care,101,Third Party Payments,505,Private Contractors,5042,Revenue,22.RESIDENTIAL
04/09/2017,1492193,836.98,NEW BEGINNINGS (N.E.) LTD,337005,"Health, Education, Care and Safeguarding",Adult Social Care,101,Third Party Payments,505,Private Contractors,5042,Revenue,22.RESIDENTIAL
04/09/2017,1492193,836.98,NEW BEGINNINGS (N.E.) LTD,337005,"Health, Education, Care and Safeguarding",Adult Social Care,101,Third Party Payments,505,Private Contractors,5042,Revenue,22.RESIDENTIAL
04/09/2017,1492193,863.01,NEW BEGINNINGS (N.E.) LTD,337005,"Health, Education, Care and Safeguarding",Adult Social Care,101,Third Party Payments,505,Private Contractors,5042,Revenue,22.RESIDENTIAL
04/09/2017,1492193,940.71,NEW BEGINNINGS (N.E.) LTD,337005,"Health, Education, Care and Safeguarding",Adult Social Care,101,Third Party Payments,505,Private Contractors,5042,Revenue,22.RESIDENTIAL
04/09/2017,1492193,1419.86,NEW BEGINNINGS (N.E.) LTD,337005,"Health, Education, Care and Safeguarding",Adult Social Care,101,Third Party Payments,505,Private Contractors,5042,Revenue,22.RESIDENTIAL
04/09/2017,1492193,1833.30,NEW BEGINNINGS (N.E.) LTD,337005,"Health, Education, Care and Safeguarding",Adult Social Care,101,Third Party Payments,505,Other Establishments,5041,Revenue,22.RESIDENTIAL
04/09/2017,1492193,1833.30,NEW BEGINNINGS (N.E.) LTD,337005,"Health, Education, Care and Safeguarding",Adult Social Care,101,Third Party Payments,505,Private Contractors,5042,Revenue,22.RESIDENTIAL
04/09/2017,1492193,2021.60,NEW BEGINNINGS (N.E.) LTD,337005,"Health, Education, Care and Safeguarding",Adult Social Care,101,Third Party Payments,505,Other Establishments,5041,Revenue,22.RESIDENTIAL
04/09/2017,1492193,2478.90,NEW BEGINNINGS (N.E.) LTD,337005,"Health, Education, Care and Safeguarding",Adult Social Care,101,Third Party Payments,505,Private Contractors,5042,Revenue,22.RESIDENTIAL
04/09/2017,1492193,3178.30,NEW BEGINNINGS (N.E.) LTD,337005,"Health, Education, Care and Safeguarding",Adult Social Care,101,Third Party Payments,505,Other Establishments,5041,Revenue,22.RESIDENTIAL
04/09/2017,1492193,4092.90,NEW BEGINNINGS (N.E.) LTD,337005,"Health, Education, Care and Safeguarding",Adult Social Care,101,Third Party Payments,505,Private Contractors,5042,Revenue,22.RESIDENTIAL
04/09/2017,1492193,4092.90,NEW BEGINNINGS (N.E.) LTD,337005,"Health, Education, Care and Safeguarding",Adult Social Care,101,Third Party Payments,505,Private Contractors,5042,Revenue,22.RESIDENTIAL
04/09/2017,1492193,4119.80,NEW BEGINNINGS (N.E.) LTD,337005,"Health, Education, Care and Safeguarding",Public Health,112,Third Party Payments,505,Private Contractors,5042,Revenue,22.RESIDENTIAL
04/09/2017,1492194,360.36,Redacted Personal Data,388984,"Health, Education, Care and Safeguarding",Adult Social Care,101,Third Party Payments,505,Other Establishments,5041,Revenue,00.NON INFLUENCIBLE
04/09/2017,1492195,301.20,Redacted Personal Data,388962,"Health, Education, Care and Safeguarding",Adult Social Care,101,Third Party Payments,505,Other Establishments,5041,Revenue,00.NON INFLUENCIBLE
04/09/2017,1492196,1411.75,Redacted Personal Data,388380,"Health, Education, Care and Safeguarding",Adult Social Care,101,Third Party Payments,505,Other Establishments,5041,Revenue,00.NON INFLUENCIBLE
04/09/2017,1492197,1599.00,VOYAGE LIMITED,387358,"Health, Education, Care and Safeguarding",Adult Social Care,101,Third Party Payments,505,Private Contractors,5042,Revenue,22.RESIDENTIAL
04/09/2017,1492198,-130.70,ASPIRE HEALTHCARE,375113,"Health, Education, Care and Safeguarding",Adult Social Care,101,Income,509,"Other Grants, Reimbursements & Contributions",5063,Revenue,22.RESIDENTIAL
04/09/2017,1492198,-130.70,ASPIRE HEALTHCARE,375113,"Health, Education, Care and Safeguarding",Adult Social Care,101,Income,509,"Other Grants, Reimbursements & Contributions",5063,Revenue,22.RESIDENTIAL
04/09/2017,1492198,-130.70,ASPIRE HEALTHCARE,375113,"Health, Education, Care and Safeguarding",Adult Social Care,101,Income,509,"Other Grants, Reimbursements & Contributions",5063,Revenue,22.RESIDENTIAL
04/09/2017,1492198,-130.70,ASPIRE HEALTHCARE,375113,"Health, Education, Care and Safeguarding",Adult Social Care,101,Income,509,"Other Grants, Reimbursements & Contributions",5063,Revenue,22.RESIDENTIAL
04/09/2017,1492198,-130.70,ASPIRE HEALTHCARE,375113,"Health, Education, Care and Safeguarding",Adult Social Care,101,Income,509,"Other Grants, Reimbursements & Contributions",5063,Revenue,22.RESIDENTIAL
04/09/2017,1492198,-130.70,ASPIRE HEALTHCARE,375113,"Health, Education, Care and Safeguarding",Adult Social Care,101,Income,509,"Other Grants, Reimbursements & Contributions",5063,Revenue,22.RESIDENTIAL
04/09/2017,1492198,-127.46,ASPIRE HEALTHCARE,375113,"Health, Education, Care and Safeguarding",Adult Social Care,101,Income,509,"Other Grants, Reimbursements & Contributions",5063,Revenue,22.RESIDENTIAL
04/09/2017,1492198,-100.15,ASPIRE HEALTHCARE,375113,"Health, Education, Care and Safeguarding",Adult Social Care,101,Income,509,"Other Grants, Reimbursements & Contributions",5063,Revenue,22.RESIDENTIAL
04/09/2017,1492198,-80.45,ASPIRE HEALTHCARE,375113,"Health, Education, Care and Safeguarding",Adult Social Care,101,Income,509,"Other Grants, Reimbursements & Contributions",5063,Revenue,22.RESIDENTIAL
04/09/2017,1492198,393.00,ASPIRE HEALTHCARE,375113,"Health, Education, Care and Safeguarding",Adult Social Care,101,Third Party Payments,505,Private Contractors,5042,Revenue,22.RESIDENTIAL
04/09/2017,1492198,393.00,ASPIRE HEALTHCARE,375113,"Health, Education, Care and Safeguarding",Adult Social Care,101,Third Party Payments,505,Private Contractors,5042,Revenue,22.RESIDENTIAL
04/09/2017,1492198,401.15,ASPIRE HEALTHCARE,375113,"Health, Education, Care and Safeguarding",Adult Social Care,101,Third Party Payments,505,Private Contractors,5042,Revenue,22.RESIDENTIAL
04/09/2017,1492198,450.34,ASPIRE HEALTHCARE,375113,"Health, Education, Care and Safeguarding",Adult Social Care,101,Third Party Payments,505,Private Contractors,5042,Revenue,22.RESIDENTIAL
04/09/2017,1492198,450.34,ASPIRE HEALTHCARE,375113,"Health, Education, Care and Safeguarding",Adult Social Care,101,Third Party Payments,505,Private Contractors,5042,Revenue,22.RESIDENTIAL
04/09/2017,1492198,450.34,ASPIRE HEALTHCARE,375113,"Health, Education, Care and Safeguarding",Adult Social Care,101,Third Party Payments,505,Private Contractors,5042,Revenue,22.RESIDENTIAL
04/09/2017,1492198,450.34,ASPIRE HEALTHCARE,375113,"Health, Education, Care and Safeguarding",Adult Social Care,101,Third Party Payments,505,Private Contractors,5042,Revenue,22.RESIDENTIAL
04/09/2017,1492198,450.34,ASPIRE HEALTHCARE,375113,"Health, Education, Care and Safeguarding",Adult Social Care,101,Third Party Payments,505,Private Contractors,5042,Revenue,22.RESIDENTIAL
04/09/2017,1492198,450.34,ASPIRE HEALTHCARE,375113,"Health, Education, Care and Safeguarding",Adult Social Care,101,Third Party Payments,505,Private Contractors,5042,Revenue,22.RESIDENTIAL
04/09/2017,1492198,450.34,ASPIRE HEALTHCARE,375113,"Health, Education, Care and Safeguarding",Adult Social Care,101,Third Party Payments,505,Private Contractors,5042,Revenue,22.RESIDENTIAL
04/09/2017,1492198,450.34,ASPIRE HEALTHCARE,375113,"Health, Education, Care and Safeguarding",Adult Social Care,101,Third Party Payments,505,Private Contractors,5042,Revenue,22.RESIDENTIAL
04/09/2017,1492198,450.34,ASPIRE HEALTHCARE,375113,"Health, Education, Care and Safeguarding",Adult Social Care,101,Third Party Payments,505,Private Contractors,5042,Revenue,22.RESIDENTIAL
04/09/2017,1492198,450.34,ASPIRE HEALTHCARE,375113,"Health, Education, Care and Safeguarding",Adult Social Care,101,Third Party Payments,505,Private Contractors,5042,Revenue,22.RESIDENTIAL
04/09/2017,1492198,450.34,ASPIRE HEALTHCARE,375113,"Health, Education, Care and Safeguarding",Adult Social Care,101,Third Party Payments,505,Private Contractors,5042,Revenue,22.RESIDENTIAL
04/09/2017,1492198,450.34,ASPIRE HEALTHCARE,375113,"Health, Education, Care and Safeguarding",Adult Social Care,101,Third Party Payments,505,Private Contractors,5042,Revenue,22.RESIDENTIAL
04/09/2017,1492198,450.34,ASPIRE HEALTHCARE,375113,"Health, Education, Care and Safeguarding",Adult Social Care,101,Third Party Payments,505,Private Contractors,5042,Revenue,22.RESIDENTIAL
04/09/2017,1492198,450.34,ASPIRE HEALTHCARE,375113,"Health, Education, Care and Safeguarding",Adult Social Care,101,Third Party Payments,505,Private Contractors,5042,Revenue,22.RESIDENTIAL
04/09/2017,1492198,450.34,ASPIRE HEALTHCARE,375113,"Health, Education, Care and Safeguarding",Adult Social Care,101,Third Party Payments,505,Private Contractors,5042,Revenue,22.RESIDENTIAL
04/09/2017,1492198,491.30,ASPIRE HEALTHCARE,375113,"Health, Education, Care and Safeguarding",Adult Social Care,101,Third Party Payments,505,Private Contractors,5042,Revenue,22.RESIDENTIAL
04/09/2017,1492198,495.55,ASPIRE HEALTHCARE,375113,"Health, Education, Care and Safeguarding",Adult Social Care,101,Third Party Payments,505,Private Contractors,5042,Revenue,22.RESIDENTIAL
04/09/2017,1492198,495.55,ASPIRE HEALTHCARE,375113,"Health, Education, Care and Safeguarding",Adult Social Care,101,Third Party Payments,505,Private Contractors,5042,Revenue,22.RESIDENTIAL
04/09/2017,1492198,566.22,ASPIRE HEALTHCARE,375113,"Health, Education, Care and Safeguarding",Adult Social Care,101,Third Party Payments,505,Private Contractors,5042,Revenue,22.RESIDENTIAL
04/09/2017,1492198,594.76,ASPIRE HEALTHCARE,375113,"Health, Education, Care and Safeguarding",Adult Social Care,101,Third Party Payments,505,Private Contractors,5042,Revenue,22.RESIDENTIAL
04/09/2017,1492198,594.76,ASPIRE HEALTHCARE,375113,"Health, Education, Care and Safeguarding",Adult Social Care,101,Third Party Payments,505,Private Contractors,5042,Revenue,22.RESIDENTIAL
04/09/2017,1492198,594.76,ASPIRE HEALTHCARE,375113,"Health, Education, Care and Safeguarding",Adult Social Care,101,Third Party Payments,505,Private Contractors,5042,Revenue,22.RESIDENTIAL
04/09/2017,1492198,727.28,ASPIRE HEALTHCARE,375113,"Health, Education, Care and Safeguarding",Adult Social Care,101,Third Party Payments,505,Private Contractors,5042,Revenue,22.RESIDENTIAL
04/09/2017,1492198,756.18,ASPIRE HEALTHCARE,375113,"Health, Education, Care and Safeguarding",Adult Social Care,101,Third Party Payments,505,Private Contractors,5042,Revenue,22.RESIDENTIAL
04/09/2017,1492198,835.95,ASPIRE HEALTHCARE,375113,"Health, Education, Care and Safeguarding",Adult Social Care,101,Third Party Payments,505,Private Contractors,5042,Revenue,22.RESIDENTIAL
04/09/2017,1492198,875.00,ASPIRE HEALTHCARE,375113,"Health, Education, Care and Safeguarding",Adult Social Care,101,Third Party Payments,505,Private Contractors,5042,Revenue,22.RESIDENTIAL
04/09/2017,1492198,1157.05,ASPIRE HEALTHCARE,375113,"Health, Education, Care and Safeguarding",Adult Social Care,101,Third Party Payments,505,Private Contractors,5042,Revenue,22.RESIDENTIAL
04/09/2017,1492198,1205.40,ASPIRE HEALTHCARE,375113,"Health, Education, Care and Safeguarding",Adult Social Care,101,Third Party Payments,505,Private Contractors,5042,Revenue,22.RESIDENTIAL
04/09/2017,1492198,1229.15,ASPIRE HEALTHCARE,375113,"Health, Education, Care and Safeguarding",Adult Social Care,101,Third Party Payments,505,Private Contractors,5042,Revenue,22.RESIDENTIAL
04/09/2017,1492198,1629.55,ASPIRE HEALTHCARE,375113,"Health, Education, Care and Safeguarding",Adult Social Care,101,Third Party Payments,505,Private Contractors,5042,Revenue,22.RESIDENTIAL
04/09/2017,1492198,1759.85,ASPIRE HEALTHCARE,375113,"Health, Education, Care and Safeguarding",Adult Social Care,101,Third Party Payments,505,Private Contractors,5042,Revenue,22.RESIDENTIAL
04/09/2017,1492198,1776.05,ASPIRE HEALTHCARE,375113,"Health, Education, Care and Safeguarding",Adult Social Care,101,Third Party Payments,505,Private Contractors,5042,Revenue,22.RESIDENTIAL
04/09/2017,1492198,1798.50,ASPIRE HEALTHCARE,375113,"Health, Education, Care and Safeguarding",Adult Social Care,101,Third Party Payments,505,Private Contractors,5042,Revenue,22.RESIDENTIAL
04/09/2017,1492198,1798.50,ASPIRE HEALTHCARE,375113,"Health, Education, Care and Safeguarding",Adult Social Care,101,Third Party Payments,505,Private Contractors,5042,Revenue,22.RESIDENTIAL
04/09/2017,1492198,1899.67,ASPIRE HEALTHCARE,375113,"Health, Education, Care and Safeguarding",Adult Social Care,101,Third Party Payments,505,Private Contractors,5042,Revenue,22.RESIDENTIAL
04/09/2017,1492198,1899.67,ASPIRE HEALTHCARE,375113,"Health, Education, Care and Safeguarding",Adult Social Care,101,Third Party Payments,505,Private Contractors,5042,Revenue,22.RESIDENTIAL
04/09/2017,1492202,554.55,DERWENT CARE HOME,388802,"Health, Education, Care and Safeguarding",Adult Social Care,101,Third Party Payments,505,Private Contractors,5042,Revenue,00.NON INFLUENCIBLE
04/09/2017,1492205,450.34,MELROSE HOUSE,388684,"Health, Education, Care and Safeguarding",Adult Social Care,101,Third Party Payments,505,Private Contractors,5042,Revenue,22.RESIDENTIAL
04/09/2017,1492205,450.34,MELROSE HOUSE,388684,"Health, Education, Care and Safeguarding",Adult Social Care,101,Third Party Payments,505,Private Contractors,5042,Revenue,22.RESIDENTIAL
04/09/2017,1492205,450.34,MELROSE HOUSE,388684,"Health, Education, Care and Safeguarding",Adult Social Care,101,Third Party Payments,505,Private Contractors,5042,Revenue,22.RESIDENTIAL
04/09/2017,1492205,450.34,MELROSE HOUSE,388684,"Health, Education, Care and Safeguarding",Adult Social Care,101,Third Party Payments,505,Private Contractors,5042,Revenue,22.RESIDENTIAL
04/09/2017,1492205,450.34,MELROSE HOUSE,388684,"Health, Education, Care and Safeguarding",Adult Social Care,101,Third Party Payments,505,Private Contractors,5042,Revenue,22.RESIDENTIAL
04/09/2017,1492205,450.34,MELROSE HOUSE,388684,"Health, Education, Care and Safeguarding",Adult Social Care,101,Third Party Payments,505,Private Contractors,5042,Revenue,22.RESIDENTIAL
04/09/2017,1492205,460.00,MELROSE HOUSE,388684,"Health, Education, Care and Safeguarding",Adult Social Care,101,Third Party Payments,505,Private Contractors,5042,Revenue,22.RESIDENTIAL
04/09/2017,1492208,1004.08,Redacted Personal Data,388436,"Health, Education, Care and Safeguarding",Adult Social Care,101,Third Party Payments,505,Other Establishments,5041,Revenue,00.NON INFLUENCIBLE
04/09/2017,1492211,1896.65,HOMECAREDIRECT,380128,"Health, Education, Care and Safeguarding",Adult Social Care,101,Third Party Payments,505,Private Contractors,5042,Revenue,00.NON INFLUENCIBLE
04/09/2017,1492212,487.01,BUPA CARE HOMES,365785,"Health, Education, Care and Safeguarding",Adult Social Care,101,Third Party Payments,505,Private Contractors,5042,Revenue,22.RESIDENTIAL
04/09/2017,1492213,629.16,BONDCARE - DE BALLIOL,388231,"Health, Education, Care and Safeguarding",Adult Social Care,101,Third Party Payments,505,Other Establishments,5041,Revenue,22.RESIDENTIAL
04/09/2017,1492216,416.44,FLEXIBLE SUPPORT OPTIONS UK LIMITED,342478,"Health, Education, Care and Safeguarding",Adult Social Care,101,Third Party Payments,505,Other Establishments,5041,Revenue,22.SUPPORT SERVICES
04/09/2017,1492216,454.65,FLEXIBLE SUPPORT OPTIONS UK LIMITED,342478,"Health, Education, Care and Safeguarding",Adult Social Care,101,Third Party Payments,505,Other Establishments,5041,Revenue,22.SUPPORT SERVICES
04/09/2017,1492216,700.14,FLEXIBLE SUPPORT OPTIONS UK LIMITED,342478,"Health, Education, Care and Safeguarding",Adult Social Care,101,Third Party Payments,505,Private Contractors,5042,Revenue,22.SUPPORT SERVICES
04/09/2017,1492216,700.14,FLEXIBLE SUPPORT OPTIONS UK LIMITED,342478,"Health, Education, Care and Safeguarding",Adult Social Care,101,Third Party Payments,505,Private Contractors,5042,Revenue,22.SUPPORT SERVICES
04/09/2017,1492216,748.80,FLEXIBLE SUPPORT OPTIONS UK LIMITED,342478,"Health, Education, Care and Safeguarding",Adult Social Care,101,Third Party Payments,505,Private Contractors,5042,Revenue,22.SUPPORT SERVICES
04/09/2017,1492216,1833.30,FLEXIBLE SUPPORT OPTIONS UK LIMITED,342478,"Health, Education, Care and Safeguarding",Adult Social Care,101,Third Party Payments,505,Other Establishments,5041,Revenue,22.SUPPORT SERVICES
04/09/2017,1492216,2774.14,FLEXIBLE SUPPORT OPTIONS UK LIMITED,342478,"Health, Education, Care and Safeguarding",Adult Social Care,101,Third Party Payments,505,Private Contractors,5042,Revenue,22.SUPPORT SERVICES
04/09/2017,1492219,282.08,RICHMOND FELLOWSHIP LTD,018025,"Health, Education, Care and Safeguarding",Adult Social Care,101,Third Party Payments,505,Other Establishments,5041,Revenue,22.RESIDENTIAL
04/09/2017,1492219,821.15,RICHMOND FELLOWSHIP LTD,018025,"Health, Education, Care and Safeguarding",Adult Social Care,101,Third Party Payments,505,Private Contractors,5042,Revenue,22.RESIDENTIAL
04/09/2017,1492220,2442.30,NORTH EAST AUTISM SOCIETY,329004,"Health, Education, Care and Safeguarding",Adult Social Care,101,Third Party Payments,505,Private Contractors,5042,Revenue,22.SUPPORT SERVICES
04/09/2017,1492220,2846.15,NORTH EAST AUTISM SOCIETY,329004,"Health, Education, Care and Safeguarding",Adult Social Care,101,Third Party Payments,505,Private Contractors,5042,Revenue,22.SUPPORT SERVICES
04/09/2017,1492222,1323.92,Redacted Personal Data,386860,"Health, Education, Care and Safeguarding",Adult Social Care,101,Third Party Payments,505,Other Establishments,5041,Revenue,00.NON INFLUENCIBLE
04/09/2017,1492224,511.67,CARE HOMES UK LTD,387674,"Health, Education, Care and Safeguarding",Adult Social Care,101,Third Party Payments,505,Private Contractors,5042,Revenue,22.RESIDENTIAL
04/09/2017,1492224,511.67,CARE HOMES UK LTD,387674,"Health, Education, Care and Safeguarding",Adult Social Care,101,Third Party Payments,505,Private Contractors,5042,Revenue,22.RESIDENTIAL
04/09/2017,1492224,533.93,CARE HOMES UK LTD,387674,"Health, Education, Care and Safeguarding",Adult Social Care,101,Third Party Payments,505,Private Contractors,5042,Revenue,22.RESIDENTIAL
04/09/2017,1492226,485.89,COUNTRYWIDE CARE HOMES LIMITED,387668,"Health, Education, Care and Safeguarding",Adult Social Care,101,Third Party Payments,505,Private Contractors,5042,Revenue,22.RESIDENTIAL
04/09/2017,1492228,-437.44,ROSEBERRY CARE CENTRES,387542,"Health, Education, Care and Safeguarding",Adult Social Care,101,Third Party Payments,505,Other Establishments,5041,Revenue,22.RESIDENTIAL
04/09/2017,1492228,-326.69,ROSEBERRY CARE CENTRES,387542,"Health, Education, Care and Safeguarding",Adult Social Care,101,Third Party Payments,505,Private Contractors,5042,Revenue,22.RESIDENTIAL
04/09/2017,1492228,326.69,ROSEBERRY CARE CENTRES,387542,"Health, Education, Care and Safeguarding",Adult Social Care,101,Third Party Payments,505,Private Contractors,5042,Revenue,22.RESIDENTIAL
04/09/2017,1492228,457.36,ROSEBERRY CARE CENTRES,387542,"Health, Education, Care and Safeguarding",Adult Social Care,101,Third Party Payments,505,Private Contractors,5042,Revenue,22.RESIDENTIAL
04/09/2017,1492228,457.36,ROSEBERRY CARE CENTRES,387542,"Health, Education, Care and Safeguarding",Adult Social Care,101,Third Party Payments,505,Private Contractors,5042,Revenue,22.RESIDENTIAL
04/09/2017,1492228,457.36,ROSEBERRY CARE CENTRES,387542,"Health, Education, Care and Safeguarding",Adult Social Care,101,Third Party Payments,505,Private Contractors,5042,Revenue,22.RESIDENTIAL
04/09/2017,1492228,457.36,ROSEBERRY CARE CENTRES,387542,"Health, Education, Care and Safeguarding",Adult Social Care,101,Third Party Payments,505,Private Contractors,5042,Revenue,22.RESIDENTIAL
04/09/2017,1492228,457.36,ROSEBERRY CARE CENTRES,387542,"Health, Education, Care and Safeguarding",Adult Social Care,101,Third Party Payments,505,Private Contractors,5042,Revenue,22.RESIDENTIAL
04/09/2017,1492228,457.36,ROSEBERRY CARE CENTRES,387542,"Health, Education, Care and Safeguarding",Adult Social Care,101,Third Party Payments,505,Private Contractors,5042,Revenue,22.RESIDENTIAL
04/09/2017,1492228,457.36,ROSEBERRY CARE CENTRES,387542,"Health, Education, Care and Safeguarding",Adult Social Care,101,Third Party Payments,505,Private Contractors,5042,Revenue,22.RESIDENTIAL
04/09/2017,1492228,457.36,ROSEBERRY CARE CENTRES,387542,"Health, Education, Care and Safeguarding",Adult Social Care,101,Third Party Payments,505,Private Contractors,5042,Revenue,22.RESIDENTIAL
04/09/2017,1492228,457.36,ROSEBERRY CARE CENTRES,387542,"Health, Education, Care and Safeguarding",Adult Social Care,101,Third Party Payments,505,Private Contractors,5042,Revenue,22.RESIDENTIAL
04/09/2017,1492228,457.36,ROSEBERRY CARE CENTRES,387542,"Health, Education, Care and Safeguarding",Adult Social Care,101,Third Party Payments,505,Private Contractors,5042,Revenue,22.RESIDENTIAL
04/09/2017,1492228,457.36,ROSEBERRY CARE CENTRES,387542,"Health, Education, Care and Safeguarding",Adult Social Care,101,Third Party Payments,505,Private Contractors,5042,Revenue,22.RESIDENTIAL
04/09/2017,1492228,457.36,ROSEBERRY CARE CENTRES,387542,"Health, Education, Care and Safeguarding",Adult Social Care,101,Third Party Payments,505,Private Contractors,5042,Revenue,22.RESIDENTIAL
04/09/2017,1492228,457.36,ROSEBERRY CARE CENTRES,387542,"Health, Education, Care and Safeguarding",Adult Social Care,101,Third Party Payments,505,Private Contractors,5042,Revenue,22.RESIDENTIAL
04/09/2017,1492228,457.36,ROSEBERRY CARE CENTRES,387542,"Health, Education, Care and Safeguarding",Adult Social Care,101,Third Party Payments,505,Private Contractors,5042,Revenue,22.RESIDENTIAL
04/09/2017,1492228,457.36,ROSEBERRY CARE CENTRES,387542,"Health, Education, Care and Safeguarding",Adult Social Care,101,Third Party Payments,505,Private Contractors,5042,Revenue,22.RESIDENTIAL
04/09/2017,1492228,457.36,ROSEBERRY CARE CENTRES,387542,"Health, Education, Care and Safeguarding",Adult Social Care,101,Third Party Payments,505,Private Contractors,5042,Revenue,22.RESIDENTIAL
04/09/2017,1492228,457.36,ROSEBERRY CARE CENTRES,387542,"Health, Education, Care and Safeguarding",Adult Social Care,101,Third Party Payments,505,Private Contractors,5042,Revenue,22.RESIDENTIAL
04/09/2017,1492228,612.41,ROSEBERRY CARE CENTRES,387542,"Health, Education, Care and Safeguarding",Adult Social Care,101,Third Party Payments,505,Other Establishments,5041,Revenue,22.RESIDENTIAL
04/09/2017,1492228,613.61,ROSEBERRY CARE CENTRES,387542,"Health, Education, Care and Safeguarding",Adult Social Care,101,Third Party Payments,505,Private Contractors,5042,Revenue,22.RESIDENTIAL
04/09/2017,1492228,642.41,ROSEBERRY CARE CENTRES,387542,"Health, Education, Care and Safeguarding",Public Health,112,Third Party Payments,505,Other Establishments,5041,Revenue,22.RESIDENTIAL
04/09/2017,1492229,488.15,ROSEBERRY CARE CENTRES,387541,"Health, Education, Care and Safeguarding",Adult Social Care,101,Third Party Payments,505,Private Contractors,5042,Revenue,22.RESIDENTIAL
04/09/2017,1492229,488.15,ROSEBERRY CARE CENTRES,387541,"Health, Education, Care and Safeguarding",Adult Social Care,101,Third Party Payments,505,Private Contractors,5042,Revenue,22.RESIDENTIAL
04/09/2017,1492229,488.15,ROSEBERRY CARE CENTRES,387541,"Health, Education, Care and Safeguarding",Adult Social Care,101,Third Party Payments,505,Private Contractors,5042,Revenue,22.RESIDENTIAL
04/09/2017,1492229,488.15,ROSEBERRY CARE CENTRES,387541,"Health, Education, Care and Safeguarding",Adult Social Care,101,Third Party Payments,505,Private Contractors,5042,Revenue,22.RESIDENTIAL
04/09/2017,1492229,488.15,ROSEBERRY CARE CENTRES,387541,"Health, Education, Care and Safeguarding",Adult Social Care,101,Third Party Payments,505,Private Contractors,5042,Revenue,22.RESIDENTIAL
04/09/2017,1492229,488.15,ROSEBERRY CARE CENTRES,387541,"Health, Education, Care and Safeguarding",Adult Social Care,101,Third Party Payments,505,Private Contractors,5042,Revenue,22.RESIDENTIAL
04/09/2017,1492229,508.70,ROSEBERRY CARE CENTRES,387541,"Health, Education, Care and Safeguarding",Adult Social Care,101,Third Party Payments,505,Private Contractors,5042,Revenue,22.RESIDENTIAL
04/09/2017,1492229,508.70,ROSEBERRY CARE CENTRES,387541,"Health, Education, Care and Safeguarding",Adult Social Care,101,Third Party Payments,505,Private Contractors,5042,Revenue,22.RESIDENTIAL
04/09/2017,1492229,508.70,ROSEBERRY CARE CENTRES,387541,"Health, Education, Care and Safeguarding",Adult Social Care,101,Third Party Payments,505,Private Contractors,5042,Revenue,22.RESIDENTIAL
04/09/2017,1492229,508.70,ROSEBERRY CARE CENTRES,387541,"Health, Education, Care and Safeguarding",Adult Social Care,101,Third Party Payments,505,Private Contractors,5042,Revenue,22.RESIDENTIAL
04/09/2017,1492229,508.70,ROSEBERRY CARE CENTRES,387541,"Health, Education, Care and Safeguarding",Adult Social Care,101,Third Party Payments,505,Private Contractors,5042,Revenue,22.RESIDENTIAL
04/09/2017,1492229,508.70,ROSEBERRY CARE CENTRES,387541,"Health, Education, Care and Safeguarding",Adult Social Care,101,Third Party Payments,505,Private Contractors,5042,Revenue,22.RESIDENTIAL
04/09/2017,1492229,508.70,ROSEBERRY CARE CENTRES,387541,"Health, Education, Care and Safeguarding",Adult Social Care,101,Third Party Payments,505,Private Contractors,5042,Revenue,22.RESIDENTIAL
04/09/2017,1492229,508.70,ROSEBERRY CARE CENTRES,387541,"Health, Education, Care and Safeguarding",Adult Social Care,101,Third Party Payments,505,Private Contractors,5042,Revenue,22.RESIDENTIAL
04/09/2017,1492229,508.70,ROSEBERRY CARE CENTRES,387541,"Health, Education, Care and Safeguarding",Adult Social Care,101,Third Party Payments,505,Private Contractors,5042,Revenue,22.RESIDENTIAL
04/09/2017,1492230,520.05,COUNTRYWIDE CARE HOMES LIMITED,387540,"Health, Education, Care and Safeguarding",Adult Social Care,101,Third Party Payments,505,Private Contractors,5042,Revenue,22.RESIDENTIAL
04/09/2017,1492230,520.05,COUNTRYWIDE CARE HOMES LIMITED,387540,"Health, Education, Care and Safeguarding",Adult Social Care,101,Third Party Payments,505,Private Contractors,5042,Revenue,22.RESIDENTIAL
04/09/2017,1492230,520.05,COUNTRYWIDE CARE HOMES LIMITED,387540,"Health, Education, Care and Safeguarding",Adult Social Care,101,Third Party Payments,505,Private Contractors,5042,Revenue,22.RESIDENTIAL
04/09/2017,1492230,520.05,COUNTRYWIDE CARE HOMES LIMITED,387540,"Health, Education, Care and Safeguarding",Adult Social Care,101,Third Party Payments,505,Private Contractors,5042,Revenue,22.RESIDENTIAL
04/09/2017,1492230,520.05,COUNTRYWIDE CARE HOMES LIMITED,387540,"Health, Education, Care and Safeguarding",Adult Social Care,101,Third Party Payments,505,Private Contractors,5042,Revenue,22.RESIDENTIAL
04/09/2017,1492230,520.05,COUNTRYWIDE CARE HOMES LIMITED,387540,"Health, Education, Care and Safeguarding",Adult Social Care,101,Third Party Payments,505,Private Contractors,5042,Revenue,22.RESIDENTIAL
04/09/2017,1492230,520.05,COUNTRYWIDE CARE HOMES LIMITED,387540,"Health, Education, Care and Safeguarding",Adult Social Care,101,Third Party Payments,505,Private Contractors,5042,Revenue,22.RESIDENTIAL
04/09/2017,1492230,520.05,COUNTRYWIDE CARE HOMES LIMITED,387540,"Health, Education, Care and Safeguarding",Adult Social Care,101,Third Party Payments,505,Private Contractors,5042,Revenue,22.RESIDENTIAL
04/09/2017,1492230,520.05,COUNTRYWIDE CARE HOMES LIMITED,387540,"Health, Education, Care and Safeguarding",Adult Social Care,101,Third Party Payments,505,Private Contractors,5042,Revenue,22.RESIDENTIAL
04/09/2017,1492230,520.05,COUNTRYWIDE CARE HOMES LIMITED,387540,"Health, Education, Care and Safeguarding",Adult Social Care,101,Third Party Payments,505,Private Contractors,5042,Revenue,22.RESIDENTIAL
04/09/2017,1492230,538.64,COUNTRYWIDE CARE HOMES LIMITED,387540,"Health, Education, Care and Safeguarding",Adult Social Care,101,Third Party Payments,505,Private Contractors,5042,Revenue,22.RESIDENTIAL
04/09/2017,1492230,538.64,COUNTRYWIDE CARE HOMES LIMITED,387540,"Health, Education, Care and Safeguarding",Adult Social Care,101,Third Party Payments,505,Private Contractors,5042,Revenue,22.RESIDENTIAL
04/09/2017,1492230,538.64,COUNTRYWIDE CARE HOMES LIMITED,387540,"Health, Education, Care and Safeguarding",Adult Social Care,101,Third Party Payments,505,Private Contractors,5042,Revenue,22.RESIDENTIAL
04/09/2017,1492230,538.64,COUNTRYWIDE CARE HOMES LIMITED,387540,"Health, Education, Care and Safeguarding",Adult Social Care,101,Third Party Payments,505,Private Contractors,5042,Revenue,22.RESIDENTIAL
04/09/2017,1492230,538.64,COUNTRYWIDE CARE HOMES LIMITED,387540,"Health, Education, Care and Safeguarding",Adult Social Care,101,Third Party Payments,505,Private Contractors,5042,Revenue,22.RESIDENTIAL
04/09/2017,1492230,538.64,COUNTRYWIDE CARE HOMES LIMITED,387540,"Health, Education, Care and Safeguarding",Adult Social Care,101,Third Party Payments,505,Private Contractors,5042,Revenue,22.RESIDENTIAL
04/09/2017,1492230,538.64,COUNTRYWIDE CARE HOMES LIMITED,387540,"Health, Education, Care and Safeguarding",Adult Social Care,101,Third Party Payments,505,Private Contractors,5042,Revenue,22.RESIDENTIAL
04/09/2017,1492230,538.64,COUNTRYWIDE CARE HOMES LIMITED,387540,"Health, Education, Care and Safeguarding",Adult Social Care,101,Third Party Payments,505,Private Contractors,5042,Revenue,22.RESIDENTIAL
04/09/2017,1492230,538.64,COUNTRYWIDE CARE HOMES LIMITED,387540,"Health, Education, Care and Safeguarding",Adult Social Care,101,Third Party Payments,505,Private Contractors,5042,Revenue,22.RESIDENTIAL
04/09/2017,1492230,538.64,COUNTRYWIDE CARE HOMES LIMITED,387540,"Health, Education, Care and Safeguarding",Adult Social Care,101,Third Party Payments,505,Private Contractors,5042,Revenue,22.RESIDENTIAL
04/09/2017,1492230,538.64,COUNTRYWIDE CARE HOMES LIMITED,387540,"Health, Education, Care and Safeguarding",Adult Social Care,101,Third Party Payments,505,Private Contractors,5042,Revenue,22.RESIDENTIAL
04/09/2017,1492230,538.64,COUNTRYWIDE CARE HOMES LIMITED,387540,"Health, Education, Care and Safeguarding",Adult Social Care,101,Third Party Payments,505,Private Contractors,5042,Revenue,22.RESIDENTIAL
04/09/2017,1492230,538.64,COUNTRYWIDE CARE HOMES LIMITED,387540,"Health, Education, Care and Safeguarding",Adult Social Care,101,Third Party Payments,505,Private Contractors,5042,Revenue,22.RESIDENTIAL
04/09/2017,1492231,-385.77,CARE UK COMMUNITY PARTNERSHIPS LIMITED,330181,"Health, Education, Care and Safeguarding",Adult Social Care,101,Third Party Payments,505,Other Establishments,5041,Revenue,22.RESIDENTIAL
04/09/2017,1492231,402.91,CARE UK COMMUNITY PARTNERSHIPS LIMITED,330181,"Health, Education, Care and Safeguarding",Adult Social Care,101,Third Party Payments,505,Other Establishments,5041,Revenue,22.RESIDENTIAL
04/09/2017,1492231,520.05,CARE UK COMMUNITY PARTNERSHIPS LIMITED,330181,"Health, Education, Care and Safeguarding",Adult Social Care,101,Third Party Payments,505,Private Contractors,5042,Revenue,22.RESIDENTIAL
04/09/2017,1492231,520.05,CARE UK COMMUNITY PARTNERSHIPS LIMITED,330181,"Health, Education, Care and Safeguarding",Adult Social Care,101,Third Party Payments,505,Private Contractors,5042,Revenue,22.RESIDENTIAL
04/09/2017,1492231,520.05,CARE UK COMMUNITY PARTNERSHIPS LIMITED,330181,"Health, Education, Care and Safeguarding",Adult Social Care,101,Third Party Payments,505,Private Contractors,5042,Revenue,22.RESIDENTIAL
04/09/2017,1492231,520.05,CARE UK COMMUNITY PARTNERSHIPS LIMITED,330181,"Health, Education, Care and Safeguarding",Adult Social Care,101,Third Party Payments,505,Private Contractors,5042,Revenue,22.RESIDENTIAL
04/09/2017,1492231,520.05,CARE UK COMMUNITY PARTNERSHIPS LIMITED,330181,"Health, Education, Care and Safeguarding",Adult Social Care,101,Third Party Payments,505,Private Contractors,5042,Revenue,22.RESIDENTIAL
04/09/2017,1492231,520.05,CARE UK COMMUNITY PARTNERSHIPS LIMITED,330181,"Health, Education, Care and Safeguarding",Adult Social Care,101,Third Party Payments,505,Private Contractors,5042,Revenue,22.RESIDENTIAL
04/09/2017,1492231,520.05,CARE UK COMMUNITY PARTNERSHIPS LIMITED,330181,"Health, Education, Care and Safeguarding",Adult Social Care,101,Third Party Payments,505,Private Contractors,5042,Revenue,22.RESIDENTIAL
04/09/2017,1492231,520.05,CARE UK COMMUNITY PARTNERSHIPS LIMITED,330181,"Health, Education, Care and Safeguarding",Adult Social Care,101,Third Party Payments,505,Private Contractors,5042,Revenue,22.RESIDENTIAL
04/09/2017,1492231,520.05,CARE UK COMMUNITY PARTNERSHIPS LIMITED,330181,"Health, Education, Care and Safeguarding",Adult Social Care,101,Third Party Payments,505,Private Contractors,5042,Revenue,22.RESIDENTIAL
04/09/2017,1492231,520.05,CARE UK COMMUNITY PARTNERSHIPS LIMITED,330181,"Health, Education, Care and Safeguarding",Adult Social Care,101,Third Party Payments,505,Private Contractors,5042,Revenue,22.RESIDENTIAL
04/09/2017,1492231,520.05,CARE UK COMMUNITY PARTNERSHIPS LIMITED,330181,"Health, Education, Care and Safeguarding",Adult Social Care,101,Third Party Payments,505,Private Contractors,5042,Revenue,22.RESIDENTIAL
04/09/2017,1492231,520.05,CARE UK COMMUNITY PARTNERSHIPS LIMITED,330181,"Health, Education, Care and Safeguarding",Adult Social Care,101,Third Party Payments,505,Private Contractors,5042,Revenue,22.RESIDENTIAL
04/09/2017,1492231,520.05,CARE UK COMMUNITY PARTNERSHIPS LIMITED,330181,"Health, Education, Care and Safeguarding",Adult Social Care,101,Third Party Payments,505,Private Contractors,5042,Revenue,22.RESIDENTIAL
04/09/2017,1492231,520.05,CARE UK COMMUNITY PARTNERSHIPS LIMITED,330181,"Health, Education, Care and Safeguarding",Adult Social Care,101,Third Party Payments,505,Private Contractors,5042,Revenue,22.RESIDENTIAL
04/09/2017,1492231,520.05,CARE UK COMMUNITY PARTNERSHIPS LIMITED,330181,"Health, Education, Care and Safeguarding",Adult Social Care,101,Third Party Payments,505,Private Contractors,5042,Revenue,22.RESIDENTIAL
04/09/2017,1492231,520.05,CARE UK COMMUNITY PARTNERSHIPS LIMITED,330181,"Health, Education, Care and Safeguarding",Adult Social Care,101,Third Party Payments,505,Private Contractors,5042,Revenue,22.RESIDENTIAL
04/09/2017,1492231,520.05,CARE UK COMMUNITY PARTNERSHIPS LIMITED,330181,"Health, Education, Care and Safeguarding",Adult Social Care,101,Third Party Payments,505,Private Contractors,5042,Revenue,22.RESIDENTIAL
04/09/2017,1492231,520.05,CARE UK COMMUNITY PARTNERSHIPS LIMITED,330181,"Health, Education, Care and Safeguarding",Adult Social Care,101,Third Party Payments,505,Private Contractors,5042,Revenue,22.RESIDENTIAL
04/09/2017,1492231,520.05,CARE UK COMMUNITY PARTNERSHIPS LIMITED,330181,"Health, Education, Care and Safeguarding",Adult Social Care,101,Third Party Payments,505,Private Contractors,5042,Revenue,22.RESIDENTIAL
04/09/2017,1492231,520.05,CARE UK COMMUNITY PARTNERSHIPS LIMITED,330181,"Health, Education, Care and Safeguarding",Adult Social Care,101,Third Party Payments,505,Private Contractors,5042,Revenue,22.RESIDENTIAL
04/09/2017,1492231,520.05,CARE UK COMMUNITY PARTNERSHIPS LIMITED,330181,"Health, Education, Care and Safeguarding",Adult Social Care,101,Third Party Payments,505,Private Contractors,5042,Revenue,22.RESIDENTIAL
04/09/2017,1492231,538.64,CARE UK COMMUNITY PARTNERSHIPS LIMITED,330181,"Health, Education, Care and Safeguarding",Adult Social Care,101,Third Party Payments,505,Private Contractors,5042,Revenue,22.RESIDENTIAL
04/09/2017,1492231,538.64,CARE UK COMMUNITY PARTNERSHIPS LIMITED,330181,"Health, Education, Care and Safeguarding",Adult Social Care,101,Third Party Payments,505,Private Contractors,5042,Revenue,22.RESIDENTIAL
04/09/2017,1492231,538.64,CARE UK COMMUNITY PARTNERSHIPS LIMITED,330181,"Health, Education, Care and Safeguarding",Adult Social Care,101,Third Party Payments,505,Private Contractors,5042,Revenue,22.RESIDENTIAL
04/09/2017,1492231,538.64,CARE UK COMMUNITY PARTNERSHIPS LIMITED,330181,"Health, Education, Care and Safeguarding",Adult Social Care,101,Third Party Payments,505,Private Contractors,5042,Revenue,22.RESIDENTIAL
04/09/2017,1492231,538.64,CARE UK COMMUNITY PARTNERSHIPS LIMITED,330181,"Health, Education, Care and Safeguarding",Adult Social Care,101,Third Party Payments,505,Private Contractors,5042,Revenue,22.RESIDENTIAL
04/09/2017,1492231,538.64,CARE UK COMMUNITY PARTNERSHIPS LIMITED,330181,"Health, Education, Care and Safeguarding",Adult Social Care,101,Third Party Payments,505,Private Contractors,5042,Revenue,22.RESIDENTIAL
04/09/2017,1492231,538.64,CARE UK COMMUNITY PARTNERSHIPS LIMITED,330181,"Health, Education, Care and Safeguarding",Adult Social Care,101,Third Party Payments,505,Private Contractors,5042,Revenue,22.RESIDENTIAL
04/09/2017,1492231,538.64,CARE UK COMMUNITY PARTNERSHIPS LIMITED,330181,"Health, Education, Care and Safeguarding",Adult Social Care,101,Third Party Payments,505,Private Contractors,5042,Revenue,22.RESIDENTIAL
04/09/2017,1492231,538.64,CARE UK COMMUNITY PARTNERSHIPS LIMITED,330181,"Health, Education, Care and Safeguarding",Adult Social Care,101,Third Party Payments,505,Private Contractors,5042,Revenue,22.RESIDENTIAL
04/09/2017,1492231,538.64,CARE UK COMMUNITY PARTNERSHIPS LIMITED,330181,"Health, Education, Care and Safeguarding",Adult Social Care,101,Third Party Payments,505,Private Contractors,5042,Revenue,22.RESIDENTIAL
04/09/2017,1492231,538.64,CARE UK COMMUNITY PARTNERSHIPS LIMITED,330181,"Health, Education, Care and Safeguarding",Adult Social Care,101,Third Party Payments,505,Private Contractors,5042,Revenue,22.RESIDENTIAL
04/09/2017,1492231,538.64,CARE UK COMMUNITY PARTNERSHIPS LIMITED,330181,"Health, Education, Care and Safeguarding",Adult Social Care,101,Third Party Payments,505,Private Contractors,5042,Revenue,22.RESIDENTIAL
04/09/2017,1492231,538.64,CARE UK COMMUNITY PARTNERSHIPS LIMITED,330181,"Health, Education, Care and Safeguarding",Adult Social Care,101,Third Party Payments,505,Private Contractors,5042,Revenue,22.RESIDENTIAL
04/09/2017,1492231,538.64,CARE UK COMMUNITY PARTNERSHIPS LIMITED,330181,"Health, Education, Care and Safeguarding",Adult Social Care,101,Third Party Payments,505,Private Contractors,5042,Revenue,22.RESIDENTIAL
04/09/2017,1492231,538.64,CARE UK COMMUNITY PARTNERSHIPS LIMITED,330181,"Health, Education, Care and Safeguarding",Adult Social Care,101,Third Party Payments,505,Private Contractors,5042,Revenue,22.RESIDENTIAL
04/09/2017,1492231,538.64,CARE UK COMMUNITY PARTNERSHIPS LIMITED,330181,"Health, Education, Care and Safeguarding",Adult Social Care,101,Third Party Payments,505,Private Contractors,5042,Revenue,22.RESIDENTIAL
04/09/2017,1492231,538.64,CARE UK COMMUNITY PARTNERSHIPS LIMITED,330181,"Health, Education, Care and Safeguarding",Adult Social Care,101,Third Party Payments,505,Private Contractors,5042,Revenue,22.RESIDENTIAL
04/09/2017,1492231,538.64,CARE UK COMMUNITY PARTNERSHIPS LIMITED,330181,"Health, Education, Care and Safeguarding",Adult Social Care,101,Third Party Payments,505,Private Contractors,5042,Revenue,22.RESIDENTIAL
04/09/2017,1492231,675.10,CARE UK COMMUNITY PARTNERSHIPS LIMITED,330181,"Health, Education, Care and Safeguarding",Adult Social Care,101,Third Party Payments,505,Other Establishments,5041,Revenue,22.RESIDENTIAL
04/09/2017,1492232,584.59,KENTON MANOR CARE HOME,387534,"Health, Education, Care and Safeguarding",Adult Social Care,101,Third Party Payments,505,Private Contractors,5042,Revenue,22.RESIDENTIAL
04/09/2017,1492233,-63070.86,BONDCARE SHAFTESBURY LTD,387477,"Health, Education, Care and Safeguarding",Adult Social Care,101,Third Party Payments,505,Private Contractors,5042,Revenue,22.RESIDENTIAL
04/09/2017,1492233,-6995.74,BONDCARE SHAFTESBURY LTD,387477,"Health, Education, Care and Safeguarding",Adult Social Care,101,Third Party Payments,505,Private Contractors,5042,Revenue,22.RESIDENTIAL
04/09/2017,1492233,-887.52,BONDCARE SHAFTESBURY LTD,387477,"Health, Education, Care and Safeguarding",Adult Social Care,101,Third Party Payments,505,Private Contractors,5042,Revenue,22.RESIDENTIAL
04/09/2017,1492233,-646.72,BONDCARE SHAFTESBURY LTD,387477,"Health, Education, Care and Safeguarding",Adult Social Care,101,Third Party Payments,505,Private Contractors,5042,Revenue,22.RESIDENTIAL
04/09/2017,1492233,529.04,BONDCARE SHAFTESBURY LTD,387477,"Health, Education, Care and Safeguarding",Adult Social Care,101,Third Party Payments,505,Private Contractors,5042,Revenue,22.RESIDENTIAL
04/09/2017,1492233,552.89,BONDCARE SHAFTESBURY LTD,387477,"Health, Education, Care and Safeguarding",Adult Social Care,101,Third Party Payments,505,Private Contractors,5042,Revenue,22.RESIDENTIAL
04/09/2017,1492233,7272.60,BONDCARE SHAFTESBURY LTD,387477,"Health, Education, Care and Safeguarding",Adult Social Care,101,Third Party Payments,505,Private Contractors,5042,Revenue,22.RESIDENTIAL
04/09/2017,1492233,27272.23,BONDCARE SHAFTESBURY LTD,387477,"Health, Education, Care and Safeguarding",Adult Social Care,101,Third Party Payments,505,Private Contractors,5042,Revenue,22.RESIDENTIAL
04/09/2017,1492233,40597.92,BONDCARE SHAFTESBURY LTD,387477,"Health, Education, Care and Safeguarding",Adult Social Care,101,Third Party Payments,505,Private Contractors,5042,Revenue,22.RESIDENTIAL
04/09/2017,1492234,-6251.72,PRESTWICK CARE LTD,387214,"Health, Education, Care and Safeguarding",Public Health,112,Third Party Payments,505,Other Establishments,5041,Revenue,22.RESIDENTIAL
04/09/2017,1492234,-2036.69,PRESTWICK CARE LTD,387214,"Health, Education, Care and Safeguarding",Public Health,112,Third Party Payments,505,Other Establishments,5041,Revenue,22.RESIDENTIAL
04/09/2017,1492234,-385.77,PRESTWICK CARE LTD,387214,"Health, Education, Care and Safeguarding",Adult Social Care,101,Third Party Payments,505,Other Establishments,5041,Revenue,22.RESIDENTIAL
04/09/2017,1492234,360.00,PRESTWICK CARE LTD,387214,"Health, Education, Care and Safeguarding",Public Health,112,Third Party Payments,505,Other Establishments,5041,Revenue,22.RESIDENTIAL
04/09/2017,1492234,402.91,PRESTWICK CARE LTD,387214,"Health, Education, Care and Safeguarding",Adult Social Care,101,Third Party Payments,505,Other Establishments,5041,Revenue,22.RESIDENTIAL
04/09/2017,1492234,498.75,PRESTWICK CARE LTD,387214,"Health, Education, Care and Safeguarding",Public Health,112,Third Party Payments,505,Other Establishments,5041,Revenue,22.RESIDENTIAL
04/09/2017,1492234,520.05,PRESTWICK CARE LTD,387214,"Health, Education, Care and Safeguarding",Adult Social Care,101,Third Party Payments,505,Private Contractors,5042,Revenue,22.RESIDENTIAL
04/09/2017,1492234,520.05,PRESTWICK CARE LTD,387214,"Health, Education, Care and Safeguarding",Adult Social Care,101,Third Party Payments,505,Private Contractors,5042,Revenue,22.RESIDENTIAL
04/09/2017,1492234,520.05,PRESTWICK CARE LTD,387214,"Health, Education, Care and Safeguarding",Adult Social Care,101,Third Party Payments,505,Private Contractors,5042,Revenue,22.RESIDENTIAL
04/09/2017,1492234,520.05,PRESTWICK CARE LTD,387214,"Health, Education, Care and Safeguarding",Adult Social Care,101,Third Party Payments,505,Private Contractors,5042,Revenue,22.RESIDENTIAL
04/09/2017,1492234,520.05,PRESTWICK CARE LTD,387214,"Health, Education, Care and Safeguarding",Adult Social Care,101,Third Party Payments,505,Private Contractors,5042,Revenue,22.RESIDENTIAL
04/09/2017,1492234,520.05,PRESTWICK CARE LTD,387214,"Health, Education, Care and Safeguarding",Adult Social Care,101,Third Party Payments,505,Private Contractors,5042,Revenue,22.RESIDENTIAL
04/09/2017,1492234,520.05,PRESTWICK CARE LTD,387214,"Health, Education, Care and Safeguarding",Adult Social Care,101,Third Party Payments,505,Private Contractors,5042,Revenue,22.RESIDENTIAL
04/09/2017,1492234,538.64,PRESTWICK CARE LTD,387214,"Health, Education, Care and Safeguarding",Adult Social Care,101,Third Party Payments,505,Private Contractors,5042,Revenue,22.RESIDENTIAL
04/09/2017,1492234,538.64,PRESTWICK CARE LTD,387214,"Health, Education, Care and Safeguarding",Adult Social Care,101,Third Party Payments,505,Private Contractors,5042,Revenue,22.RESIDENTIAL
04/09/2017,1492234,538.64,PRESTWICK CARE LTD,387214,"Health, Education, Care and Safeguarding",Adult Social Care,101,Third Party Payments,505,Private Contractors,5042,Revenue,22.RESIDENTIAL
04/09/2017,1492234,538.64,PRESTWICK CARE LTD,387214,"Health, Education, Care and Safeguarding",Adult Social Care,101,Third Party Payments,505,Private Contractors,5042,Revenue,22.RESIDENTIAL
04/09/2017,1492234,538.64,PRESTWICK CARE LTD,387214,"Health, Education, Care and Safeguarding",Adult Social Care,101,Third Party Payments,505,Private Contractors,5042,Revenue,22.RESIDENTIAL
04/09/2017,1492234,538.64,PRESTWICK CARE LTD,387214,"Health, Education, Care and Safeguarding",Adult Social Care,101,Third Party Payments,505,Private Contractors,5042,Revenue,22.RESIDENTIAL
04/09/2017,1492234,538.64,PRESTWICK CARE LTD,387214,"Health, Education, Care and Safeguarding",Adult Social Care,101,Third Party Payments,505,Private Contractors,5042,Revenue,22.RESIDENTIAL
04/09/2017,1492234,538.64,PRESTWICK CARE LTD,387214,"Health, Education, Care and Safeguarding",Adult Social Care,101,Third Party Payments,505,Private Contractors,5042,Revenue,22.RESIDENTIAL
04/09/2017,1492234,538.64,PRESTWICK CARE LTD,387214,"Health, Education, Care and Safeguarding",Adult Social Care,101,Third Party Payments,505,Private Contractors,5042,Revenue,22.RESIDENTIAL
04/09/2017,1492234,538.64,PRESTWICK CARE LTD,387214,"Health, Education, Care and Safeguarding",Adult Social Care,101,Third Party Payments,505,Private Contractors,5042,Revenue,22.RESIDENTIAL
04/09/2017,1492234,538.64,PRESTWICK CARE LTD,387214,"Health, Education, Care and Safeguarding",Adult Social Care,101,Third Party Payments,505,Private Contractors,5042,Revenue,22.RESIDENTIAL
04/09/2017,1492234,538.64,PRESTWICK CARE LTD,387214,"Health, Education, Care and Safeguarding",Adult Social Care,101,Third Party Payments,505,Private Contractors,5042,Revenue,22.RESIDENTIAL
04/09/2017,1492234,538.64,PRESTWICK CARE LTD,387214,"Health, Education, Care and Safeguarding",Adult Social Care,101,Third Party Payments,505,Private Contractors,5042,Revenue,22.RESIDENTIAL
04/09/2017,1492234,538.64,PRESTWICK CARE LTD,387214,"Health, Education, Care and Safeguarding",Adult Social Care,101,Third Party Payments,505,Private Contractors,5042,Revenue,22.RESIDENTIAL
04/09/2017,1492234,538.64,PRESTWICK CARE LTD,387214,"Health, Education, Care and Safeguarding",Adult Social Care,101,Third Party Payments,505,Private Contractors,5042,Revenue,22.RESIDENTIAL
04/09/2017,1492234,538.64,PRESTWICK CARE LTD,387214,"Health, Education, Care and Safeguarding",Adult Social Care,101,Third Party Payments,505,Private Contractors,5042,Revenue,22.RESIDENTIAL
04/09/2017,1492234,538.64,PRESTWICK CARE LTD,387214,"Health, Education, Care and Safeguarding",Adult Social Care,101,Third Party Payments,505,Private Contractors,5042,Revenue,22.RESIDENTIAL
04/09/2017,1492234,538.64,PRESTWICK CARE LTD,387214,"Health, Education, Care and Safeguarding",Adult Social Care,101,Third Party Payments,505,Private Contractors,5042,Revenue,22.RESIDENTIAL
04/09/2017,1492234,538.64,PRESTWICK CARE LTD,387214,"Health, Education, Care and Safeguarding",Adult Social Care,101,Third Party Payments,505,Private Contractors,5042,Revenue,22.RESIDENTIAL
04/09/2017,1492234,550.05,PRESTWICK CARE LTD,387214,"Health, Education, Care and Safeguarding",Adult Social Care,101,Third Party Payments,505,Other Establishments,5041,Revenue,22.RESIDENTIAL
04/09/2017,1492234,562.36,PRESTWICK CARE LTD,387214,"Health, Education, Care and Safeguarding",Adult Social Care,101,Third Party Payments,505,Private Contractors,5042,Revenue,22.RESIDENTIAL
04/09/2017,1492234,562.36,PRESTWICK CARE LTD,387214,"Health, Education, Care and Safeguarding",Adult Social Care,101,Third Party Payments,505,Private Contractors,5042,Revenue,22.RESIDENTIAL
04/09/2017,1492234,582.36,PRESTWICK CARE LTD,387214,"Health, Education, Care and Safeguarding",Adult Social Care,101,Third Party Payments,505,Private Contractors,5042,Revenue,22.RESIDENTIAL
04/09/2017,1492234,584.59,PRESTWICK CARE LTD,387214,"Health, Education, Care and Safeguarding",Adult Social Care,101,Third Party Payments,505,Private Contractors,5042,Revenue,22.RESIDENTIAL
04/09/2017,1492234,584.59,PRESTWICK CARE LTD,387214,"Health, Education, Care and Safeguarding",Adult Social Care,101,Third Party Payments,505,Private Contractors,5042,Revenue,22.RESIDENTIAL
04/09/2017,1492234,690.47,PRESTWICK CARE LTD,387214,"Health, Education, Care and Safeguarding",Public Health,112,Third Party Payments,505,Other Establishments,5041,Revenue,22.RESIDENTIAL
04/09/2017,1492234,705.10,PRESTWICK CARE LTD,387214,"Health, Education, Care and Safeguarding",Adult Social Care,101,Third Party Payments,505,Other Establishments,5041,Revenue,22.RESIDENTIAL
04/09/2017,1492234,705.10,PRESTWICK CARE LTD,387214,"Health, Education, Care and Safeguarding",Adult Social Care,101,Third Party Payments,505,Other Establishments,5041,Revenue,22.RESIDENTIAL
04/09/2017,1492234,705.10,PRESTWICK CARE LTD,387214,"Health, Education, Care and Safeguarding",Adult Social Care,101,Third Party Payments,505,Other Establishments,5041,Revenue,22.RESIDENTIAL
04/09/2017,1492234,705.10,PRESTWICK CARE LTD,387214,"Health, Education, Care and Safeguarding",Public Health,112,Third Party Payments,505,Other Establishments,5041,Revenue,22.RESIDENTIAL
04/09/2017,1492234,705.10,PRESTWICK CARE LTD,387214,"Health, Education, Care and Safeguarding",Public Health,112,Third Party Payments,505,Other Establishments,5041,Revenue,22.RESIDENTIAL
04/09/2017,1492234,723.69,PRESTWICK CARE LTD,387214,"Health, Education, Care and Safeguarding",Public Health,112,Third Party Payments,505,Other Establishments,5041,Revenue,22.RESIDENTIAL
04/09/2017,1492234,723.69,PRESTWICK CARE LTD,387214,"Health, Education, Care and Safeguarding",Public Health,112,Third Party Payments,505,Other Establishments,5041,Revenue,22.RESIDENTIAL
04/09/2017,1492234,723.69,PRESTWICK CARE LTD,387214,"Health, Education, Care and Safeguarding",Public Health,112,Third Party Payments,505,Other Establishments,5041,Revenue,22.RESIDENTIAL
04/09/2017,1492234,723.69,PRESTWICK CARE LTD,387214,"Health, Education, Care and Safeguarding",Public Health,112,Third Party Payments,505,Other Establishments,5041,Revenue,22.RESIDENTIAL
04/09/2017,1492234,747.41,PRESTWICK CARE LTD,387214,"Health, Education, Care and Safeguarding",Public Health,112,Third Party Payments,505,Other Establishments,5041,Revenue,22.RESIDENTIAL
04/09/2017,1492234,747.41,PRESTWICK CARE LTD,387214,"Health, Education, Care and Safeguarding",Public Health,112,Third Party Payments,505,Other Establishments,5041,Revenue,22.RESIDENTIAL
04/09/2017,1492234,769.64,PRESTWICK CARE LTD,387214,"Health, Education, Care and Safeguarding",Public Health,112,Third Party Payments,505,Other Establishments,5041,Revenue,22.RESIDENTIAL
04/09/2017,1492234,769.64,PRESTWICK CARE LTD,387214,"Health, Education, Care and Safeguarding",Public Health,112,Third Party Payments,505,Other Establishments,5041,Revenue,22.RESIDENTIAL
04/09/2017,1492234,2236.69,PRESTWICK CARE LTD,387214,"Health, Education, Care and Safeguarding",Public Health,112,Third Party Payments,505,Other Establishments,5041,Revenue,22.RESIDENTIAL
04/09/2017,1492234,5386.40,PRESTWICK CARE LTD,387214,"Health, Education, Care and Safeguarding",Adult Social Care,101,Third Party Payments,505,Private Contractors,5042,Revenue,22.RESIDENTIAL
04/09/2017,1492234,6513.14,PRESTWICK CARE LTD,387214,"Health, Education, Care and Safeguarding",Public Health,112,Third Party Payments,505,Other Establishments,5041,Revenue,22.RESIDENTIAL
04/09/2017,1492235,332.50,LADHAR GROUP CARE HOMES,377323,"Health, Education, Care and Safeguarding",Public Health,112,Third Party Payments,505,Other Establishments,5041,Revenue,22.RESIDENTIAL
04/09/2017,1492235,418.41,LADHAR GROUP CARE HOMES,377323,"Health, Education, Care and Safeguarding",Adult Social Care,101,Third Party Payments,505,Private Contractors,5042,Revenue,22.RESIDENTIAL
04/09/2017,1492235,488.15,LADHAR GROUP CARE HOMES,377323,"Health, Education, Care and Safeguarding",Adult Social Care,101,Third Party Payments,505,Private Contractors,5042,Revenue,22.RESIDENTIAL
04/09/2017,1492235,488.15,LADHAR GROUP CARE HOMES,377323,"Health, Education, Care and Safeguarding",Adult Social Care,101,Third Party Payments,505,Private Contractors,5042,Revenue,22.RESIDENTIAL
04/09/2017,1492235,488.15,LADHAR GROUP CARE HOMES,377323,"Health, Education, Care and Safeguarding",Adult Social Care,101,Third Party Payments,505,Private Contractors,5042,Revenue,22.RESIDENTIAL
04/09/2017,1492235,488.15,LADHAR GROUP CARE HOMES,377323,"Health, Education, Care and Safeguarding",Adult Social Care,101,Third Party Payments,505,Private Contractors,5042,Revenue,22.RESIDENTIAL
04/09/2017,1492235,488.15,LADHAR GROUP CARE HOMES,377323,"Health, Education, Care and Safeguarding",Adult Social Care,101,Third Party Payments,505,Private Contractors,5042,Revenue,22.RESIDENTIAL
04/09/2017,1492235,508.70,LADHAR GROUP CARE HOMES,377323,"Health, Education, Care and Safeguarding",Adult Social Care,101,Third Party Payments,505,Private Contractors,5042,Revenue,22.RESIDENTIAL
04/09/2017,1492235,508.70,LADHAR GROUP CARE HOMES,377323,"Health, Education, Care and Safeguarding",Adult Social Care,101,Third Party Payments,505,Private Contractors,5042,Revenue,22.RESIDENTIAL
04/09/2017,1492235,508.70,LADHAR GROUP CARE HOMES,377323,"Health, Education, Care and Safeguarding",Adult Social Care,101,Third Party Payments,505,Private Contractors,5042,Revenue,22.RESIDENTIAL
04/09/2017,1492235,508.70,LADHAR GROUP CARE HOMES,377323,"Health, Education, Care and Safeguarding",Adult Social Care,101,Third Party Payments,505,Private Contractors,5042,Revenue,22.RESIDENTIAL
04/09/2017,1492235,508.70,LADHAR GROUP CARE HOMES,377323,"Health, Education, Care and Safeguarding",Adult Social Care,101,Third Party Payments,505,Private Contractors,5042,Revenue,22.RESIDENTIAL
04/09/2017,1492235,508.70,LADHAR GROUP CARE HOMES,377323,"Health, Education, Care and Safeguarding",Adult Social Care,101,Third Party Payments,505,Private Contractors,5042,Revenue,22.RESIDENTIAL
04/09/2017,1492235,508.70,LADHAR GROUP CARE HOMES,377323,"Health, Education, Care and Safeguarding",Adult Social Care,101,Third Party Payments,505,Private Contractors,5042,Revenue,22.RESIDENTIAL
04/09/2017,1492235,508.70,LADHAR GROUP CARE HOMES,377323,"Health, Education, Care and Safeguarding",Adult Social Care,101,Third Party Payments,505,Private Contractors,5042,Revenue,22.RESIDENTIAL
04/09/2017,1492235,508.70,LADHAR GROUP CARE HOMES,377323,"Health, Education, Care and Safeguarding",Adult Social Care,101,Third Party Payments,505,Private Contractors,5042,Revenue,22.RESIDENTIAL
04/09/2017,1492235,508.70,LADHAR GROUP CARE HOMES,377323,"Health, Education, Care and Safeguarding",Adult Social Care,101,Third Party Payments,505,Private Contractors,5042,Revenue,22.RESIDENTIAL
04/09/2017,1492235,508.70,LADHAR GROUP CARE HOMES,377323,"Health, Education, Care and Safeguarding",Adult Social Care,101,Third Party Payments,505,Private Contractors,5042,Revenue,22.RESIDENTIAL
04/09/2017,1492235,508.70,LADHAR GROUP CARE HOMES,377323,"Health, Education, Care and Safeguarding",Adult Social Care,101,Third Party Payments,505,Private Contractors,5042,Revenue,22.RESIDENTIAL
04/09/2017,1492235,508.70,LADHAR GROUP CARE HOMES,377323,"Health, Education, Care and Safeguarding",Adult Social Care,101,Third Party Payments,505,Private Contractors,5042,Revenue,22.RESIDENTIAL
04/09/2017,1492235,508.70,LADHAR GROUP CARE HOMES,377323,"Health, Education, Care and Safeguarding",Adult Social Care,101,Third Party Payments,505,Private Contractors,5042,Revenue,22.RESIDENTIAL
04/09/2017,1492235,508.70,LADHAR GROUP CARE HOMES,377323,"Health, Education, Care and Safeguarding",Adult Social Care,101,Third Party Payments,505,Private Contractors,5042,Revenue,22.RESIDENTIAL
04/09/2017,1492235,508.70,LADHAR GROUP CARE HOMES,377323,"Health, Education, Care and Safeguarding",Adult Social Care,101,Third Party Payments,505,Private Contractors,5042,Revenue,22.RESIDENTIAL
04/09/2017,1492235,508.70,LADHAR GROUP CARE HOMES,377323,"Health, Education, Care and Safeguarding",Adult Social Care,101,Third Party Payments,505,Private Contractors,5042,Revenue,22.RESIDENTIAL
04/09/2017,1492235,584.59,LADHAR GROUP CARE HOMES,377323,"Health, Education, Care and Safeguarding",Adult Social Care,101,Third Party Payments,505,Private Contractors,5042,Revenue,22.RESIDENTIAL
04/09/2017,1492235,584.59,LADHAR GROUP CARE HOMES,377323,"Health, Education, Care and Safeguarding",Adult Social Care,101,Third Party Payments,505,Private Contractors,5042,Revenue,22.RESIDENTIAL
04/09/2017,1492235,643.20,LADHAR GROUP CARE HOMES,377323,"Health, Education, Care and Safeguarding",Public Health,112,Third Party Payments,505,Other Establishments,5041,Revenue,22.RESIDENTIAL
04/09/2017,1492235,693.75,LADHAR GROUP CARE HOMES,377323,"Health, Education, Care and Safeguarding",Public Health,112,Third Party Payments,505,Other Establishments,5041,Revenue,22.RESIDENTIAL
04/09/2017,1492235,693.75,LADHAR GROUP CARE HOMES,377323,"Health, Education, Care and Safeguarding",Public Health,112,Third Party Payments,505,Other Establishments,5041,Revenue,22.RESIDENTIAL
04/09/2017,1492235,693.75,LADHAR GROUP CARE HOMES,377323,"Health, Education, Care and Safeguarding",Public Health,112,Third Party Payments,505,Other Establishments,5041,Revenue,22.RESIDENTIAL
04/09/2017,1492235,693.75,LADHAR GROUP CARE HOMES,377323,"Health, Education, Care and Safeguarding",Public Health,112,Third Party Payments,505,Other Establishments,5041,Revenue,22.RESIDENTIAL
04/09/2017,1492235,930.30,LADHAR GROUP CARE HOMES,377323,"Health, Education, Care and Safeguarding",Adult Social Care,101,Third Party Payments,505,Other Establishments,5041,Revenue,22.RESIDENTIAL
04/09/2017,1492236,-100.15,NORTHERN LIFE CARE LTD T/A UBU LTD,214737,"Health, Education, Care and Safeguarding",Adult Social Care,101,Income,509,"Other Grants, Reimbursements & Contributions",5063,Revenue,22.RESIDENTIAL
04/09/2017,1492236,356.13,NORTHERN LIFE CARE LTD T/A UBU LTD,214737,"Health, Education, Care and Safeguarding",Adult Social Care,101,Third Party Payments,505,Private Contractors,5042,Revenue,22.RESIDENTIAL
04/09/2017,1492236,356.13,NORTHERN LIFE CARE LTD T/A UBU LTD,214737,"Health, Education, Care and Safeguarding",Adult Social Care,101,Third Party Payments,505,Private Contractors,5042,Revenue,22.RESIDENTIAL
04/09/2017,1492236,373.48,NORTHERN LIFE CARE LTD T/A UBU LTD,214737,"Health, Education, Care and Safeguarding",Adult Social Care,101,Third Party Payments,505,Private Contractors,5042,Revenue,22.RESIDENTIAL
04/09/2017,1492236,507.98,NORTHERN LIFE CARE LTD T/A UBU LTD,214737,"Health, Education, Care and Safeguarding",Adult Social Care,101,Third Party Payments,505,Private Contractors,5042,Revenue,22.RESIDENTIAL
04/09/2017,1492236,770.53,NORTHERN LIFE CARE LTD T/A UBU LTD,214737,"Health, Education, Care and Safeguarding",Adult Social Care,101,Third Party Payments,505,Private Contractors,5042,Revenue,22.RESIDENTIAL
04/09/2017,1492236,1096.03,NORTHERN LIFE CARE LTD T/A UBU LTD,214737,"Health, Education, Care and Safeguarding",Adult Social Care,101,Third Party Payments,505,Private Contractors,5042,Revenue,22.RESIDENTIAL
04/09/2017,1492236,1230.53,NORTHERN LIFE CARE LTD T/A UBU LTD,214737,"Health, Education, Care and Safeguarding",Adult Social Care,101,Third Party Payments,505,Private Contractors,5042,Revenue,22.RESIDENTIAL
04/09/2017,1492236,1349.48,NORTHERN LIFE CARE LTD T/A UBU LTD,214737,"Health, Education, Care and Safeguarding",Adult Social Care,101,Third Party Payments,505,Private Contractors,5042,Revenue,22.RESIDENTIAL
04/09/2017,1492236,1349.48,NORTHERN LIFE CARE LTD T/A UBU LTD,214737,"Health, Education, Care and Safeguarding",Adult Social Care,101,Third Party Payments,505,Private Contractors,5042,Revenue,22.RESIDENTIAL
04/09/2017,1492236,1349.48,NORTHERN LIFE CARE LTD T/A UBU LTD,214737,"Health, Education, Care and Safeguarding",Adult Social Care,101,Third Party Payments,505,Private Contractors,5042,Revenue,22.RESIDENTIAL
04/09/2017,1492236,1370.40,NORTHERN LIFE CARE LTD T/A UBU LTD,214737,"Health, Education, Care and Safeguarding",Adult Social Care,101,Third Party Payments,505,Private Contractors,5042,Revenue,22.RESIDENTIAL
04/09/2017,1492236,1489.83,NORTHERN LIFE CARE LTD T/A UBU LTD,214737,"Health, Education, Care and Safeguarding",Adult Social Care,101,Third Party Payments,505,Private Contractors,5042,Revenue,22.RESIDENTIAL
04/09/2017,1492236,1499.53,NORTHERN LIFE CARE LTD T/A UBU LTD,214737,"Health, Education, Care and Safeguarding",Adult Social Care,101,Third Party Payments,505,Private Contractors,5042,Revenue,22.RESIDENTIAL
04/09/2017,1492236,1575.70,NORTHERN LIFE CARE LTD T/A UBU LTD,214737,"Health, Education, Care and Safeguarding",Adult Social Care,101,Third Party Payments,505,Private Contractors,5042,Revenue,22.RESIDENTIAL
04/09/2017,1492236,2118.38,NORTHERN LIFE CARE LTD T/A UBU LTD,214737,"Health, Education, Care and Safeguarding",Public Health,112,Third Party Payments,505,Private Contractors,5042,Revenue,22.RESIDENTIAL
04/09/2017,1492236,2140.60,NORTHERN LIFE CARE LTD T/A UBU LTD,214737,"Health, Education, Care and Safeguarding",Adult Social Care,101,Third Party Payments,505,Private Contractors,5042,Revenue,22.RESIDENTIAL
04/09/2017,1492236,2595.85,NORTHERN LIFE CARE LTD T/A UBU LTD,214737,"Health, Education, Care and Safeguarding",Public Health,112,Third Party Payments,505,Private Contractors,5042,Revenue,22.RESIDENTIAL
04/09/2017,1492237,-134.45,PERCY HEDLEY FOUNDATION,252934,"Health, Education, Care and Safeguarding",Adult Social Care,101,Income,509,"Other Grants, Reimbursements & Contributions",5063,Revenue,22.DAY CARE SERVICES
04/09/2017,1492237,-100.65,PERCY HEDLEY FOUNDATION,252934,"Health, Education, Care and Safeguarding",Adult Social Care,101,Income,509,"Other Grants, Reimbursements & Contributions",5063,Revenue,22.DAY CARE SERVICES
04/09/2017,1492237,-100.65,PERCY HEDLEY FOUNDATION,252934,"Health, Education, Care and Safeguarding",Adult Social Care,101,Income,509,"Other Grants, Reimbursements & Contributions",5063,Revenue,22.DAY CARE SERVICES
04/09/2017,1492237,-100.65,PERCY HEDLEY FOUNDATION,252934,"Health, Education, Care and Safeguarding",Adult Social Care,101,Income,509,"Other Grants, Reimbursements & Contributions",5063,Revenue,22.DAY CARE SERVICES
04/09/2017,1492237,-100.65,PERCY HEDLEY FOUNDATION,252934,"Health, Education, Care and Safeguarding",Adult Social Care,101,Income,509,"Other Grants, Reimbursements & Contributions",5063,Revenue,22.DAY CARE SERVICES
04/09/2017,1492237,-100.65,PERCY HEDLEY FOUNDATION,252934,"Health, Education, Care and Safeguarding",Adult Social Care,101,Income,509,"Other Grants, Reimbursements & Contributions",5063,Revenue,22.DAY CARE SERVICES
04/09/2017,1492237,300.00,PERCY HEDLEY FOUNDATION,252934,"Health, Education, Care and Safeguarding",Adult Social Care,101,Third Party Payments,505,Other Establishments,5041,Revenue,22.DAY CARE SERVICES
04/09/2017,1492237,315.24,PERCY HEDLEY FOUNDATION,252934,"Health, Education, Care and Safeguarding",Adult Social Care,101,Third Party Payments,505,Private Contractors,5042,Revenue,22.DAY CARE SERVICES
04/09/2017,1492237,322.24,PERCY HEDLEY FOUNDATION,252934,"Health, Education, Care and Safeguarding",Adult Social Care,101,Third Party Payments,505,Other Establishments,5041,Revenue,22.DAY CARE SERVICES
04/09/2017,1492237,344.08,PERCY HEDLEY FOUNDATION,252934,"Health, Education, Care and Safeguarding",Adult Social Care,101,Third Party Payments,505,Private Contractors,5042,Revenue,22.DAY CARE SERVICES
04/09/2017,1492237,385.86,PERCY HEDLEY FOUNDATION,252934,"Health, Education, Care and Safeguarding",Adult Social Care,101,Third Party Payments,505,Private Contractors,5042,Revenue,22.DAY CARE SERVICES
04/09/2017,1492237,392.24,PERCY HEDLEY FOUNDATION,252934,"Health, Education, Care and Safeguarding",Adult Social Care,101,Third Party Payments,505,Private Contractors,5042,Revenue,22.DAY CARE SERVICES
04/09/2017,1492237,443.50,PERCY HEDLEY FOUNDATION,252934,"Health, Education, Care and Safeguarding",Adult Social Care,101,Third Party Payments,505,Private Contractors,5042,Revenue,22.DAY CARE SERVICES
04/09/2017,1492237,643.10,PERCY HEDLEY FOUNDATION,252934,"Health, Education, Care and Safeguarding",Adult Social Care,101,Third Party Payments,505,Private Contractors,5042,Revenue,22.DAY CARE SERVICES
04/09/2017,1492237,643.10,PERCY HEDLEY FOUNDATION,252934,"Health, Education, Care and Safeguarding",Adult Social Care,101,Third Party Payments,505,Private Contractors,5042,Revenue,22.DAY CARE SERVICES
04/09/2017,1492237,643.10,PERCY HEDLEY FOUNDATION,252934,"Health, Education, Care and Safeguarding",Adult Social Care,101,Third Party Payments,505,Private Contractors,5042,Revenue,22.DAY CARE SERVICES
04/09/2017,1492237,643.10,PERCY HEDLEY FOUNDATION,252934,"Health, Education, Care and Safeguarding",Adult Social Care,101,Third Party Payments,505,Private Contractors,5042,Revenue,22.DAY CARE SERVICES
04/09/2017,1492237,643.10,PERCY HEDLEY FOUNDATION,252934,"Health, Education, Care and Safeguarding",Adult Social Care,101,Third Party Payments,505,Private Contractors,5042,Revenue,22.DAY CARE SERVICES
04/09/2017,1492237,643.10,PERCY HEDLEY FOUNDATION,252934,"Health, Education, Care and Safeguarding",Adult Social Care,101,Third Party Payments,505,Private Contractors,5042,Revenue,22.DAY CARE SERVICES
04/09/2017,1492237,721.39,PERCY HEDLEY FOUNDATION,252934,"Health, Education, Care and Safeguarding",Adult Social Care,101,Third Party Payments,505,Private Contractors,5042,Revenue,22.DAY CARE SERVICES
04/09/2017,1492237,721.39,PERCY HEDLEY FOUNDATION,252934,"Health, Education, Care and Safeguarding",Adult Social Care,101,Third Party Payments,505,Private Contractors,5042,Revenue,22.DAY CARE SERVICES
04/09/2017,1492237,721.40,PERCY HEDLEY FOUNDATION,252934,"Health, Education, Care and Safeguarding",Adult Social Care,101,Third Party Payments,505,Private Contractors,5042,Revenue,22.DAY CARE SERVICES
04/09/2017,1492237,721.40,PERCY HEDLEY FOUNDATION,252934,"Health, Education, Care and Safeguarding",Adult Social Care,101,Third Party Payments,505,Private Contractors,5042,Revenue,22.DAY CARE SERVICES
04/09/2017,1492237,726.30,PERCY HEDLEY FOUNDATION,252934,"Health, Education, Care and Safeguarding",Adult Social Care,101,Third Party Payments,505,Private Contractors,5042,Revenue,22.DAY CARE SERVICES
04/09/2017,1492237,729.61,PERCY HEDLEY FOUNDATION,252934,"Health, Education, Care and Safeguarding",Adult Social Care,101,Third Party Payments,505,Private Contractors,5042,Revenue,22.DAY CARE SERVICES
04/09/2017,1492237,733.73,PERCY HEDLEY FOUNDATION,252934,"Health, Education, Care and Safeguarding",Adult Social Care,101,Third Party Payments,505,Private Contractors,5042,Revenue,22.DAY CARE SERVICES
04/09/2017,1492237,797.53,PERCY HEDLEY FOUNDATION,252934,"Health, Education, Care and Safeguarding",Adult Social Care,101,Third Party Payments,505,Private Contractors,5042,Revenue,22.DAY CARE SERVICES
04/09/2017,1492237,2218.82,PERCY HEDLEY FOUNDATION,252934,"Health, Education, Care and Safeguarding",Adult Social Care,101,Third Party Payments,505,Private Contractors,5042,Revenue,22.DAY CARE SERVICES
04/09/2017,1492238,1226.56,ESPA LIMITED,327122,"Health, Education, Care and Safeguarding",Adult Social Care,101,Third Party Payments,505,Private Contractors,5042,Revenue,22.RESIDENTIAL
04/09/2017,1492238,1567.40,ESPA LIMITED,327122,"Health, Education, Care and Safeguarding",Adult Social Care,101,Third Party Payments,505,Private Contractors,5042,Revenue,22.RESIDENTIAL
04/09/2017,1492238,1599.33,ESPA LIMITED,327122,"Health, Education, Care and Safeguarding",Adult Social Care,101,Third Party Payments,505,Private Contractors,5042,Revenue,22.RESIDENTIAL
04/09/2017,1492238,5009.60,ESPA LIMITED,327122,"Health, Education, Care and Safeguarding",Adult Social Care,101,Third Party Payments,505,Private Contractors,5042,Revenue,22.RESIDENTIAL
04/09/2017,1492239,444.00,MENCAP,276682,"Health, Education, Care and Safeguarding",Adult Social Care,101,Third Party Payments,505,Private Contractors,5042,Revenue,22.SUPPORT SERVICES
04/09/2017,1492239,561.69,MENCAP,276682,"Health, Education, Care and Safeguarding",Adult Social Care,101,Third Party Payments,505,Private Contractors,5042,Revenue,22.SUPPORT SERVICES
04/09/2017,1492239,605.40,MENCAP,276682,"Health, Education, Care and Safeguarding",Adult Social Care,101,Third Party Payments,505,Private Contractors,5042,Revenue,22.SUPPORT SERVICES
04/09/2017,1492239,642.39,MENCAP,276682,"Health, Education, Care and Safeguarding",Adult Social Care,101,Third Party Payments,505,Private Contractors,5042,Revenue,22.SUPPORT SERVICES
04/09/2017,1492239,668.26,MENCAP,276682,"Health, Education, Care and Safeguarding",Adult Social Care,101,Third Party Payments,505,Private Contractors,5042,Revenue,22.SUPPORT SERVICES
04/09/2017,1492239,846.48,MENCAP,276682,"Health, Education, Care and Safeguarding",Adult Social Care,101,Third Party Payments,505,Private Contractors,5042,Revenue,22.SUPPORT SERVICES
04/09/2017,1492239,1088.58,MENCAP,276682,"Health, Education, Care and Safeguarding",Adult Social Care,101,Third Party Payments,505,Private Contractors,5042,Revenue,22.SUPPORT SERVICES
04/09/2017,1492240,315.00,Redacted Personal Data,387449,"Health, Education, Care and Safeguarding",Adult Social Care,101,Third Party Payments,505,Other Establishments,5041,Revenue,NON INDIVIDUAL
04/09/2017,1492241,508.42,PALMERSDENE CARE HOME,354224,"Health, Education, Care and Safeguarding",Adult Social Care,101,Third Party Payments,505,Private Contractors,5042,Revenue,22.RESIDENTIAL
04/09/2017,1492242,316.00,Redacted Personal Data,353244,"Health, Education, Care and Safeguarding",Adult Social Care,101,Third Party Payments,505,Other Establishments,5041,Revenue,NON INDIVIDUAL
04/09/2017,1492245,876.38,Redacted Personal Data,387181,"Health, Education, Care and Safeguarding",Adult Social Care,101,Third Party Payments,505,Other Establishments,5041,Revenue,NON INDIVIDUAL
04/09/2017,1492246,1032.44,Redacted Personal Data,387180,"Health, Education, Care and Safeguarding",Adult Social Care,101,Third Party Payments,505,Other Establishments,5041,Revenue,00.NON INFLUENCIBLE
04/09/2017,1492248,746.46,Redacted Personal Data,387028,"Health, Education, Care and Safeguarding",Adult Social Care,101,Third Party Payments,505,Other Establishments,5041,Revenue,NON INDIVIDUAL
04/09/2017,1492250,584.59,KIRKWOOD COURT C/O HELEN MCARDLE CARE,386869,"Health, Education, Care and Safeguarding",Adult Social Care,101,Third Party Payments,505,Private Contractors,5042,Revenue,22.RESIDENTIAL
04/09/2017,1492253,450.51,Redacted Personal Data,386655,"Health, Education, Care and Safeguarding",Adult Social Care,101,Third Party Payments,505,Other Establishments,5041,Revenue,NON INDIVIDUAL
04/09/2017,1492261,393.80,Redacted Personal Data,359600,"Health, Education, Care and Safeguarding",Adult Social Care,101,Third Party Payments,505,Other Establishments,5041,Revenue,NON INDIVIDUAL
04/09/2017,1492264,514.54,Redacted Personal Data,386268,"Health, Education, Care and Safeguarding",Adult Social Care,101,Third Party Payments,505,Other Establishments,5041,Revenue,00.NON INFLUENCIBLE
04/09/2017,1492266,507.64,CRAMLINGTON HOUSE LTD,389741,"Health, Education, Care and Safeguarding",Adult Social Care,101,Third Party Payments,505,Private Contractors,5042,Revenue,22.RESIDENTIAL
04/09/2017,1492266,507.64,CRAMLINGTON HOUSE LTD,389741,"Health, Education, Care and Safeguarding",Adult Social Care,101,Third Party Payments,505,Private Contractors,5042,Revenue,22.RESIDENTIAL
04/09/2017,1492266,507.64,CRAMLINGTON HOUSE LTD,389741,"Health, Education, Care and Safeguarding",Adult Social Care,101,Third Party Payments,505,Private Contractors,5042,Revenue,22.RESIDENTIAL
04/09/2017,1492266,520.05,CRAMLINGTON HOUSE LTD,389741,"Health, Education, Care and Safeguarding",Adult Social Care,101,Third Party Payments,505,Private Contractors,5042,Revenue,22.RESIDENTIAL
04/09/2017,1492266,520.05,CRAMLINGTON HOUSE LTD,389741,"Health, Education, Care and Safeguarding",Adult Social Care,101,Third Party Payments,505,Private Contractors,5042,Revenue,22.RESIDENTIAL
04/09/2017,1492266,520.05,CRAMLINGTON HOUSE LTD,389741,"Health, Education, Care and Safeguarding",Adult Social Care,101,Third Party Payments,505,Private Contractors,5042,Revenue,22.RESIDENTIAL
04/09/2017,1492266,520.05,CRAMLINGTON HOUSE LTD,389741,"Health, Education, Care and Safeguarding",Adult Social Care,101,Third Party Payments,505,Private Contractors,5042,Revenue,22.RESIDENTIAL
04/09/2017,1492266,520.05,CRAMLINGTON HOUSE LTD,389741,"Health, Education, Care and Safeguarding",Adult Social Care,101,Third Party Payments,505,Private Contractors,5042,Revenue,22.RESIDENTIAL
04/09/2017,1492266,520.05,CRAMLINGTON HOUSE LTD,389741,"Health, Education, Care and Safeguarding",Adult Social Care,101,Third Party Payments,505,Private Contractors,5042,Revenue,22.RESIDENTIAL
04/09/2017,1492266,520.05,CRAMLINGTON HOUSE LTD,389741,"Health, Education, Care and Safeguarding",Adult Social Care,101,Third Party Payments,505,Private Contractors,5042,Revenue,22.RESIDENTIAL
04/09/2017,1492266,520.05,CRAMLINGTON HOUSE LTD,389741,"Health, Education, Care and Safeguarding",Adult Social Care,101,Third Party Payments,505,Private Contractors,5042,Revenue,22.RESIDENTIAL
04/09/2017,1492266,520.05,CRAMLINGTON HOUSE LTD,389741,"Health, Education, Care and Safeguarding",Adult Social Care,101,Third Party Payments,505,Private Contractors,5042,Revenue,22.RESIDENTIAL
04/09/2017,1492266,520.05,CRAMLINGTON HOUSE LTD,389741,"Health, Education, Care and Safeguarding",Adult Social Care,101,Third Party Payments,505,Private Contractors,5042,Revenue,22.RESIDENTIAL
04/09/2017,1492266,520.05,CRAMLINGTON HOUSE LTD,389741,"Health, Education, Care and Safeguarding",Adult Social Care,101,Third Party Payments,505,Private Contractors,5042,Revenue,22.RESIDENTIAL
04/09/2017,1492266,520.05,CRAMLINGTON HOUSE LTD,389741,"Health, Education, Care and Safeguarding",Adult Social Care,101,Third Party Payments,505,Private Contractors,5042,Revenue,22.RESIDENTIAL
04/09/2017,1492266,520.05,CRAMLINGTON HOUSE LTD,389741,"Health, Education, Care and Safeguarding",Adult Social Care,101,Third Party Payments,505,Private Contractors,5042,Revenue,22.RESIDENTIAL
04/09/2017,1492266,520.05,CRAMLINGTON HOUSE LTD,389741,"Health, Education, Care and Safeguarding",Adult Social Care,101,Third Party Payments,505,Private Contractors,5042,Revenue,22.RESIDENTIAL
04/09/2017,1492266,523.74,CRAMLINGTON HOUSE LTD,389741,"Health, Education, Care and Safeguarding",Adult Social Care,101,Third Party Payments,505,Private Contractors,5042,Revenue,22.RESIDENTIAL
04/09/2017,1492266,538.64,CRAMLINGTON HOUSE LTD,389741,"Health, Education, Care and Safeguarding",Adult Social Care,101,Third Party Payments,505,Private Contractors,5042,Revenue,22.RESIDENTIAL
04/09/2017,1492266,538.64,CRAMLINGTON HOUSE LTD,389741,"Health, Education, Care and Safeguarding",Adult Social Care,101,Third Party Payments,505,Private Contractors,5042,Revenue,22.RESIDENTIAL
04/09/2017,1492266,538.64,CRAMLINGTON HOUSE LTD,389741,"Health, Education, Care and Safeguarding",Adult Social Care,101,Third Party Payments,505,Private Contractors,5042,Revenue,22.RESIDENTIAL
04/09/2017,1492266,538.64,CRAMLINGTON HOUSE LTD,389741,"Health, Education, Care and Safeguarding",Adult Social Care,101,Third Party Payments,505,Private Contractors,5042,Revenue,22.RESIDENTIAL
04/09/2017,1492266,538.64,CRAMLINGTON HOUSE LTD,389741,"Health, Education, Care and Safeguarding",Adult Social Care,101,Third Party Payments,505,Private Contractors,5042,Revenue,22.RESIDENTIAL
04/09/2017,1492266,538.64,CRAMLINGTON HOUSE LTD,389741,"Health, Education, Care and Safeguarding",Adult Social Care,101,Third Party Payments,505,Private Contractors,5042,Revenue,22.RESIDENTIAL
04/09/2017,1492266,538.64,CRAMLINGTON HOUSE LTD,389741,"Health, Education, Care and Safeguarding",Adult Social Care,101,Third Party Payments,505,Private Contractors,5042,Revenue,22.RESIDENTIAL
04/09/2017,1492266,538.64,CRAMLINGTON HOUSE LTD,389741,"Health, Education, Care and Safeguarding",Adult Social Care,101,Third Party Payments,505,Private Contractors,5042,Revenue,22.RESIDENTIAL
04/09/2017,1492266,538.64,CRAMLINGTON HOUSE LTD,389741,"Health, Education, Care and Safeguarding",Adult Social Care,101,Third Party Payments,505,Private Contractors,5042,Revenue,22.RESIDENTIAL
04/09/2017,1492266,538.64,CRAMLINGTON HOUSE LTD,389741,"Health, Education, Care and Safeguarding",Adult Social Care,101,Third Party Payments,505,Private Contractors,5042,Revenue,22.RESIDENTIAL
04/09/2017,1492268,524.00,PARKSIDE CARE LTD,389720,"Health, Education, Care and Safeguarding",Adult Social Care,101,Third Party Payments,505,Private Contractors,5042,Revenue,22.RESIDENTIAL
04/09/2017,1492273,493.63,DEMENTIA CARE PARTNERSHIP,346841,"Health, Education, Care and Safeguarding",Public Health,112,Third Party Payments,505,Private Contractors,5042,Revenue,22.SUPPORT SERVICES
04/09/2017,1492273,493.63,DEMENTIA CARE PARTNERSHIP,346841,"Health, Education, Care and Safeguarding",Public Health,112,Third Party Payments,505,Private Contractors,5042,Revenue,22.SUPPORT SERVICES
04/09/2017,1492273,731.60,DEMENTIA CARE PARTNERSHIP,346841,"Health, Education, Care and Safeguarding",Public Health,112,Third Party Payments,505,Private Contractors,5042,Revenue,22.SUPPORT SERVICES
04/09/2017,1492277,512.00,SPRING VALE COURT MANAGEMENT COMPANY LIMITED,389438,"Health, Education, Care and Safeguarding",Adult Social Care,101,Third Party Payments,505,Private Contractors,5042,Revenue,22.RESIDENTIAL
04/09/2017,1492279,270.00,LEARNING DISABILITIES FEDERATION,350895,"Health, Education, Care and Safeguarding",Adult Social Care,101,Third Party Payments,505,Other Establishments,5041,Revenue,22.SUPPORT SERVICES
04/09/2017,1492279,270.00,LEARNING DISABILITIES FEDERATION,350895,"Health, Education, Care and Safeguarding",Adult Social Care,101,Third Party Payments,505,Other Establishments,5041,Revenue,22.SUPPORT SERVICES
04/09/2017,1492279,377.91,LEARNING DISABILITIES FEDERATION,350895,"Health, Education, Care and Safeguarding",Adult Social Care,101,Third Party Payments,505,Other Establishments,5041,Revenue,22.SUPPORT SERVICES
04/09/2017,1492279,462.70,LEARNING DISABILITIES FEDERATION,350895,"Health, Education, Care and Safeguarding",Adult Social Care,101,Third Party Payments,505,Other Establishments,5041,Revenue,22.SUPPORT SERVICES
04/09/2017,1492281,1348.60,Redacted Personal Data,389290,"Health, Education, Care and Safeguarding",Adult Social Care,101,Third Party Payments,505,Other Establishments,5041,Revenue,00.NON INFLUENCIBLE
04/09/2017,1492283,1471.90,ST ANNE'S COMMUNITY SERVICES,366247,"Health, Education, Care and Safeguarding",Adult Social Care,101,Third Party Payments,505,Private Contractors,5042,Revenue,22.DAY CARE SERVICES
04/09/2017,1492283,1471.90,ST ANNE'S COMMUNITY SERVICES,366247,"Health, Education, Care and Safeguarding",Adult Social Care,101,Third Party Payments,505,Private Contractors,5042,Revenue,22.DAY CARE SERVICES
04/09/2017,1492283,1471.90,ST ANNE'S COMMUNITY SERVICES,366247,"Health, Education, Care and Safeguarding",Adult Social Care,101,Third Party Payments,505,Private Contractors,5042,Revenue,22.DAY CARE SERVICES
04/09/2017,1492283,1671.90,ST ANNE'S COMMUNITY SERVICES,366247,"Health, Education, Care and Safeguarding",Adult Social Care,101,Third Party Payments,505,Private Contractors,5042,Revenue,22.DAY CARE SERVICES
04/09/2017,1492283,1752.60,ST ANNE'S COMMUNITY SERVICES,366247,"Health, Education, Care and Safeguarding",Adult Social Care,101,Third Party Payments,505,Private Contractors,5042,Revenue,22.DAY CARE SERVICES
04/09/2017,1492283,1874.95,ST ANNE'S COMMUNITY SERVICES,366247,"Health, Education, Care and Safeguarding",Adult Social Care,101,Third Party Payments,505,Private Contractors,5042,Revenue,22.DAY CARE SERVICES
04/09/2017,1492285,368.90,Redacted Personal Data,389224,"Health, Education, Care and Safeguarding",Adult Social Care,101,Third Party Payments,505,Other Establishments,5041,Revenue,00.NON INFLUENCIBLE
04/09/2017,1492287,287.60,FIRST MOVE CARE LTD,341358,"Health, Education, Care and Safeguarding",Adult Social Care,101,Third Party Payments,505,Other Establishments,5041,Revenue,22.DAY CARE SERVICES
04/09/2017,1492287,352.28,FIRST MOVE CARE LTD,341358,"Health, Education, Care and Safeguarding",Adult Social Care,101,Third Party Payments,505,Other Establishments,5041,Revenue,22.DAY CARE SERVICES
04/09/2017,1492287,373.91,FIRST MOVE CARE LTD,341358,"Health, Education, Care and Safeguarding",Adult Social Care,101,Third Party Payments,505,Other Establishments,5041,Revenue,22.DAY CARE SERVICES
04/09/2017,1492287,392.25,FIRST MOVE CARE LTD,341358,"Health, Education, Care and Safeguarding",Adult Social Care,101,Third Party Payments,505,Other Establishments,5041,Revenue,22.DAY CARE SERVICES
04/09/2017,1492287,402.54,FIRST MOVE CARE LTD,341358,"Health, Education, Care and Safeguarding",Adult Social Care,101,Third Party Payments,505,Other Establishments,5041,Revenue,22.DAY CARE SERVICES
04/09/2017,1492288,524.00,HELEN MCARDLE CARE LTD,389131,"Health, Education, Care and Safeguarding",Adult Social Care,101,Third Party Payments,505,Private Contractors,5042,Revenue,22.RESIDENTIAL
04/09/2017,1492288,542.00,HELEN MCARDLE CARE LTD,389131,"Health, Education, Care and Safeguarding",Adult Social Care,101,Third Party Payments,505,Private Contractors,5042,Revenue,22.RESIDENTIAL
04/09/2017,1492292,262.15,Redacted Personal Data,356537,"Health, Education, Care and Safeguarding",Adult Social Care,101,Third Party Payments,505,Other Establishments,5041,Revenue,NON INDIVIDUAL
04/09/2017,1492292,316.00,Redacted Personal Data,356537,"Health, Education, Care and Safeguarding",Adult Social Care,101,Third Party Payments,505,Other Establishments,5041,Revenue,NON INDIVIDUAL
04/09/2017,1492293,292.66,Redacted Personal Data,357726,"Health, Education, Care and Safeguarding",Adult Social Care,101,Third Party Payments,505,Other Establishments,5041,Revenue,NON INDIVIDUAL
04/09/2017,1492294,-348.68,ROSEMOUNT - FOUR SEASONS HEALTH CARE,300716,"Health, Education, Care and Safeguarding",Adult Social Care,101,Third Party Payments,505,Private Contractors,5042,Revenue,22.RESIDENTIAL
04/09/2017,1492294,390.52,ROSEMOUNT - FOUR SEASONS HEALTH CARE,300716,"Health, Education, Care and Safeguarding",Adult Social Care,101,Third Party Payments,505,Private Contractors,5042,Revenue,22.RESIDENTIAL
04/09/2017,1492294,488.15,ROSEMOUNT - FOUR SEASONS HEALTH CARE,300716,"Health, Education, Care and Safeguarding",Adult Social Care,101,Third Party Payments,505,Private Contractors,5042,Revenue,22.RESIDENTIAL
04/09/2017,1492294,488.15,ROSEMOUNT - FOUR SEASONS HEALTH CARE,300716,"Health, Education, Care and Safeguarding",Adult Social Care,101,Third Party Payments,505,Private Contractors,5042,Revenue,22.RESIDENTIAL
04/09/2017,1492294,488.15,ROSEMOUNT - FOUR SEASONS HEALTH CARE,300716,"Health, Education, Care and Safeguarding",Adult Social Care,101,Third Party Payments,505,Private Contractors,5042,Revenue,22.RESIDENTIAL
04/09/2017,1492294,488.15,ROSEMOUNT - FOUR SEASONS HEALTH CARE,300716,"Health, Education, Care and Safeguarding",Adult Social Care,101,Third Party Payments,505,Private Contractors,5042,Revenue,22.RESIDENTIAL
04/09/2017,1492294,488.15,ROSEMOUNT - FOUR SEASONS HEALTH CARE,300716,"Health, Education, Care and Safeguarding",Adult Social Care,101,Third Party Payments,505,Private Contractors,5042,Revenue,22.RESIDENTIAL
04/09/2017,1492294,488.15,ROSEMOUNT - FOUR SEASONS HEALTH CARE,300716,"Health, Education, Care and Safeguarding",Adult Social Care,101,Third Party Payments,505,Private Contractors,5042,Revenue,22.RESIDENTIAL
04/09/2017,1492294,488.15,ROSEMOUNT - FOUR SEASONS HEALTH CARE,300716,"Health, Education, Care and Safeguarding",Adult Social Care,101,Third Party Payments,505,Private Contractors,5042,Revenue,22.RESIDENTIAL
04/09/2017,1492294,488.15,ROSEMOUNT - FOUR SEASONS HEALTH CARE,300716,"Health, Education, Care and Safeguarding",Adult Social Care,101,Third Party Payments,505,Private Contractors,5042,Revenue,22.RESIDENTIAL
04/09/2017,1492294,488.15,ROSEMOUNT - FOUR SEASONS HEALTH CARE,300716,"Health, Education, Care and Safeguarding",Adult Social Care,101,Third Party Payments,505,Private Contractors,5042,Revenue,22.RESIDENTIAL
04/09/2017,1492294,488.15,ROSEMOUNT - FOUR SEASONS HEALTH CARE,300716,"Health, Education, Care and Safeguarding",Adult Social Care,101,Third Party Payments,505,Private Contractors,5042,Revenue,22.RESIDENTIAL
04/09/2017,1492294,488.15,ROSEMOUNT - FOUR SEASONS HEALTH CARE,300716,"Health, Education, Care and Safeguarding",Adult Social Care,101,Third Party Payments,505,Private Contractors,5042,Revenue,22.RESIDENTIAL
04/09/2017,1492294,488.15,ROSEMOUNT - FOUR SEASONS HEALTH CARE,300716,"Health, Education, Care and Safeguarding",Adult Social Care,101,Third Party Payments,505,Private Contractors,5042,Revenue,22.RESIDENTIAL
04/09/2017,1492294,488.15,ROSEMOUNT - FOUR SEASONS HEALTH CARE,300716,"Health, Education, Care and Safeguarding",Adult Social Care,101,Third Party Payments,505,Private Contractors,5042,Revenue,22.RESIDENTIAL
04/09/2017,1492294,488.15,ROSEMOUNT - FOUR SEASONS HEALTH CARE,300716,"Health, Education, Care and Safeguarding",Adult Social Care,101,Third Party Payments,505,Private Contractors,5042,Revenue,22.RESIDENTIAL
04/09/2017,1492294,488.15,ROSEMOUNT - FOUR SEASONS HEALTH CARE,300716,"Health, Education, Care and Safeguarding",Adult Social Care,101,Third Party Payments,505,Private Contractors,5042,Revenue,22.RESIDENTIAL
04/09/2017,1492294,488.15,ROSEMOUNT - FOUR SEASONS HEALTH CARE,300716,"Health, Education, Care and Safeguarding",Adult Social Care,101,Third Party Payments,505,Private Contractors,5042,Revenue,22.RESIDENTIAL
04/09/2017,1492294,488.15,ROSEMOUNT - FOUR SEASONS HEALTH CARE,300716,"Health, Education, Care and Safeguarding",Adult Social Care,101,Third Party Payments,505,Private Contractors,5042,Revenue,22.RESIDENTIAL
04/09/2017,1492294,488.15,ROSEMOUNT - FOUR SEASONS HEALTH CARE,300716,"Health, Education, Care and Safeguarding",Adult Social Care,101,Third Party Payments,505,Private Contractors,5042,Revenue,22.RESIDENTIAL
04/09/2017,1492294,488.15,ROSEMOUNT - FOUR SEASONS HEALTH CARE,300716,"Health, Education, Care and Safeguarding",Adult Social Care,101,Third Party Payments,505,Private Contractors,5042,Revenue,22.RESIDENTIAL
04/09/2017,1492294,488.15,ROSEMOUNT - FOUR SEASONS HEALTH CARE,300716,"Health, Education, Care and Safeguarding",Adult Social Care,101,Third Party Payments,505,Private Contractors,5042,Revenue,22.RESIDENTIAL
04/09/2017,1492294,508.70,ROSEMOUNT - FOUR SEASONS HEALTH CARE,300716,"Health, Education, Care and Safeguarding",Adult Social Care,101,Third Party Payments,505,Private Contractors,5042,Revenue,22.RESIDENTIAL
04/09/2017,1492294,508.70,ROSEMOUNT - FOUR SEASONS HEALTH CARE,300716,"Health, Education, Care and Safeguarding",Adult Social Care,101,Third Party Payments,505,Private Contractors,5042,Revenue,22.RESIDENTIAL
04/09/2017,1492294,508.70,ROSEMOUNT - FOUR SEASONS HEALTH CARE,300716,"Health, Education, Care and Safeguarding",Adult Social Care,101,Third Party Payments,505,Private Contractors,5042,Revenue,22.RESIDENTIAL
04/09/2017,1492294,508.70,ROSEMOUNT - FOUR SEASONS HEALTH CARE,300716,"Health, Education, Care and Safeguarding",Adult Social Care,101,Third Party Payments,505,Private Contractors,5042,Revenue,22.RESIDENTIAL
04/09/2017,1492294,508.70,ROSEMOUNT - FOUR SEASONS HEALTH CARE,300716,"Health, Education, Care and Safeguarding",Adult Social Care,101,Third Party Payments,505,Private Contractors,5042,Revenue,22.RESIDENTIAL
04/09/2017,1492294,508.70,ROSEMOUNT - FOUR SEASONS HEALTH CARE,300716,"Health, Education, Care and Safeguarding",Adult Social Care,101,Third Party Payments,505,Private Contractors,5042,Revenue,22.RESIDENTIAL
04/09/2017,1492294,643.20,ROSEMOUNT - FOUR SEASONS HEALTH CARE,300716,"Health, Education, Care and Safeguarding",Adult Social Care,101,Third Party Payments,505,Other Establishments,5041,Revenue,22.RESIDENTIAL
04/09/2017,1492294,643.20,ROSEMOUNT - FOUR SEASONS HEALTH CARE,300716,"Health, Education, Care and Safeguarding",Adult Social Care,101,Third Party Payments,505,Other Establishments,5041,Revenue,22.RESIDENTIAL
04/09/2017,1492294,673.20,ROSEMOUNT - FOUR SEASONS HEALTH CARE,300716,"Health, Education, Care and Safeguarding",Public Health,112,Third Party Payments,505,Other Establishments,5041,Revenue,22.RESIDENTIAL
04/09/2017,1492294,1063.20,ROSEMOUNT - FOUR SEASONS HEALTH CARE,300716,"Health, Education, Care and Safeguarding",Adult Social Care,101,Third Party Payments,505,Other Establishments,5041,Revenue,22.RESIDENTIAL
04/09/2017,1492294,2950.00,ROSEMOUNT - FOUR SEASONS HEALTH CARE,300716,"Health, Education, Care and Safeguarding",Adult Social Care,101,Third Party Payments,505,Other Establishments,5041,Revenue,22.RESIDENTIAL
04/09/2017,1492295,1491.00,Redacted Personal Data,300710,"Health, Education, Care and Safeguarding",Adult Social Care,101,Third Party Payments,505,Private Contractors,5042,Revenue,22.RESIDENTIAL
04/09/2017,1492296,-130.70,ALBANY CARE HOMES LIMITED,334954,"Health, Education, Care and Safeguarding",Adult Social Care,101,Income,509,"Other Grants, Reimbursements & Contributions",5063,Revenue,22.RESIDENTIAL
04/09/2017,1492296,440.64,ALBANY CARE HOMES LIMITED,334954,"Health, Education, Care and Safeguarding",Adult Social Care,101,Third Party Payments,505,Private Contractors,5042,Revenue,22.RESIDENTIAL
04/09/2017,1492296,440.64,ALBANY CARE HOMES LIMITED,334954,"Health, Education, Care and Safeguarding",Adult Social Care,101,Third Party Payments,505,Private Contractors,5042,Revenue,22.RESIDENTIAL
04/09/2017,1492296,440.64,ALBANY CARE HOMES LIMITED,334954,"Health, Education, Care and Safeguarding",Adult Social Care,101,Third Party Payments,505,Private Contractors,5042,Revenue,22.RESIDENTIAL
04/09/2017,1492296,440.64,ALBANY CARE HOMES LIMITED,334954,"Health, Education, Care and Safeguarding",Adult Social Care,101,Third Party Payments,505,Private Contractors,5042,Revenue,22.RESIDENTIAL
04/09/2017,1492296,440.64,ALBANY CARE HOMES LIMITED,334954,"Health, Education, Care and Safeguarding",Adult Social Care,101,Third Party Payments,505,Private Contractors,5042,Revenue,22.RESIDENTIAL
04/09/2017,1492296,440.64,ALBANY CARE HOMES LIMITED,334954,"Health, Education, Care and Safeguarding",Adult Social Care,101,Third Party Payments,505,Private Contractors,5042,Revenue,22.RESIDENTIAL
04/09/2017,1492296,440.64,ALBANY CARE HOMES LIMITED,334954,"Health, Education, Care and Safeguarding",Adult Social Care,101,Third Party Payments,505,Private Contractors,5042,Revenue,22.RESIDENTIAL
04/09/2017,1492296,440.64,ALBANY CARE HOMES LIMITED,334954,"Health, Education, Care and Safeguarding",Adult Social Care,101,Third Party Payments,505,Private Contractors,5042,Revenue,22.RESIDENTIAL
04/09/2017,1492297,333.01,SWIFT - PREPAID CARDS,299980,"Health, Education, Care and Safeguarding",Adult Social Care,101,Third Party Payments,505,Other Establishments,5041,Revenue,22.SUPPORT SERVICES
04/09/2017,1492313,3440.64,SWIFT - PREPAID CARDS,299980,"Health, Education, Care and Safeguarding",Adult Social Care,101,Third Party Payments,505,Other Establishments,5041,Revenue,22.SUPPORT SERVICES
04/09/2017,1492324,290.00,SWIFT - PREPAID CARDS,299980,"Health, Education, Care and Safeguarding",Adult Social Care,101,Third Party Payments,505,Other Establishments,5041,Revenue,22.SUPPORT SERVICES
04/09/2017,1492326,392.00,SWIFT - PREPAID CARDS,299980,"Health, Education, Care and Safeguarding",Adult Social Care,101,Third Party Payments,505,Other Establishments,5041,Revenue,22.SUPPORT SERVICES
04/09/2017,1492333,356.72,SWIFT - PREPAID CARDS,299980,"Health, Education, Care and Safeguarding",Adult Social Care,101,Third Party Payments,505,Other Establishments,5041,Revenue,22.SUPPORT SERVICES
04/09/2017,1492336,1290.14,SWIFT - PREPAID CARDS,299980,"Health, Education, Care and Safeguarding",Adult Social Care,101,Third Party Payments,505,Other Establishments,5041,Revenue,22.SUPPORT SERVICES
04/09/2017,1492337,560.00,SWIFT - PREPAID CARDS,299980,"Health, Education, Care and Safeguarding",Adult Social Care,101,Third Party Payments,505,Other Establishments,5041,Revenue,22.SUPPORT SERVICES
04/09/2017,1492338,298.29,SWIFT - PREPAID CARDS,299980,"Health, Education, Care and Safeguarding",Adult Social Care,101,Third Party Payments,505,Other Establishments,5041,Revenue,22.SUPPORT SERVICES
04/09/2017,1492342,311.40,SWIFT - PREPAID CARDS,299980,"Health, Education, Care and Safeguarding",Adult Social Care,101,Third Party Payments,505,Other Establishments,5041,Revenue,22.SUPPORT SERVICES
04/09/2017,1492343,549.94,SWIFT - PREPAID CARDS,299980,"Health, Education, Care and Safeguarding",Adult Social Care,101,Third Party Payments,505,Other Establishments,5041,Revenue,22.SUPPORT SERVICES
04/09/2017,1492348,271.16,SWIFT - PREPAID CARDS,299980,"Health, Education, Care and Safeguarding",Adult Social Care,101,Third Party Payments,505,Other Establishments,5041,Revenue,22.SUPPORT SERVICES
04/09/2017,1492349,600.00,SWIFT - PREPAID CARDS,299980,"Health, Education, Care and Safeguarding",Adult Social Care,101,Third Party Payments,505,Other Establishments,5041,Revenue,22.SUPPORT SERVICES
04/09/2017,1492350,590.34,SWIFT - PREPAID CARDS,299980,"Health, Education, Care and Safeguarding",Adult Social Care,101,Third Party Payments,505,Other Establishments,5041,Revenue,22.SUPPORT SERVICES
04/09/2017,1492351,567.73,SWIFT - PREPAID CARDS,299980,"Health, Education, Care and Safeguarding",Adult Social Care,101,Third Party Payments,505,Other Establishments,5041,Revenue,22.SUPPORT SERVICES
04/09/2017,1492363,360.64,SWIFT - PREPAID CARDS,299980,"Health, Education, Care and Safeguarding",Adult Social Care,101,Third Party Payments,505,Other Establishments,5041,Revenue,22.SUPPORT SERVICES
04/09/2017,1492374,1488.50,SWIFT - PREPAID CARDS,299980,"Health, Education, Care and Safeguarding",Adult Social Care,101,Third Party Payments,505,Other Establishments,5041,Revenue,22.SUPPORT SERVICES
04/09/2017,1492377,260.05,SWIFT - PREPAID CARDS,299980,"Health, Education, Care and Safeguarding",Adult Social Care,101,Third Party Payments,505,Other Establishments,5041,Revenue,22.SUPPORT SERVICES
04/09/2017,1492379,1945.44,SWIFT - PREPAID CARDS,299980,"Health, Education, Care and Safeguarding",Adult Social Care,101,Third Party Payments,505,Other Establishments,5041,Revenue,22.SUPPORT SERVICES
04/09/2017,1492380,275.00,SWIFT - PREPAID CARDS,299980,"Health, Education, Care and Safeguarding",Adult Social Care,101,Third Party Payments,505,Other Establishments,5041,Revenue,22.SUPPORT SERVICES
04/09/2017,1492384,570.00,SWIFT - PREPAID CARDS,299980,"Health, Education, Care and Safeguarding",Adult Social Care,101,Third Party Payments,505,Other Establishments,5041,Revenue,22.SUPPORT SERVICES
04/09/2017,1492391,252.86,SWIFT - PREPAID CARDS,299980,"Health, Education, Care and Safeguarding",Adult Social Care,101,Third Party Payments,505,Other Establishments,5041,Revenue,22.SUPPORT SERVICES
04/09/2017,1492393,1658.11,SWIFT - PREPAID CARDS,299980,"Health, Education, Care and Safeguarding",Adult Social Care,101,Third Party Payments,505,Other Establishments,5041,Revenue,22.SUPPORT SERVICES
04/09/2017,1492394,266.91,SWIFT - PREPAID CARDS,299980,"Health, Education, Care and Safeguarding",Adult Social Care,101,Third Party Payments,505,Other Establishments,5041,Revenue,22.SUPPORT SERVICES
04/09/2017,1492395,341.92,SWIFT - PREPAID CARDS,299980,"Health, Education, Care and Safeguarding",Adult Social Care,101,Third Party Payments,505,Other Establishments,5041,Revenue,22.SUPPORT SERVICES
04/09/2017,1492396,402.88,SWIFT - PREPAID CARDS,299980,"Health, Education, Care and Safeguarding",Children's & Education Services,103,Third Party Payments,505,Other Establishments,5041,Revenue,22.SUPPORT SERVICES
04/09/2017,1492397,270.00,SWIFT - PREPAID CARDS,299980,"Health, Education, Care and Safeguarding",Adult Social Care,101,Third Party Payments,505,Other Establishments,5041,Revenue,22.SUPPORT SERVICES
04/09/2017,1492398,2637.60,SWIFT - PREPAID CARDS,299980,"Health, Education, Care and Safeguarding",Adult Social Care,101,Third Party Payments,505,Other Establishments,5041,Revenue,22.SUPPORT SERVICES
04/09/2017,1492399,571.48,SWIFT - PREPAID CARDS,299980,"Health, Education, Care and Safeguarding",Adult Social Care,101,Third Party Payments,505,Other Establishments,5041,Revenue,22.SUPPORT SERVICES
04/09/2017,1492405,610.77,SWIFT - PREPAID CARDS,299980,"Health, Education, Care and Safeguarding",Adult Social Care,101,Third Party Payments,505,Other Establishments,5041,Revenue,22.SUPPORT SERVICES
04/09/2017,1492408,2380.00,SWIFT - PREPAID CARDS,299980,"Health, Education, Care and Safeguarding",Adult Social Care,101,Third Party Payments,505,Other Establishments,5041,Revenue,22.SUPPORT SERVICES
04/09/2017,1492409,491.15,SWIFT - PREPAID CARDS,299980,"Health, Education, Care and Safeguarding",Adult Social Care,101,Third Party Payments,505,Other Establishments,5041,Revenue,22.SUPPORT SERVICES
04/09/2017,1492412,441.00,SWIFT - PREPAID CARDS,299980,"Health, Education, Care and Safeguarding",Adult Social Care,101,Third Party Payments,505,Other Establishments,5041,Revenue,22.SUPPORT SERVICES
04/09/2017,1492413,490.00,SWIFT - PREPAID CARDS,299980,"Health, Education, Care and Safeguarding",Adult Social Care,101,Third Party Payments,505,Other Establishments,5041,Revenue,22.SUPPORT SERVICES
04/09/2017,1492416,828.17,SWIFT - PREPAID CARDS,299980,"Health, Education, Care and Safeguarding",Adult Social Care,101,Third Party Payments,505,Other Establishments,5041,Revenue,22.SUPPORT SERVICES
04/09/2017,1492417,396.60,SWIFT - PREPAID CARDS,299980,"Health, Education, Care and Safeguarding",Adult Social Care,101,Third Party Payments,505,Other Establishments,5041,Revenue,22.SUPPORT SERVICES
04/09/2017,1492419,282.56,SWIFT - PREPAID CARDS,299980,"Health, Education, Care and Safeguarding",Adult Social Care,101,Third Party Payments,505,Other Establishments,5041,Revenue,22.SUPPORT SERVICES
04/09/2017,1492423,256.23,SWIFT - PREPAID CARDS,299980,"Health, Education, Care and Safeguarding",Adult Social Care,101,Third Party Payments,505,Other Establishments,5041,Revenue,22.SUPPORT SERVICES
04/09/2017,1492428,520.21,SWIFT - PREPAID CARDS,299980,"Health, Education, Care and Safeguarding",Adult Social Care,101,Third Party Payments,505,Other Establishments,5041,Revenue,22.SUPPORT SERVICES
04/09/2017,1492435,255.50,SWIFT - PREPAID CARDS,299980,"Health, Education, Care and Safeguarding",Adult Social Care,101,Third Party Payments,505,Other Establishments,5041,Revenue,22.SUPPORT SERVICES
04/09/2017,1492437,1862.09,SWIFT - PREPAID CARDS,299980,"Health, Education, Care and Safeguarding",Adult Social Care,101,Third Party Payments,505,Other Establishments,5041,Revenue,22.SUPPORT SERVICES
04/09/2017,1492441,1311.29,SWIFT - PREPAID CARDS,299980,"Health, Education, Care and Safeguarding",Adult Social Care,101,Third Party Payments,505,Other Establishments,5041,Revenue,22.SUPPORT SERVICES
04/09/2017,1492449,937.89,SWIFT - PREPAID CARDS,299980,"Health, Education, Care and Safeguarding",Adult Social Care,101,Third Party Payments,505,Other Establishments,5041,Revenue,22.SUPPORT SERVICES
04/09/2017,1492452,509.02,SWIFT - PREPAID CARDS,299980,"Health, Education, Care and Safeguarding",Adult Social Care,101,Third Party Payments,505,Other Establishments,5041,Revenue,22.SUPPORT SERVICES
04/09/2017,1492457,500.39,SWIFT - PREPAID CARDS,299980,"Health, Education, Care and Safeguarding",Adult Social Care,101,Third Party Payments,505,Other Establishments,5041,Revenue,22.SUPPORT SERVICES
04/09/2017,1492458,255.40,SWIFT - PREPAID CARDS,299980,"Health, Education, Care and Safeguarding",Adult Social Care,101,Third Party Payments,505,Other Establishments,5041,Revenue,22.SUPPORT SERVICES
04/09/2017,1492459,262.00,SWIFT - PREPAID CARDS,299980,"Health, Education, Care and Safeguarding",Adult Social Care,101,Third Party Payments,505,Other Establishments,5041,Revenue,22.SUPPORT SERVICES
04/09/2017,1492461,502.05,SWIFT - PREPAID CARDS,299980,"Health, Education, Care and Safeguarding",Adult Social Care,101,Third Party Payments,505,Other Establishments,5041,Revenue,22.SUPPORT SERVICES
04/09/2017,1492468,266.03,SWIFT - PREPAID CARDS,299980,"Health, Education, Care and Safeguarding",Adult Social Care,101,Third Party Payments,505,Other Establishments,5041,Revenue,22.SUPPORT SERVICES
04/09/2017,1492475,260.00,SWIFT - PREPAID CARDS,299980,"Health, Education, Care and Safeguarding",Adult Social Care,101,Third Party Payments,505,Other Establishments,5041,Revenue,22.SUPPORT SERVICES
04/09/2017,1492481,377.26,SWIFT - PREPAID CARDS,299980,"Health, Education, Care and Safeguarding",Adult Social Care,101,Third Party Payments,505,Other Establishments,5041,Revenue,22.SUPPORT SERVICES
04/09/2017,1492483,685.10,SWIFT - PREPAID CARDS,299980,"Health, Education, Care and Safeguarding",Adult Social Care,101,Third Party Payments,505,Other Establishments,5041,Revenue,22.SUPPORT SERVICES
04/09/2017,1492489,500.00,Redacted Personal Data,394653,"Health, Education, Care and Safeguarding",Adult Social Care,101,Third Party Payments,505,Private Contractors,5042,Revenue,22.RESIDENTIAL
04/09/2017,1492490,485.63,CREATIVE SUPPORT LTD,359340,"Health, Education, Care and Safeguarding",Adult Social Care,101,Third Party Payments,505,Private Contractors,5042,Revenue,22.HOMECARE
04/09/2017,1492490,504.35,CREATIVE SUPPORT LTD,359340,"Health, Education, Care and Safeguarding",Adult Social Care,101,Third Party Payments,505,Private Contractors,5042,Revenue,22.HOMECARE
04/09/2017,1492490,517.30,CREATIVE SUPPORT LTD,359340,"Health, Education, Care and Safeguarding",Adult Social Care,101,Third Party Payments,505,Private Contractors,5042,Revenue,22.HOMECARE
04/09/2017,1492490,530.25,CREATIVE SUPPORT LTD,359340,"Health, Education, Care and Safeguarding",Adult Social Care,101,Third Party Payments,505,Private Contractors,5042,Revenue,22.HOMECARE
04/09/2017,1492490,582.05,CREATIVE SUPPORT LTD,359340,"Health, Education, Care and Safeguarding",Adult Social Care,101,Third Party Payments,505,Private Contractors,5042,Revenue,22.HOMECARE
04/09/2017,1492490,645.99,CREATIVE SUPPORT LTD,359340,"Health, Education, Care and Safeguarding",Adult Social Care,101,Third Party Payments,505,Private Contractors,5042,Revenue,22.HOMECARE
04/09/2017,1492490,958.23,CREATIVE SUPPORT LTD,359340,"Health, Education, Care and Safeguarding",Adult Social Care,101,Third Party Payments,505,Private Contractors,5042,Revenue,22.HOMECARE
04/09/2017,1492490,1874.95,CREATIVE SUPPORT LTD,359340,"Health, Education, Care and Safeguarding",Adult Social Care,101,Third Party Payments,505,Private Contractors,5042,Revenue,22.HOMECARE
04/09/2017,1492491,841.96,WILKINSON PARK,322345,"Health, Education, Care and Safeguarding",Adult Social Care,101,Third Party Payments,505,Private Contractors,5042,Revenue,22.RESIDENTIAL
04/09/2017,1492491,925.41,WILKINSON PARK,322345,"Health, Education, Care and Safeguarding",Adult Social Care,101,Third Party Payments,505,Private Contractors,5042,Revenue,22.RESIDENTIAL
04/09/2017,1492491,1275.00,WILKINSON PARK,322345,"Health, Education, Care and Safeguarding",Adult Social Care,101,Third Party Payments,505,Private Contractors,5042,Revenue,22.RESIDENTIAL
04/09/2017,1492491,1633.10,WILKINSON PARK,322345,"Health, Education, Care and Safeguarding",Adult Social Care,101,Third Party Payments,505,Private Contractors,5042,Revenue,22.RESIDENTIAL
04/09/2017,1492492,497.10,HC ONE LIMITED - ASHINGTON GRANGE,394401,"Health, Education, Care and Safeguarding",Adult Social Care,101,Third Party Payments,505,Private Contractors,5042,Revenue,22.RESIDENTIAL
04/09/2017,1492493,523.60,Redacted Personal Data,394343,"Health, Education, Care and Safeguarding",Adult Social Care,101,Third Party Payments,505,Private Contractors,5042,Revenue,22.RESIDENTIAL
04/09/2017,1492494,1683.68,LEONARD CHESHIRE DISABILITY,375897,"Health, Education, Care and Safeguarding",Adult Social Care,101,Third Party Payments,505,Other Establishments,5041,Revenue,22.SUPPORT SERVICES
04/09/2017,1492496,293.53,Redacted Personal Data,389516,"Health, Education, Care and Safeguarding",Adult Social Care,101,Third Party Payments,505,Other Establishments,5041,Revenue,00.NON INFLUENCIBLE
04/09/2017,1492497,278.20,Redacted Personal Data,394022,"Health, Education, Care and Safeguarding",Adult Social Care,101,Third Party Payments,505,Other Establishments,5041,Revenue,NON INDIVIDUAL
04/09/2017,1492497,353.00,Redacted Personal Data,394022,"Health, Education, Care and Safeguarding",Adult Social Care,101,Third Party Payments,505,Other Establishments,5041,Revenue,NON INDIVIDUAL
04/09/2017,1492500,914.60,BARCHESTER HEALTHCARE T/A LONGUEVILLE COURT,393767,"Health, Education, Care and Safeguarding",Public Health,112,Third Party Payments,505,Other Establishments,5041,Revenue,22.RESIDENTIAL
04/09/2017,1492501,1356.71,AUGUSTA CARE LTD,393744,"Health, Education, Care and Safeguarding",Adult Social Care,101,Third Party Payments,505,Private Contractors,5042,Revenue,22.RESIDENTIAL
04/09/2017,1492502,520.05,ORCHARD CARE HOMES.COM,387538,"Health, Education, Care and Safeguarding",Adult Social Care,101,Third Party Payments,505,Private Contractors,5042,Revenue,22.RESIDENTIAL
04/09/2017,1492502,538.64,ORCHARD CARE HOMES.COM,387538,"Health, Education, Care and Safeguarding",Adult Social Care,101,Third Party Payments,505,Private Contractors,5042,Revenue,22.RESIDENTIAL
04/09/2017,1492502,538.64,ORCHARD CARE HOMES.COM,387538,"Health, Education, Care and Safeguarding",Adult Social Care,101,Third Party Payments,505,Private Contractors,5042,Revenue,22.RESIDENTIAL
04/09/2017,1492502,538.64,ORCHARD CARE HOMES.COM,387538,"Health, Education, Care and Safeguarding",Adult Social Care,101,Third Party Payments,505,Private Contractors,5042,Revenue,22.RESIDENTIAL
04/09/2017,1492502,538.64,ORCHARD CARE HOMES.COM,387538,"Health, Education, Care and Safeguarding",Adult Social Care,101,Third Party Payments,505,Private Contractors,5042,Revenue,22.RESIDENTIAL
04/09/2017,1492502,538.64,ORCHARD CARE HOMES.COM,387538,"Health, Education, Care and Safeguarding",Adult Social Care,101,Third Party Payments,505,Private Contractors,5042,Revenue,22.RESIDENTIAL
04/09/2017,1492502,538.64,ORCHARD CARE HOMES.COM,387538,"Health, Education, Care and Safeguarding",Adult Social Care,101,Third Party Payments,505,Private Contractors,5042,Revenue,22.RESIDENTIAL
04/09/2017,1492502,538.64,ORCHARD CARE HOMES.COM,387538,"Health, Education, Care and Safeguarding",Adult Social Care,101,Third Party Payments,505,Private Contractors,5042,Revenue,22.RESIDENTIAL
04/09/2017,1492502,538.64,ORCHARD CARE HOMES.COM,387538,"Health, Education, Care and Safeguarding",Adult Social Care,101,Third Party Payments,505,Private Contractors,5042,Revenue,22.RESIDENTIAL
04/09/2017,1492502,538.64,ORCHARD CARE HOMES.COM,387538,"Health, Education, Care and Safeguarding",Adult Social Care,101,Third Party Payments,505,Private Contractors,5042,Revenue,22.RESIDENTIAL
04/09/2017,1492502,538.64,ORCHARD CARE HOMES.COM,387538,"Health, Education, Care and Safeguarding",Adult Social Care,101,Third Party Payments,505,Private Contractors,5042,Revenue,22.RESIDENTIAL
04/09/2017,1492502,538.64,ORCHARD CARE HOMES.COM,387538,"Health, Education, Care and Safeguarding",Adult Social Care,101,Third Party Payments,505,Private Contractors,5042,Revenue,22.RESIDENTIAL
04/09/2017,1492502,538.64,ORCHARD CARE HOMES.COM,387538,"Health, Education, Care and Safeguarding",Adult Social Care,101,Third Party Payments,505,Private Contractors,5042,Revenue,22.RESIDENTIAL
04/09/2017,1492502,538.64,ORCHARD CARE HOMES.COM,387538,"Health, Education, Care and Safeguarding",Adult Social Care,101,Third Party Payments,505,Private Contractors,5042,Revenue,22.RESIDENTIAL
04/09/2017,1492502,538.64,ORCHARD CARE HOMES.COM,387538,"Health, Education, Care and Safeguarding",Adult Social Care,101,Third Party Payments,505,Private Contractors,5042,Revenue,22.RESIDENTIAL
04/09/2017,1492502,538.64,ORCHARD CARE HOMES.COM,387538,"Health, Education, Care and Safeguarding",Adult Social Care,101,Third Party Payments,505,Private Contractors,5042,Revenue,22.RESIDENTIAL
04/09/2017,1492502,538.64,ORCHARD CARE HOMES.COM,387538,"Health, Education, Care and Safeguarding",Adult Social Care,101,Third Party Payments,505,Private Contractors,5042,Revenue,22.RESIDENTIAL
04/09/2017,1492502,538.64,ORCHARD CARE HOMES.COM,387538,"Health, Education, Care and Safeguarding",Adult Social Care,101,Third Party Payments,505,Private Contractors,5042,Revenue,22.RESIDENTIAL
04/09/2017,1492502,538.64,ORCHARD CARE HOMES.COM,387538,"Health, Education, Care and Safeguarding",Adult Social Care,101,Third Party Payments,505,Private Contractors,5042,Revenue,22.RESIDENTIAL
04/09/2017,1492502,538.64,ORCHARD CARE HOMES.COM,387538,"Health, Education, Care and Safeguarding",Adult Social Care,101,Third Party Payments,505,Private Contractors,5042,Revenue,22.RESIDENTIAL
04/09/2017,1492502,538.64,ORCHARD CARE HOMES.COM,387538,"Health, Education, Care and Safeguarding",Adult Social Care,101,Third Party Payments,505,Private Contractors,5042,Revenue,22.RESIDENTIAL
04/09/2017,1492502,675.10,ORCHARD CARE HOMES.COM,387538,"Health, Education, Care and Safeguarding",Public Health,112,Third Party Payments,505,Other Establishments,5041,Revenue,22.RESIDENTIAL
04/09/2017,1492502,705.10,ORCHARD CARE HOMES.COM,387538,"Health, Education, Care and Safeguarding",Public Health,112,Third Party Payments,505,Other Establishments,5041,Revenue,22.RESIDENTIAL
04/09/2017,1492502,723.69,ORCHARD CARE HOMES.COM,387538,"Health, Education, Care and Safeguarding",Public Health,112,Third Party Payments,505,Other Establishments,5041,Revenue,22.RESIDENTIAL
04/09/2017,1492502,723.69,ORCHARD CARE HOMES.COM,387538,"Health, Education, Care and Safeguarding",Public Health,112,Third Party Payments,505,Other Establishments,5041,Revenue,22.RESIDENTIAL
04/09/2017,1492502,723.69,ORCHARD CARE HOMES.COM,387538,"Health, Education, Care and Safeguarding",Public Health,112,Third Party Payments,505,Other Establishments,5041,Revenue,22.RESIDENTIAL
04/09/2017,1492502,723.69,ORCHARD CARE HOMES.COM,387538,"Health, Education, Care and Safeguarding",Public Health,112,Third Party Payments,505,Other Establishments,5041,Revenue,22.RESIDENTIAL
04/09/2017,1492502,723.69,ORCHARD CARE HOMES.COM,387538,"Health, Education, Care and Safeguarding",Public Health,112,Third Party Payments,505,Other Establishments,5041,Revenue,22.RESIDENTIAL
04/09/2017,1492502,723.69,ORCHARD CARE HOMES.COM,387538,"Health, Education, Care and Safeguarding",Public Health,112,Third Party Payments,505,Other Establishments,5041,Revenue,22.RESIDENTIAL
04/09/2017,1492502,723.69,ORCHARD CARE HOMES.COM,387538,"Health, Education, Care and Safeguarding",Public Health,112,Third Party Payments,505,Other Establishments,5041,Revenue,22.RESIDENTIAL
04/09/2017,1492502,723.69,ORCHARD CARE HOMES.COM,387538,"Health, Education, Care and Safeguarding",Public Health,112,Third Party Payments,505,Other Establishments,5041,Revenue,22.RESIDENTIAL
04/09/2017,1492505,316.00,Redacted Personal Data,393492,"Health, Education, Care and Safeguarding",Adult Social Care,101,Third Party Payments,505,Other Establishments,5041,Revenue,NON INDIVIDUAL
04/09/2017,1492506,423.00,DEAFBLIND ENABLEMENT LTD,390700,"Health, Education, Care and Safeguarding",Adult Social Care,101,Third Party Payments,505,Other Establishments,5041,Revenue,22.SUPPORT SERVICES
04/09/2017,1492507,1438.35,THE WHITE HORSE CARE TRUST,393309,"Health, Education, Care and Safeguarding",Adult Social Care,101,Third Party Payments,505,Private Contractors,5042,Revenue,22.RESIDENTIAL
04/09/2017,1492508,488.15,NORTHRIDGE HEALTHCARE LTD,393276,"Health, Education, Care and Safeguarding",Adult Social Care,101,Third Party Payments,505,Private Contractors,5042,Revenue,22.RESIDENTIAL
04/09/2017,1492508,643.20,NORTHRIDGE HEALTHCARE LTD,393276,"Health, Education, Care and Safeguarding",Adult Social Care,101,Third Party Payments,505,Other Establishments,5041,Revenue,22.RESIDENTIAL
04/09/2017,1492508,643.20,NORTHRIDGE HEALTHCARE LTD,393276,"Health, Education, Care and Safeguarding",Adult Social Care,101,Third Party Payments,505,Other Establishments,5041,Revenue,22.RESIDENTIAL
04/09/2017,1492508,673.20,NORTHRIDGE HEALTHCARE LTD,393276,"Health, Education, Care and Safeguarding",Adult Social Care,101,Third Party Payments,505,Other Establishments,5041,Revenue,22.RESIDENTIAL
04/09/2017,1492508,673.20,NORTHRIDGE HEALTHCARE LTD,393276,"Health, Education, Care and Safeguarding",Public Health,112,Third Party Payments,505,Other Establishments,5041,Revenue,22.RESIDENTIAL
04/09/2017,1492508,673.20,NORTHRIDGE HEALTHCARE LTD,393276,"Health, Education, Care and Safeguarding",Public Health,112,Third Party Payments,505,Other Establishments,5041,Revenue,22.RESIDENTIAL
04/09/2017,1492508,4200.00,NORTHRIDGE HEALTHCARE LTD,393276,"Health, Education, Care and Safeguarding",Adult Social Care,101,Third Party Payments,505,Private Contractors,5042,Revenue,22.RESIDENTIAL
04/09/2017,1492509,605.00,ARCADIA CARE HOMES,393208,"Health, Education, Care and Safeguarding",Adult Social Care,101,Third Party Payments,505,Private Contractors,5042,Revenue,22.RESIDENTIAL
04/09/2017,1492510,294.23,MEADOW WELL CONNECTED,355522,"Health, Education, Care and Safeguarding",Adult Social Care,101,Third Party Payments,505,Other Establishments,5041,Revenue,22.SUPPORT SERVICES
04/09/2017,1492511,500.62,HELEN MCARDLE CARE,392923,"Health, Education, Care and Safeguarding",Adult Social Care,101,Third Party Payments,505,Private Contractors,5042,Revenue,22.RESIDENTIAL
04/09/2017,1492512,554.55,HELEN MCARDLE CARE,392922,"Health, Education, Care and Safeguarding",Adult Social Care,101,Third Party Payments,505,Private Contractors,5042,Revenue,22.RESIDENTIAL
04/09/2017,1492514,777.00,CARE UK MENTAL HEALTH PARTNERSHIPS LTD,333648,"Health, Education, Care and Safeguarding",Adult Social Care,101,Third Party Payments,505,Private Contractors,5042,Revenue,22.RESIDENTIAL
04/09/2017,1492514,777.00,CARE UK MENTAL HEALTH PARTNERSHIPS LTD,333648,"Health, Education, Care and Safeguarding",Adult Social Care,101,Third Party Payments,505,Private Contractors,5042,Revenue,22.RESIDENTIAL
04/09/2017,1492515,316.00,Redacted Personal Data,392596,"Health, Education, Care and Safeguarding",Adult Social Care,101,Third Party Payments,505,Other Establishments,5041,Revenue,ADV IMAGE
04/09/2017,1492516,549.95,Redacted Personal Data,379947,"Health, Education, Care and Safeguarding",Adult Social Care,101,Third Party Payments,505,Other Establishments,5041,Revenue,00.GRANT
04/09/2017,1492517,1655.77,Redacted Personal Data,371324,"Health, Education, Care and Safeguarding",Adult Social Care,101,Third Party Payments,505,Other Establishments,5041,Revenue,00.NON INFLUENCIBLE
04/09/2017,1492518,273.80,UNITED RESPONSE,330350,"Health, Education, Care and Safeguarding",Adult Social Care,101,Third Party Payments,505,Private Contractors,5042,Revenue,22.SUPPORT SERVICES
04/09/2017,1492518,292.60,UNITED RESPONSE,330350,"Health, Education, Care and Safeguarding",Adult Social Care,101,Third Party Payments,505,Private Contractors,5042,Revenue,22.SUPPORT SERVICES
04/09/2017,1492518,864.39,UNITED RESPONSE,330350,"Health, Education, Care and Safeguarding",Adult Social Care,101,Third Party Payments,505,Private Contractors,5042,Revenue,22.SUPPORT SERVICES
04/09/2017,1492518,909.15,UNITED RESPONSE,330350,"Health, Education, Care and Safeguarding",Adult Social Care,101,Third Party Payments,505,Private Contractors,5042,Revenue,22.SUPPORT SERVICES
04/09/2017,1492518,947.04,UNITED RESPONSE,330350,"Health, Education, Care and Safeguarding",Adult Social Care,101,Third Party Payments,505,Private Contractors,5042,Revenue,22.SUPPORT SERVICES
04/09/2017,1492518,947.04,UNITED RESPONSE,330350,"Health, Education, Care and Safeguarding",Adult Social Care,101,Third Party Payments,505,Private Contractors,5042,Revenue,22.SUPPORT SERVICES
04/09/2017,1492518,991.80,UNITED RESPONSE,330350,"Health, Education, Care and Safeguarding",Adult Social Care,101,Third Party Payments,505,Private Contractors,5042,Revenue,22.SUPPORT SERVICES
04/09/2017,1492518,1029.69,UNITED RESPONSE,330350,"Health, Education, Care and Safeguarding",Adult Social Care,101,Third Party Payments,505,Private Contractors,5042,Revenue,22.SUPPORT SERVICES
04/09/2017,1492518,1039.40,UNITED RESPONSE,330350,"Health, Education, Care and Safeguarding",Adult Social Care,101,Third Party Payments,505,Private Contractors,5042,Revenue,22.SUPPORT SERVICES
04/09/2017,1492518,1136.44,UNITED RESPONSE,330350,"Health, Education, Care and Safeguarding",Adult Social Care,101,Third Party Payments,505,Private Contractors,5042,Revenue,22.SUPPORT SERVICES
04/09/2017,1492518,1170.31,UNITED RESPONSE,330350,"Health, Education, Care and Safeguarding",Adult Social Care,101,Third Party Payments,505,Private Contractors,5042,Revenue,22.SUPPORT SERVICES
04/09/2017,1492518,1214.96,UNITED RESPONSE,330350,"Health, Education, Care and Safeguarding",Adult Social Care,101,Third Party Payments,505,Private Contractors,5042,Revenue,22.SUPPORT SERVICES
04/09/2017,1492518,1214.96,UNITED RESPONSE,330350,"Health, Education, Care and Safeguarding",Adult Social Care,101,Third Party Payments,505,Private Contractors,5042,Revenue,22.SUPPORT SERVICES
04/09/2017,1492518,1230.01,UNITED RESPONSE,330350,"Health, Education, Care and Safeguarding",Adult Social Care,101,Third Party Payments,505,Private Contractors,5042,Revenue,22.SUPPORT SERVICES
04/09/2017,1492518,1230.01,UNITED RESPONSE,330350,"Health, Education, Care and Safeguarding",Adult Social Care,101,Third Party Payments,505,Private Contractors,5042,Revenue,22.SUPPORT SERVICES
04/09/2017,1492518,1230.01,UNITED RESPONSE,330350,"Health, Education, Care and Safeguarding",Adult Social Care,101,Third Party Payments,505,Private Contractors,5042,Revenue,22.SUPPORT SERVICES
04/09/2017,1492518,1378.78,UNITED RESPONSE,330350,"Health, Education, Care and Safeguarding",Adult Social Care,101,Third Party Payments,505,Private Contractors,5042,Revenue,22.SUPPORT SERVICES
04/09/2017,1492518,1384.39,UNITED RESPONSE,330350,"Health, Education, Care and Safeguarding",Adult Social Care,101,Third Party Payments,505,Private Contractors,5042,Revenue,22.SUPPORT SERVICES
04/09/2017,1492518,1388.52,UNITED RESPONSE,330350,"Health, Education, Care and Safeguarding",Adult Social Care,101,Third Party Payments,505,Private Contractors,5042,Revenue,22.SUPPORT SERVICES
04/09/2017,1492518,1392.66,UNITED RESPONSE,330350,"Health, Education, Care and Safeguarding",Adult Social Care,101,Third Party Payments,505,Private Contractors,5042,Revenue,22.SUPPORT SERVICES
04/09/2017,1492518,1534.54,UNITED RESPONSE,330350,"Health, Education, Care and Safeguarding",Adult Social Care,101,Third Party Payments,505,Private Contractors,5042,Revenue,22.SUPPORT SERVICES
04/09/2017,1492518,1591.20,UNITED RESPONSE,330350,"Health, Education, Care and Safeguarding",Adult Social Care,101,Third Party Payments,505,Private Contractors,5042,Revenue,22.SUPPORT SERVICES
04/09/2017,1492518,1633.64,UNITED RESPONSE,330350,"Health, Education, Care and Safeguarding",Adult Social Care,101,Third Party Payments,505,Private Contractors,5042,Revenue,22.SUPPORT SERVICES
04/09/2017,1492518,1698.80,UNITED RESPONSE,330350,"Health, Education, Care and Safeguarding",Adult Social Care,101,Third Party Payments,505,Private Contractors,5042,Revenue,22.SUPPORT SERVICES
04/09/2017,1492518,1702.31,UNITED RESPONSE,330350,"Health, Education, Care and Safeguarding",Adult Social Care,101,Third Party Payments,505,Private Contractors,5042,Revenue,22.SUPPORT SERVICES
04/09/2017,1492518,1734.89,UNITED RESPONSE,330350,"Health, Education, Care and Safeguarding",Adult Social Care,101,Third Party Payments,505,Private Contractors,5042,Revenue,22.SUPPORT SERVICES
04/09/2017,1492518,1765.90,UNITED RESPONSE,330350,"Health, Education, Care and Safeguarding",Adult Social Care,101,Third Party Payments,505,Private Contractors,5042,Revenue,22.SUPPORT SERVICES
04/09/2017,1492518,1788.85,UNITED RESPONSE,330350,"Health, Education, Care and Safeguarding",Public Health,112,Third Party Payments,505,Private Contractors,5042,Revenue,22.SUPPORT SERVICES
04/09/2017,1492518,1816.34,UNITED RESPONSE,330350,"Health, Education, Care and Safeguarding",Adult Social Care,101,Third Party Payments,505,Private Contractors,5042,Revenue,22.SUPPORT SERVICES
04/09/2017,1492518,2013.85,UNITED RESPONSE,330350,"Health, Education, Care and Safeguarding",Adult Social Care,101,Third Party Payments,505,Private Contractors,5042,Revenue,22.SUPPORT SERVICES
04/09/2017,1492518,2179.15,UNITED RESPONSE,330350,"Health, Education, Care and Safeguarding",Adult Social Care,101,Third Party Payments,505,Private Contractors,5042,Revenue,22.SUPPORT SERVICES
04/09/2017,1492518,2582.82,UNITED RESPONSE,330350,"Health, Education, Care and Safeguarding",Adult Social Care,101,Third Party Payments,505,Private Contractors,5042,Revenue,22.SUPPORT SERVICES
04/09/2017,1492518,2661.33,UNITED RESPONSE,330350,"Health, Education, Care and Safeguarding",Adult Social Care,101,Third Party Payments,505,Other Establishments,5041,Revenue,22.SUPPORT SERVICES
04/09/2017,1492518,2777.04,UNITED RESPONSE,330350,"Health, Education, Care and Safeguarding",Adult Social Care,101,Third Party Payments,505,Other Establishments,5041,Revenue,22.SUPPORT SERVICES
04/09/2017,1492518,2824.50,UNITED RESPONSE,330350,"Health, Education, Care and Safeguarding",Adult Social Care,101,Third Party Payments,505,Private Contractors,5042,Revenue,22.SUPPORT SERVICES
04/09/2017,1492518,3306.00,UNITED RESPONSE,330350,"Health, Education, Care and Safeguarding",Adult Social Care,101,Third Party Payments,505,Private Contractors,5042,Revenue,22.SUPPORT SERVICES
04/09/2017,1492518,3621.24,UNITED RESPONSE,330350,"Health, Education, Care and Safeguarding",Adult Social Care,101,Third Party Payments,505,Private Contractors,5042,Revenue,22.SUPPORT SERVICES
04/09/2017,1492518,3813.08,UNITED RESPONSE,330350,"Health, Education, Care and Safeguarding",Adult Social Care,101,Third Party Payments,505,Private Contractors,5042,Revenue,22.SUPPORT SERVICES
04/09/2017,1492518,3982.37,UNITED RESPONSE,330350,"Health, Education, Care and Safeguarding",Public Health,112,Third Party Payments,505,Private Contractors,5042,Revenue,22.SUPPORT SERVICES
04/09/2017,1492520,948.75,AUTISM CARE (UK) LIMITED,387636,"Health, Education, Care and Safeguarding",Adult Social Care,101,Third Party Payments,505,Private Contractors,5042,Revenue,22.RESIDENTIAL
04/09/2017,1492520,2389.50,AUTISM CARE (UK) LIMITED,387636,"Health, Education, Care and Safeguarding",Adult Social Care,101,Third Party Payments,505,Private Contractors,5042,Revenue,22.RESIDENTIAL
04/09/2017,1492520,2488.50,AUTISM CARE (UK) LIMITED,387636,"Health, Education, Care and Safeguarding",Adult Social Care,101,Third Party Payments,505,Private Contractors,5042,Revenue,22.RESIDENTIAL
04/09/2017,1492520,2581.00,AUTISM CARE (UK) LIMITED,387636,"Health, Education, Care and Safeguarding",Adult Social Care,101,Third Party Payments,505,Private Contractors,5042,Revenue,22.RESIDENTIAL
04/09/2017,1492520,6184.01,AUTISM CARE (UK) LIMITED,387636,"Health, Education, Care and Safeguarding",Adult Social Care,101,Third Party Payments,505,Other Establishments,5041,Revenue,22.RESIDENTIAL
04/09/2017,1492521,1940.12,WAYMARKS LTD,386037,"Health, Education, Care and Safeguarding",Adult Social Care,101,Third Party Payments,505,Other Establishments,5041,Revenue,22.SUPPORT SERVICES
04/09/2017,1492522,627.15,EXECUTIVE CARE GROUP RE PEMBROKE CARE HOME,375477,"Health, Education, Care and Safeguarding",Adult Social Care,101,Third Party Payments,505,Private Contractors,5042,Revenue,22.RESIDENTIAL
04/09/2017,1492523,584.59,EXECUTIVE CARE GROUP,358649,"Health, Education, Care and Safeguarding",Adult Social Care,101,Third Party Payments,505,Private Contractors,5042,Revenue,22.RESIDENTIAL
04/09/2017,1492524,-135.84,TURNBERRY SERVICES LIMITED,392180,"Health, Education, Care and Safeguarding",Adult Social Care,101,Income,509,"Other Grants, Reimbursements & Contributions",5063,Revenue,22.RESIDENTIAL
04/09/2017,1492524,-130.70,TURNBERRY SERVICES LIMITED,392180,"Health, Education, Care and Safeguarding",Adult Social Care,101,Income,509,"Other Grants, Reimbursements & Contributions",5063,Revenue,22.RESIDENTIAL
04/09/2017,1492524,450.34,TURNBERRY SERVICES LIMITED,392180,"Health, Education, Care and Safeguarding",Adult Social Care,101,Third Party Payments,505,Private Contractors,5042,Revenue,22.RESIDENTIAL
04/09/2017,1492524,450.34,TURNBERRY SERVICES LIMITED,392180,"Health, Education, Care and Safeguarding",Adult Social Care,101,Third Party Payments,505,Private Contractors,5042,Revenue,22.RESIDENTIAL
04/09/2017,1492524,450.34,TURNBERRY SERVICES LIMITED,392180,"Health, Education, Care and Safeguarding",Adult Social Care,101,Third Party Payments,505,Private Contractors,5042,Revenue,22.RESIDENTIAL
04/09/2017,1492524,450.34,TURNBERRY SERVICES LIMITED,392180,"Health, Education, Care and Safeguarding",Adult Social Care,101,Third Party Payments,505,Private Contractors,5042,Revenue,22.RESIDENTIAL
04/09/2017,1492524,450.34,TURNBERRY SERVICES LIMITED,392180,"Health, Education, Care and Safeguarding",Adult Social Care,101,Third Party Payments,505,Private Contractors,5042,Revenue,22.RESIDENTIAL
04/09/2017,1492524,450.34,TURNBERRY SERVICES LIMITED,392180,"Health, Education, Care and Safeguarding",Adult Social Care,101,Third Party Payments,505,Private Contractors,5042,Revenue,22.RESIDENTIAL
04/09/2017,1492524,450.34,TURNBERRY SERVICES LIMITED,392180,"Health, Education, Care and Safeguarding",Adult Social Care,101,Third Party Payments,505,Private Contractors,5042,Revenue,22.RESIDENTIAL
04/09/2017,1492524,6562.10,TURNBERRY SERVICES LIMITED,392180,"Health, Education, Care and Safeguarding",Adult Social Care,101,Third Party Payments,505,Private Contractors,5042,Revenue,22.RESIDENTIAL
04/09/2017,1492525,2636.20,Redacted Personal Data,368587,"Health, Education, Care and Safeguarding",Adult Social Care,101,Third Party Payments,505,Other Establishments,5041,Revenue,NON INDIVIDUAL
04/09/2017,1492526,400.11,Redacted Personal Data,392105,"Health, Education, Care and Safeguarding",Adult Social Care,101,Third Party Payments,505,Other Establishments,5041,Revenue,22.SUPPORT SERVICES
04/09/2017,1492528,-355.22,STONHAM HOUSING ASSOCIATION,303595,"Health, Education, Care and Safeguarding",Adult Social Care,101,Third Party Payments,505,Private Contractors,5042,Revenue,22.SUPPORT SERVICES
04/09/2017,1492528,-284.16,STONHAM HOUSING ASSOCIATION,303595,"Health, Education, Care and Safeguarding",Adult Social Care,101,Third Party Payments,505,Private Contractors,5042,Revenue,22.SUPPORT SERVICES
04/09/2017,1492528,381.85,STONHAM HOUSING ASSOCIATION,303595,"Health, Education, Care and Safeguarding",Adult Social Care,101,Third Party Payments,505,Private Contractors,5042,Revenue,22.SUPPORT SERVICES
04/09/2017,1492529,378.00,PCA INDEPENDENT LIVING SOLUTIONS LLP,387634,"Health, Education, Care and Safeguarding",Adult Social Care,101,Third Party Payments,505,Other Establishments,5041,Revenue,22.DAY CARE SERVICES
04/09/2017,1492530,-100.15,HOMES TOGETHER LTD,356831,"Health, Education, Care and Safeguarding",Adult Social Care,101,Income,509,"Other Grants, Reimbursements & Contributions",5063,Revenue,00.NON INFLUENCIBLE
04/09/2017,1492530,1261.94,HOMES TOGETHER LTD,356831,"Health, Education, Care and Safeguarding",Adult Social Care,101,Third Party Payments,505,Private Contractors,5042,Revenue,00.NON INFLUENCIBLE
04/09/2017,1492531,483.64,Redacted Personal Data,391906,"Health, Education, Care and Safeguarding",Adult Social Care,101,Third Party Payments,505,Private Contractors,5042,Revenue,22.RESIDENTIAL
04/09/2017,1492532,795.49,EQUAL PARTNERSHIPS LTD,391549,"Health, Education, Care and Safeguarding",Adult Social Care,101,Third Party Payments,505,Other Establishments,5041,Revenue,22.SUPPORT SERVICES
04/09/2017,1492532,1001.15,EQUAL PARTNERSHIPS LTD,391549,"Health, Education, Care and Safeguarding",Adult Social Care,101,Third Party Payments,505,Other Establishments,5041,Revenue,22.SUPPORT SERVICES
04/09/2017,1492532,1048.01,EQUAL PARTNERSHIPS LTD,391549,"Health, Education, Care and Safeguarding",Adult Social Care,101,Third Party Payments,505,Other Establishments,5041,Revenue,22.SUPPORT SERVICES
04/09/2017,1492533,520.05,HELEN MCARDLE CARE,391638,"Health, Education, Care and Safeguarding",Adult Social Care,101,Third Party Payments,505,Private Contractors,5042,Revenue,22.RESIDENTIAL
04/09/2017,1492533,520.05,HELEN MCARDLE CARE,391638,"Health, Education, Care and Safeguarding",Adult Social Care,101,Third Party Payments,505,Private Contractors,5042,Revenue,22.RESIDENTIAL
04/09/2017,1492533,538.64,HELEN MCARDLE CARE,391638,"Health, Education, Care and Safeguarding",Adult Social Care,101,Third Party Payments,505,Private Contractors,5042,Revenue,22.RESIDENTIAL
04/09/2017,1492533,538.64,HELEN MCARDLE CARE,391638,"Health, Education, Care and Safeguarding",Adult Social Care,101,Third Party Payments,505,Private Contractors,5042,Revenue,22.RESIDENTIAL
04/09/2017,1492533,538.64,HELEN MCARDLE CARE,391638,"Health, Education, Care and Safeguarding",Adult Social Care,101,Third Party Payments,505,Private Contractors,5042,Revenue,22.RESIDENTIAL
04/09/2017,1492534,2952.16,Redacted Personal Data,353764,"Health, Education, Care and Safeguarding",Adult Social Care,101,Third Party Payments,505,Other Establishments,5041,Revenue,NON INDIVIDUAL
04/09/2017,1492535,507.90,RENAL HEALTH LIMITED,391424,"Health, Education, Care and Safeguarding",Adult Social Care,101,Third Party Payments,505,Private Contractors,5042,Revenue,22.RESIDENTIAL
04/09/2017,1492535,507.90,RENAL HEALTH LIMITED,391424,"Health, Education, Care and Safeguarding",Adult Social Care,101,Third Party Payments,505,Private Contractors,5042,Revenue,22.RESIDENTIAL
04/09/2017,1492535,507.90,RENAL HEALTH LIMITED,391424,"Health, Education, Care and Safeguarding",Adult Social Care,101,Third Party Payments,505,Private Contractors,5042,Revenue,22.RESIDENTIAL
04/09/2017,1492535,507.90,RENAL HEALTH LIMITED,391424,"Health, Education, Care and Safeguarding",Adult Social Care,101,Third Party Payments,505,Private Contractors,5042,Revenue,22.RESIDENTIAL
04/09/2017,1492535,507.90,RENAL HEALTH LIMITED,391424,"Health, Education, Care and Safeguarding",Adult Social Care,101,Third Party Payments,505,Private Contractors,5042,Revenue,22.RESIDENTIAL
04/09/2017,1492535,507.90,RENAL HEALTH LIMITED,391424,"Health, Education, Care and Safeguarding",Adult Social Care,101,Third Party Payments,505,Private Contractors,5042,Revenue,22.RESIDENTIAL
04/09/2017,1492535,507.90,RENAL HEALTH LIMITED,391424,"Health, Education, Care and Safeguarding",Adult Social Care,101,Third Party Payments,505,Private Contractors,5042,Revenue,22.RESIDENTIAL
04/09/2017,1492535,507.90,RENAL HEALTH LIMITED,391424,"Health, Education, Care and Safeguarding",Adult Social Care,101,Third Party Payments,505,Private Contractors,5042,Revenue,22.RESIDENTIAL
04/09/2017,1492536,353.23,HOME FARM TRUST LTD,391420,"Health, Education, Care and Safeguarding",Adult Social Care,101,Third Party Payments,505,Other Establishments,5041,Revenue,22.SUPPORT SERVICES
04/09/2017,1492536,392.53,HOME FARM TRUST LTD,391420,"Health, Education, Care and Safeguarding",Adult Social Care,101,Third Party Payments,505,Other Establishments,5041,Revenue,22.SUPPORT SERVICES
04/09/2017,1492536,392.53,HOME FARM TRUST LTD,391420,"Health, Education, Care and Safeguarding",Adult Social Care,101,Third Party Payments,505,Other Establishments,5041,Revenue,22.SUPPORT SERVICES
04/09/2017,1492536,392.53,HOME FARM TRUST LTD,391420,"Health, Education, Care and Safeguarding",Adult Social Care,101,Third Party Payments,505,Other Establishments,5041,Revenue,22.SUPPORT SERVICES
04/09/2017,1492536,403.14,HOME FARM TRUST LTD,391420,"Health, Education, Care and Safeguarding",Adult Social Care,101,Third Party Payments,505,Other Establishments,5041,Revenue,22.SUPPORT SERVICES
04/09/2017,1492536,444.15,HOME FARM TRUST LTD,391420,"Health, Education, Care and Safeguarding",Adult Social Care,101,Third Party Payments,505,Other Establishments,5041,Revenue,22.SUPPORT SERVICES
04/09/2017,1492536,444.15,HOME FARM TRUST LTD,391420,"Health, Education, Care and Safeguarding",Adult Social Care,101,Third Party Payments,505,Other Establishments,5041,Revenue,22.SUPPORT SERVICES
04/09/2017,1492536,444.15,HOME FARM TRUST LTD,391420,"Health, Education, Care and Safeguarding",Adult Social Care,101,Third Party Payments,505,Other Establishments,5041,Revenue,22.SUPPORT SERVICES
04/09/2017,1492536,483.00,HOME FARM TRUST LTD,391420,"Health, Education, Care and Safeguarding",Adult Social Care,101,Third Party Payments,505,Other Establishments,5041,Revenue,22.SUPPORT SERVICES
04/09/2017,1492536,483.00,HOME FARM TRUST LTD,391420,"Health, Education, Care and Safeguarding",Adult Social Care,101,Third Party Payments,505,Other Establishments,5041,Revenue,22.SUPPORT SERVICES
04/09/2017,1492536,543.90,HOME FARM TRUST LTD,391420,"Health, Education, Care and Safeguarding",Adult Social Care,101,Third Party Payments,505,Other Establishments,5041,Revenue,22.SUPPORT SERVICES
04/09/2017,1492536,573.65,HOME FARM TRUST LTD,391420,"Health, Education, Care and Safeguarding",Adult Social Care,101,Third Party Payments,505,Other Establishments,5041,Revenue,22.SUPPORT SERVICES
04/09/2017,1492537,1210.00,SELF NORTH EAST LTD,391376,"Health, Education, Care and Safeguarding",Adult Social Care,101,Third Party Payments,505,Private Contractors,5042,Revenue,22.RESIDENTIAL
04/09/2017,1492538,-100.15,CRAEGMOOR HEALTHCARE,320607,"Health, Education, Care and Safeguarding",Adult Social Care,101,Income,509,"Other Grants, Reimbursements & Contributions",5063,Revenue,22.RESIDENTIAL
04/09/2017,1492538,650.15,CRAEGMOOR HEALTHCARE,320607,"Health, Education, Care and Safeguarding",Adult Social Care,101,Third Party Payments,505,Private Contractors,5042,Revenue,22.RESIDENTIAL
04/09/2017,1492540,-13690.97,WALLDENE COURT - ANCHOR TRUST,323724,"Health, Education, Care and Safeguarding",Public Health,112,Third Party Payments,505,Other Establishments,5041,Revenue,22.RESIDENTIAL
04/09/2017,1492540,-11761.37,WALLDENE COURT - ANCHOR TRUST,323724,"Health, Education, Care and Safeguarding",Public Health,112,Third Party Payments,505,Other Establishments,5041,Revenue,22.RESIDENTIAL
04/09/2017,1492540,-2756.57,WALLDENE COURT - ANCHOR TRUST,323724,"Health, Education, Care and Safeguarding",Adult Social Care,101,Third Party Payments,505,Other Establishments,5041,Revenue,22.RESIDENTIAL
04/09/2017,1492540,-2209.37,WALLDENE COURT - ANCHOR TRUST,323724,"Health, Education, Care and Safeguarding",Public Health,112,Third Party Payments,505,Other Establishments,5041,Revenue,22.RESIDENTIAL
04/09/2017,1492540,-918.86,WALLDENE COURT - ANCHOR TRUST,323724,"Health, Education, Care and Safeguarding",Adult Social Care,101,Third Party Payments,505,Other Establishments,5041,Revenue,22.RESIDENTIAL
04/09/2017,1492540,-368.23,WALLDENE COURT - ANCHOR TRUST,323724,"Health, Education, Care and Safeguarding",Adult Social Care,101,Third Party Payments,505,Other Establishments,5041,Revenue,22.RESIDENTIAL
04/09/2017,1492540,384.69,WALLDENE COURT - ANCHOR TRUST,323724,"Health, Education, Care and Safeguarding",Adult Social Care,101,Third Party Payments,505,Other Establishments,5041,Revenue,22.RESIDENTIAL
04/09/2017,1492540,406.96,WALLDENE COURT - ANCHOR TRUST,323724,"Health, Education, Care and Safeguarding",Adult Social Care,101,Third Party Payments,505,Private Contractors,5042,Revenue,22.RESIDENTIAL
04/09/2017,1492540,488.15,WALLDENE COURT - ANCHOR TRUST,323724,"Health, Education, Care and Safeguarding",Adult Social Care,101,Third Party Payments,505,Private Contractors,5042,Revenue,22.RESIDENTIAL
04/09/2017,1492540,488.15,WALLDENE COURT - ANCHOR TRUST,323724,"Health, Education, Care and Safeguarding",Adult Social Care,101,Third Party Payments,505,Private Contractors,5042,Revenue,22.RESIDENTIAL
04/09/2017,1492540,488.15,WALLDENE COURT - ANCHOR TRUST,323724,"Health, Education, Care and Safeguarding",Adult Social Care,101,Third Party Payments,505,Private Contractors,5042,Revenue,22.RESIDENTIAL
04/09/2017,1492540,488.15,WALLDENE COURT - ANCHOR TRUST,323724,"Health, Education, Care and Safeguarding",Adult Social Care,101,Third Party Payments,505,Private Contractors,5042,Revenue,22.RESIDENTIAL
04/09/2017,1492540,488.15,WALLDENE COURT - ANCHOR TRUST,323724,"Health, Education, Care and Safeguarding",Adult Social Care,101,Third Party Payments,505,Private Contractors,5042,Revenue,22.RESIDENTIAL
04/09/2017,1492540,488.15,WALLDENE COURT - ANCHOR TRUST,323724,"Health, Education, Care and Safeguarding",Adult Social Care,101,Third Party Payments,505,Private Contractors,5042,Revenue,22.RESIDENTIAL
04/09/2017,1492540,488.15,WALLDENE COURT - ANCHOR TRUST,323724,"Health, Education, Care and Safeguarding",Adult Social Care,101,Third Party Payments,505,Private Contractors,5042,Revenue,22.RESIDENTIAL
04/09/2017,1492540,488.15,WALLDENE COURT - ANCHOR TRUST,323724,"Health, Education, Care and Safeguarding",Adult Social Care,101,Third Party Payments,505,Private Contractors,5042,Revenue,22.RESIDENTIAL
04/09/2017,1492540,488.15,WALLDENE COURT - ANCHOR TRUST,323724,"Health, Education, Care and Safeguarding",Adult Social Care,101,Third Party Payments,505,Private Contractors,5042,Revenue,22.RESIDENTIAL
04/09/2017,1492540,488.15,WALLDENE COURT - ANCHOR TRUST,323724,"Health, Education, Care and Safeguarding",Adult Social Care,101,Third Party Payments,505,Private Contractors,5042,Revenue,22.RESIDENTIAL
04/09/2017,1492540,488.15,WALLDENE COURT - ANCHOR TRUST,323724,"Health, Education, Care and Safeguarding",Adult Social Care,101,Third Party Payments,505,Private Contractors,5042,Revenue,22.RESIDENTIAL
04/09/2017,1492540,488.15,WALLDENE COURT - ANCHOR TRUST,323724,"Health, Education, Care and Safeguarding",Adult Social Care,101,Third Party Payments,505,Private Contractors,5042,Revenue,22.RESIDENTIAL
04/09/2017,1492540,508.70,WALLDENE COURT - ANCHOR TRUST,323724,"Health, Education, Care and Safeguarding",Adult Social Care,101,Third Party Payments,505,Private Contractors,5042,Revenue,22.RESIDENTIAL
04/09/2017,1492540,508.70,WALLDENE COURT - ANCHOR TRUST,323724,"Health, Education, Care and Safeguarding",Adult Social Care,101,Third Party Payments,505,Private Contractors,5042,Revenue,22.RESIDENTIAL
04/09/2017,1492540,508.70,WALLDENE COURT - ANCHOR TRUST,323724,"Health, Education, Care and Safeguarding",Adult Social Care,101,Third Party Payments,505,Private Contractors,5042,Revenue,22.RESIDENTIAL
04/09/2017,1492540,508.70,WALLDENE COURT - ANCHOR TRUST,323724,"Health, Education, Care and Safeguarding",Adult Social Care,101,Third Party Payments,505,Private Contractors,5042,Revenue,22.RESIDENTIAL
04/09/2017,1492540,508.70,WALLDENE COURT - ANCHOR TRUST,323724,"Health, Education, Care and Safeguarding",Adult Social Care,101,Third Party Payments,505,Private Contractors,5042,Revenue,22.RESIDENTIAL
04/09/2017,1492540,508.70,WALLDENE COURT - ANCHOR TRUST,323724,"Health, Education, Care and Safeguarding",Adult Social Care,101,Third Party Payments,505,Private Contractors,5042,Revenue,22.RESIDENTIAL
04/09/2017,1492540,508.70,WALLDENE COURT - ANCHOR TRUST,323724,"Health, Education, Care and Safeguarding",Adult Social Care,101,Third Party Payments,505,Private Contractors,5042,Revenue,22.RESIDENTIAL
04/09/2017,1492540,643.20,WALLDENE COURT - ANCHOR TRUST,323724,"Health, Education, Care and Safeguarding",Adult Social Care,101,Third Party Payments,505,Other Establishments,5041,Revenue,22.RESIDENTIAL
04/09/2017,1492540,673.20,WALLDENE COURT - ANCHOR TRUST,323724,"Health, Education, Care and Safeguarding",Adult Social Care,101,Third Party Payments,505,Other Establishments,5041,Revenue,22.RESIDENTIAL
04/09/2017,1492540,673.20,WALLDENE COURT - ANCHOR TRUST,323724,"Health, Education, Care and Safeguarding",Public Health,112,Third Party Payments,505,Other Establishments,5041,Revenue,22.RESIDENTIAL
04/09/2017,1492540,673.20,WALLDENE COURT - ANCHOR TRUST,323724,"Health, Education, Care and Safeguarding",Public Health,112,Third Party Payments,505,Other Establishments,5041,Revenue,22.RESIDENTIAL
04/09/2017,1492540,673.20,WALLDENE COURT - ANCHOR TRUST,323724,"Health, Education, Care and Safeguarding",Public Health,112,Third Party Payments,505,Other Establishments,5041,Revenue,22.RESIDENTIAL
04/09/2017,1492540,961.71,WALLDENE COURT - ANCHOR TRUST,323724,"Health, Education, Care and Safeguarding",Adult Social Care,101,Third Party Payments,505,Other Establishments,5041,Revenue,22.RESIDENTIAL
04/09/2017,1492540,2449.37,WALLDENE COURT - ANCHOR TRUST,323724,"Health, Education, Care and Safeguarding",Public Health,112,Third Party Payments,505,Other Establishments,5041,Revenue,22.RESIDENTIAL
04/09/2017,1492540,2885.14,WALLDENE COURT - ANCHOR TRUST,323724,"Health, Education, Care and Safeguarding",Adult Social Care,101,Third Party Payments,505,Other Establishments,5041,Revenue,22.RESIDENTIAL
04/09/2017,1492540,12309.94,WALLDENE COURT - ANCHOR TRUST,323724,"Health, Education, Care and Safeguarding",Public Health,112,Third Party Payments,505,Other Establishments,5041,Revenue,22.RESIDENTIAL
04/09/2017,1492540,14329.54,WALLDENE COURT - ANCHOR TRUST,323724,"Health, Education, Care and Safeguarding",Public Health,112,Third Party Payments,505,Other Establishments,5041,Revenue,22.RESIDENTIAL
04/09/2017,1492542,1706.60,EQUAL PARTNERSHIPS LTD,390887,"Health, Education, Care and Safeguarding",Adult Social Care,101,Third Party Payments,505,Other Establishments,5041,Revenue,NON INDIVIDUAL
04/09/2017,1492543,-297.17,ST MARTINS CARE LIMITED,383318,"Health, Education, Care and Safeguarding",Adult Social Care,101,Third Party Payments,505,Private Contractors,5042,Revenue,22.RESIDENTIAL
04/09/2017,1492543,520.05,ST MARTINS CARE LIMITED,383318,"Health, Education, Care and Safeguarding",Adult Social Care,101,Third Party Payments,505,Private Contractors,5042,Revenue,22.RESIDENTIAL
04/09/2017,1492543,520.05,ST MARTINS CARE LIMITED,383318,"Health, Education, Care and Safeguarding",Adult Social Care,101,Third Party Payments,505,Private Contractors,5042,Revenue,22.RESIDENTIAL
04/09/2017,1492543,520.05,ST MARTINS CARE LIMITED,383318,"Health, Education, Care and Safeguarding",Adult Social Care,101,Third Party Payments,505,Private Contractors,5042,Revenue,22.RESIDENTIAL
04/09/2017,1492543,520.05,ST MARTINS CARE LIMITED,383318,"Health, Education, Care and Safeguarding",Adult Social Care,101,Third Party Payments,505,Private Contractors,5042,Revenue,22.RESIDENTIAL
04/09/2017,1492543,520.05,ST MARTINS CARE LIMITED,383318,"Health, Education, Care and Safeguarding",Adult Social Care,101,Third Party Payments,505,Private Contractors,5042,Revenue,22.RESIDENTIAL
04/09/2017,1492543,520.05,ST MARTINS CARE LIMITED,383318,"Health, Education, Care and Safeguarding",Adult Social Care,101,Third Party Payments,505,Private Contractors,5042,Revenue,22.RESIDENTIAL
04/09/2017,1492543,520.05,ST MARTINS CARE LIMITED,383318,"Health, Education, Care and Safeguarding",Adult Social Care,101,Third Party Payments,505,Private Contractors,5042,Revenue,22.RESIDENTIAL
04/09/2017,1492543,520.05,ST MARTINS CARE LIMITED,383318,"Health, Education, Care and Safeguarding",Adult Social Care,101,Third Party Payments,505,Private Contractors,5042,Revenue,22.RESIDENTIAL
04/09/2017,1492543,520.05,ST MARTINS CARE LIMITED,383318,"Health, Education, Care and Safeguarding",Adult Social Care,101,Third Party Payments,505,Private Contractors,5042,Revenue,22.RESIDENTIAL
04/09/2017,1492543,520.05,ST MARTINS CARE LIMITED,383318,"Health, Education, Care and Safeguarding",Adult Social Care,101,Third Party Payments,505,Private Contractors,5042,Revenue,22.RESIDENTIAL
04/09/2017,1492543,520.05,ST MARTINS CARE LIMITED,383318,"Health, Education, Care and Safeguarding",Adult Social Care,101,Third Party Payments,505,Private Contractors,5042,Revenue,22.RESIDENTIAL
04/09/2017,1492543,520.05,ST MARTINS CARE LIMITED,383318,"Health, Education, Care and Safeguarding",Adult Social Care,101,Third Party Payments,505,Private Contractors,5042,Revenue,22.RESIDENTIAL
04/09/2017,1492543,520.05,ST MARTINS CARE LIMITED,383318,"Health, Education, Care and Safeguarding",Adult Social Care,101,Third Party Payments,505,Private Contractors,5042,Revenue,22.RESIDENTIAL
04/09/2017,1492543,520.05,ST MARTINS CARE LIMITED,383318,"Health, Education, Care and Safeguarding",Adult Social Care,101,Third Party Payments,505,Private Contractors,5042,Revenue,22.RESIDENTIAL
04/09/2017,1492543,520.05,ST MARTINS CARE LIMITED,383318,"Health, Education, Care and Safeguarding",Adult Social Care,101,Third Party Payments,505,Private Contractors,5042,Revenue,22.RESIDENTIAL
04/09/2017,1492543,520.05,ST MARTINS CARE LIMITED,383318,"Health, Education, Care and Safeguarding",Adult Social Care,101,Third Party Payments,505,Private Contractors,5042,Revenue,22.RESIDENTIAL
04/09/2017,1492543,520.05,ST MARTINS CARE LIMITED,383318,"Health, Education, Care and Safeguarding",Adult Social Care,101,Third Party Payments,505,Private Contractors,5042,Revenue,22.RESIDENTIAL
04/09/2017,1492543,538.64,ST MARTINS CARE LIMITED,383318,"Health, Education, Care and Safeguarding",Adult Social Care,101,Third Party Payments,505,Private Contractors,5042,Revenue,22.RESIDENTIAL
04/09/2017,1492543,538.64,ST MARTINS CARE LIMITED,383318,"Health, Education, Care and Safeguarding",Adult Social Care,101,Third Party Payments,505,Private Contractors,5042,Revenue,22.RESIDENTIAL
04/09/2017,1492543,538.64,ST MARTINS CARE LIMITED,383318,"Health, Education, Care and Safeguarding",Adult Social Care,101,Third Party Payments,505,Private Contractors,5042,Revenue,22.RESIDENTIAL
04/09/2017,1492543,538.64,ST MARTINS CARE LIMITED,383318,"Health, Education, Care and Safeguarding",Adult Social Care,101,Third Party Payments,505,Private Contractors,5042,Revenue,22.RESIDENTIAL
04/09/2017,1492543,538.64,ST MARTINS CARE LIMITED,383318,"Health, Education, Care and Safeguarding",Adult Social Care,101,Third Party Payments,505,Private Contractors,5042,Revenue,22.RESIDENTIAL
04/09/2017,1492543,538.64,ST MARTINS CARE LIMITED,383318,"Health, Education, Care and Safeguarding",Adult Social Care,101,Third Party Payments,505,Private Contractors,5042,Revenue,22.RESIDENTIAL
04/09/2017,1492543,538.64,ST MARTINS CARE LIMITED,383318,"Health, Education, Care and Safeguarding",Adult Social Care,101,Third Party Payments,505,Private Contractors,5042,Revenue,22.RESIDENTIAL
04/09/2017,1492543,538.64,ST MARTINS CARE LIMITED,383318,"Health, Education, Care and Safeguarding",Adult Social Care,101,Third Party Payments,505,Private Contractors,5042,Revenue,22.RESIDENTIAL
04/09/2017,1492543,538.64,ST MARTINS CARE LIMITED,383318,"Health, Education, Care and Safeguarding",Adult Social Care,101,Third Party Payments,505,Private Contractors,5042,Revenue,22.RESIDENTIAL
04/09/2017,1492543,538.64,ST MARTINS CARE LIMITED,383318,"Health, Education, Care and Safeguarding",Adult Social Care,101,Third Party Payments,505,Private Contractors,5042,Revenue,22.RESIDENTIAL
04/09/2017,1492543,538.64,ST MARTINS CARE LIMITED,383318,"Health, Education, Care and Safeguarding",Adult Social Care,101,Third Party Payments,505,Private Contractors,5042,Revenue,22.RESIDENTIAL
04/09/2017,1492543,538.64,ST MARTINS CARE LIMITED,383318,"Health, Education, Care and Safeguarding",Adult Social Care,101,Third Party Payments,505,Private Contractors,5042,Revenue,22.RESIDENTIAL
04/09/2017,1492543,538.64,ST MARTINS CARE LIMITED,383318,"Health, Education, Care and Safeguarding",Adult Social Care,101,Third Party Payments,505,Private Contractors,5042,Revenue,22.RESIDENTIAL
04/09/2017,1492543,538.64,ST MARTINS CARE LIMITED,383318,"Health, Education, Care and Safeguarding",Adult Social Care,101,Third Party Payments,505,Private Contractors,5042,Revenue,22.RESIDENTIAL
04/09/2017,1492543,538.64,ST MARTINS CARE LIMITED,383318,"Health, Education, Care and Safeguarding",Adult Social Care,101,Third Party Payments,505,Private Contractors,5042,Revenue,22.RESIDENTIAL
04/09/2017,1492543,538.64,ST MARTINS CARE LIMITED,383318,"Health, Education, Care and Safeguarding",Adult Social Care,101,Third Party Payments,505,Private Contractors,5042,Revenue,22.RESIDENTIAL
04/09/2017,1492543,538.64,ST MARTINS CARE LIMITED,383318,"Health, Education, Care and Safeguarding",Adult Social Care,101,Third Party Payments,505,Private Contractors,5042,Revenue,22.RESIDENTIAL
04/09/2017,1492543,538.64,ST MARTINS CARE LIMITED,383318,"Health, Education, Care and Safeguarding",Adult Social Care,101,Third Party Payments,505,Private Contractors,5042,Revenue,22.RESIDENTIAL
04/09/2017,1492543,538.64,ST MARTINS CARE LIMITED,383318,"Health, Education, Care and Safeguarding",Adult Social Care,101,Third Party Payments,505,Private Contractors,5042,Revenue,22.RESIDENTIAL
04/09/2017,1492545,329.00,NEW PROSPECTS - ISF FUND,389249,"Health, Education, Care and Safeguarding",Adult Social Care,101,Third Party Payments,505,Other Establishments,5041,Revenue,22.SUPPORT SERVICES
04/09/2017,1492546,258.40,NEW PROSPECTS ASSOCIATION LIMITED,203069,"Health, Education, Care and Safeguarding",Adult Social Care,101,Third Party Payments,505,Private Contractors,5042,Revenue,22.DAY CARE SERVICES
04/09/2017,1492546,271.32,NEW PROSPECTS ASSOCIATION LIMITED,203069,"Health, Education, Care and Safeguarding",Adult Social Care,101,Third Party Payments,505,Private Contractors,5042,Revenue,22.DAY CARE SERVICES
04/09/2017,1492546,277.78,NEW PROSPECTS ASSOCIATION LIMITED,203069,"Health, Education, Care and Safeguarding",Adult Social Care,101,Third Party Payments,505,Private Contractors,5042,Revenue,22.DAY CARE SERVICES
04/09/2017,1492546,355.30,NEW PROSPECTS ASSOCIATION LIMITED,203069,"Health, Education, Care and Safeguarding",Adult Social Care,101,Third Party Payments,505,Private Contractors,5042,Revenue,22.DAY CARE SERVICES
04/09/2017,1492546,365.58,NEW PROSPECTS ASSOCIATION LIMITED,203069,"Health, Education, Care and Safeguarding",Adult Social Care,101,Third Party Payments,505,Private Contractors,5042,Revenue,22.DAY CARE SERVICES
04/09/2017,1492546,387.60,NEW PROSPECTS ASSOCIATION LIMITED,203069,"Health, Education, Care and Safeguarding",Adult Social Care,101,Third Party Payments,505,Private Contractors,5042,Revenue,22.DAY CARE SERVICES
04/09/2017,1492546,542.64,NEW PROSPECTS ASSOCIATION LIMITED,203069,"Health, Education, Care and Safeguarding",Adult Social Care,101,Third Party Payments,505,Private Contractors,5042,Revenue,22.DAY CARE SERVICES
04/09/2017,1492546,601.48,NEW PROSPECTS ASSOCIATION LIMITED,203069,"Health, Education, Care and Safeguarding",Adult Social Care,101,Third Party Payments,505,Private Contractors,5042,Revenue,22.DAY CARE SERVICES
04/09/2017,1492546,619.50,NEW PROSPECTS ASSOCIATION LIMITED,203069,"Health, Education, Care and Safeguarding",Adult Social Care,101,Third Party Payments,505,Private Contractors,5042,Revenue,22.DAY CARE SERVICES
04/09/2017,1492546,619.50,NEW PROSPECTS ASSOCIATION LIMITED,203069,"Health, Education, Care and Safeguarding",Adult Social Care,101,Third Party Payments,505,Private Contractors,5042,Revenue,22.DAY CARE SERVICES
04/09/2017,1492546,638.51,NEW PROSPECTS ASSOCIATION LIMITED,203069,"Health, Education, Care and Safeguarding",Adult Social Care,101,Third Party Payments,505,Private Contractors,5042,Revenue,22.DAY CARE SERVICES
04/09/2017,1492546,644.99,NEW PROSPECTS ASSOCIATION LIMITED,203069,"Health, Education, Care and Safeguarding",Adult Social Care,101,Third Party Payments,505,Private Contractors,5042,Revenue,22.DAY CARE SERVICES
04/09/2017,1492546,684.76,NEW PROSPECTS ASSOCIATION LIMITED,203069,"Health, Education, Care and Safeguarding",Adult Social Care,101,Third Party Payments,505,Private Contractors,5042,Revenue,22.DAY CARE SERVICES
04/09/2017,1492546,688.51,NEW PROSPECTS ASSOCIATION LIMITED,203069,"Health, Education, Care and Safeguarding",Adult Social Care,101,Third Party Payments,505,Private Contractors,5042,Revenue,22.DAY CARE SERVICES
04/09/2017,1492546,688.51,NEW PROSPECTS ASSOCIATION LIMITED,203069,"Health, Education, Care and Safeguarding",Adult Social Care,101,Third Party Payments,505,Private Contractors,5042,Revenue,22.DAY CARE SERVICES
04/09/2017,1492546,698.91,NEW PROSPECTS ASSOCIATION LIMITED,203069,"Health, Education, Care and Safeguarding",Adult Social Care,101,Third Party Payments,505,Private Contractors,5042,Revenue,22.DAY CARE SERVICES
04/09/2017,1492546,718.03,NEW PROSPECTS ASSOCIATION LIMITED,203069,"Health, Education, Care and Safeguarding",Adult Social Care,101,Third Party Payments,505,Private Contractors,5042,Revenue,22.DAY CARE SERVICES
04/09/2017,1492546,719.46,NEW PROSPECTS ASSOCIATION LIMITED,203069,"Health, Education, Care and Safeguarding",Adult Social Care,101,Third Party Payments,505,Private Contractors,5042,Revenue,22.DAY CARE SERVICES
04/09/2017,1492546,719.46,NEW PROSPECTS ASSOCIATION LIMITED,203069,"Health, Education, Care and Safeguarding",Adult Social Care,101,Third Party Payments,505,Private Contractors,5042,Revenue,22.DAY CARE SERVICES
04/09/2017,1492546,730.28,NEW PROSPECTS ASSOCIATION LIMITED,203069,"Health, Education, Care and Safeguarding",Adult Social Care,101,Third Party Payments,505,Private Contractors,5042,Revenue,22.DAY CARE SERVICES
04/09/2017,1492546,742.53,NEW PROSPECTS ASSOCIATION LIMITED,203069,"Health, Education, Care and Safeguarding",Adult Social Care,101,Third Party Payments,505,Private Contractors,5042,Revenue,22.DAY CARE SERVICES
04/09/2017,1492546,758.31,NEW PROSPECTS ASSOCIATION LIMITED,203069,"Health, Education, Care and Safeguarding",Adult Social Care,101,Third Party Payments,505,Private Contractors,5042,Revenue,22.DAY CARE SERVICES
04/09/2017,1492546,808.68,NEW PROSPECTS ASSOCIATION LIMITED,203069,"Health, Education, Care and Safeguarding",Adult Social Care,101,Third Party Payments,505,Private Contractors,5042,Revenue,22.DAY CARE SERVICES
04/09/2017,1492546,809.25,NEW PROSPECTS ASSOCIATION LIMITED,203069,"Health, Education, Care and Safeguarding",Adult Social Care,101,Third Party Payments,505,Private Contractors,5042,Revenue,22.DAY CARE SERVICES
04/09/2017,1492546,823.96,NEW PROSPECTS ASSOCIATION LIMITED,203069,"Health, Education, Care and Safeguarding",Adult Social Care,101,Third Party Payments,505,Private Contractors,5042,Revenue,22.DAY CARE SERVICES
04/09/2017,1492546,834.58,NEW PROSPECTS ASSOCIATION LIMITED,203069,"Health, Education, Care and Safeguarding",Adult Social Care,101,Third Party Payments,505,Private Contractors,5042,Revenue,22.DAY CARE SERVICES
04/09/2017,1492546,840.35,NEW PROSPECTS ASSOCIATION LIMITED,203069,"Health, Education, Care and Safeguarding",Adult Social Care,101,Third Party Payments,505,Private Contractors,5042,Revenue,22.DAY CARE SERVICES
04/09/2017,1492546,916.65,NEW PROSPECTS ASSOCIATION LIMITED,203069,"Health, Education, Care and Safeguarding",Adult Social Care,101,Third Party Payments,505,Private Contractors,5042,Revenue,22.DAY CARE SERVICES
04/09/2017,1492546,948.73,NEW PROSPECTS ASSOCIATION LIMITED,203069,"Health, Education, Care and Safeguarding",Adult Social Care,101,Third Party Payments,505,Private Contractors,5042,Revenue,22.DAY CARE SERVICES
04/09/2017,1492546,948.73,NEW PROSPECTS ASSOCIATION LIMITED,203069,"Health, Education, Care and Safeguarding",Adult Social Care,101,Third Party Payments,505,Private Contractors,5042,Revenue,22.DAY CARE SERVICES
04/09/2017,1492546,961.68,NEW PROSPECTS ASSOCIATION LIMITED,203069,"Health, Education, Care and Safeguarding",Adult Social Care,101,Third Party Payments,505,Private Contractors,5042,Revenue,22.DAY CARE SERVICES
04/09/2017,1492546,995.75,NEW PROSPECTS ASSOCIATION LIMITED,203069,"Health, Education, Care and Safeguarding",Adult Social Care,101,Third Party Payments,505,Private Contractors,5042,Revenue,22.DAY CARE SERVICES
04/09/2017,1492546,1012.26,NEW PROSPECTS ASSOCIATION LIMITED,203069,"Health, Education, Care and Safeguarding",Adult Social Care,101,Third Party Payments,505,Private Contractors,5042,Revenue,22.DAY CARE SERVICES
04/09/2017,1492546,1118.78,NEW PROSPECTS ASSOCIATION LIMITED,203069,"Health, Education, Care and Safeguarding",Adult Social Care,101,Third Party Payments,505,Private Contractors,5042,Revenue,22.DAY CARE SERVICES
04/09/2017,1492546,1175.00,NEW PROSPECTS ASSOCIATION LIMITED,203069,"Health, Education, Care and Safeguarding",Adult Social Care,101,Third Party Payments,505,Private Contractors,5042,Revenue,22.DAY CARE SERVICES
04/09/2017,1492546,1254.75,NEW PROSPECTS ASSOCIATION LIMITED,203069,"Health, Education, Care and Safeguarding",Adult Social Care,101,Third Party Payments,505,Private Contractors,5042,Revenue,22.DAY CARE SERVICES
04/09/2017,1492546,1293.60,NEW PROSPECTS ASSOCIATION LIMITED,203069,"Health, Education, Care and Safeguarding",Adult Social Care,101,Third Party Payments,505,Private Contractors,5042,Revenue,22.DAY CARE SERVICES
04/09/2017,1492546,1387.40,NEW PROSPECTS ASSOCIATION LIMITED,203069,"Health, Education, Care and Safeguarding",Adult Social Care,101,Third Party Payments,505,Private Contractors,5042,Revenue,22.DAY CARE SERVICES
04/09/2017,1492546,1469.02,NEW PROSPECTS ASSOCIATION LIMITED,203069,"Health, Education, Care and Safeguarding",Adult Social Care,101,Third Party Payments,505,Private Contractors,5042,Revenue,22.DAY CARE SERVICES
04/09/2017,1492546,1505.58,NEW PROSPECTS ASSOCIATION LIMITED,203069,"Health, Education, Care and Safeguarding",Adult Social Care,101,Third Party Payments,505,Private Contractors,5042,Revenue,22.DAY CARE SERVICES
04/09/2017,1492546,1505.58,NEW PROSPECTS ASSOCIATION LIMITED,203069,"Health, Education, Care and Safeguarding",Adult Social Care,101,Third Party Payments,505,Private Contractors,5042,Revenue,22.DAY CARE SERVICES
04/09/2017,1492546,1570.33,NEW PROSPECTS ASSOCIATION LIMITED,203069,"Health, Education, Care and Safeguarding",Adult Social Care,101,Third Party Payments,505,Private Contractors,5042,Revenue,22.DAY CARE SERVICES
04/09/2017,1492546,1779.50,NEW PROSPECTS ASSOCIATION LIMITED,203069,"Health, Education, Care and Safeguarding",Adult Social Care,101,Third Party Payments,505,Private Contractors,5042,Revenue,22.DAY CARE SERVICES
04/09/2017,1492546,1833.30,NEW PROSPECTS ASSOCIATION LIMITED,203069,"Health, Education, Care and Safeguarding",Adult Social Care,101,Third Party Payments,505,Private Contractors,5042,Revenue,22.DAY CARE SERVICES
04/09/2017,1492546,1838.20,NEW PROSPECTS ASSOCIATION LIMITED,203069,"Health, Education, Care and Safeguarding",Adult Social Care,101,Third Party Payments,505,Private Contractors,5042,Revenue,22.DAY CARE SERVICES
04/09/2017,1492546,2156.10,NEW PROSPECTS ASSOCIATION LIMITED,203069,"Health, Education, Care and Safeguarding",Adult Social Care,101,Third Party Payments,505,Private Contractors,5042,Revenue,22.DAY CARE SERVICES
04/09/2017,1492546,2485.63,NEW PROSPECTS ASSOCIATION LIMITED,203069,"Health, Education, Care and Safeguarding",Adult Social Care,101,Third Party Payments,505,Private Contractors,5042,Revenue,22.DAY CARE SERVICES
04/09/2017,1492546,2492.35,NEW PROSPECTS ASSOCIATION LIMITED,203069,"Health, Education, Care and Safeguarding",Adult Social Care,101,Third Party Payments,505,Private Contractors,5042,Revenue,22.DAY CARE SERVICES
04/09/2017,1492547,1101.96,RODWELL FARM NURSING HOME LTD,390686,"Health, Education, Care and Safeguarding",Adult Social Care,101,Third Party Payments,505,Private Contractors,5042,Revenue,22.RESIDENTIAL
04/09/2017,1492549,250.82,EVERLASTING CARE LTD,363743,"Health, Education, Care and Safeguarding",Adult Social Care,101,Third Party Payments,505,Other Establishments,5041,Revenue,22.HOMECARE
04/09/2017,1492550,3273.27,THE DAVID LEWIS CENTRE,390402,"Health, Education, Care and Safeguarding",Adult Social Care,101,Third Party Payments,505,Private Contractors,5042,Revenue,18.CONFERENCING
04/09/2017,1492551,525.00,PATHWAYS CARE GROUP,390437,"Health, Education, Care and Safeguarding",Adult Social Care,101,Third Party Payments,505,Private Contractors,5042,Revenue,22.RESIDENTIAL
04/09/2017,1492553,491.93,CHARLOTTE STRAKER PROJECT,340178,"Health, Education, Care and Safeguarding",Adult Social Care,101,Third Party Payments,505,Private Contractors,5042,Revenue,22.RESIDENTIAL
04/09/2017,1492554,-8465.72,DAV HOMES LTD,390262,"Health, Education, Care and Safeguarding",Public Health,112,Third Party Payments,505,Other Establishments,5041,Revenue,22.RESIDENTIAL
04/09/2017,1492554,-7136.77,DAV HOMES LTD,390262,"Health, Education, Care and Safeguarding",Adult Social Care,101,Third Party Payments,505,Other Establishments,5041,Revenue,22.RESIDENTIAL
04/09/2017,1492554,-5979.46,DAV HOMES LTD,390262,"Health, Education, Care and Safeguarding",Public Health,112,Third Party Payments,505,Other Establishments,5041,Revenue,22.RESIDENTIAL
04/09/2017,1492554,-4147.04,DAV HOMES LTD,390262,"Health, Education, Care and Safeguarding",Public Health,112,Third Party Payments,505,Other Establishments,5041,Revenue,22.RESIDENTIAL
04/09/2017,1492554,273.43,DAV HOMES LTD,390262,"Health, Education, Care and Safeguarding",Public Health,112,Third Party Payments,505,Other Establishments,5041,Revenue,22.RESIDENTIAL
04/09/2017,1492554,482.21,DAV HOMES LTD,390262,"Health, Education, Care and Safeguarding",Adult Social Care,101,Third Party Payments,505,Other Establishments,5041,Revenue,22.RESIDENTIAL
04/09/2017,1492554,520.05,DAV HOMES LTD,390262,"Health, Education, Care and Safeguarding",Adult Social Care,101,Third Party Payments,505,Private Contractors,5042,Revenue,22.RESIDENTIAL
04/09/2017,1492554,520.05,DAV HOMES LTD,390262,"Health, Education, Care and Safeguarding",Adult Social Care,101,Third Party Payments,505,Private Contractors,5042,Revenue,22.RESIDENTIAL
04/09/2017,1492554,520.05,DAV HOMES LTD,390262,"Health, Education, Care and Safeguarding",Adult Social Care,101,Third Party Payments,505,Private Contractors,5042,Revenue,22.RESIDENTIAL
04/09/2017,1492554,520.05,DAV HOMES LTD,390262,"Health, Education, Care and Safeguarding",Adult Social Care,101,Third Party Payments,505,Private Contractors,5042,Revenue,22.RESIDENTIAL
04/09/2017,1492554,520.05,DAV HOMES LTD,390262,"Health, Education, Care and Safeguarding",Adult Social Care,101,Third Party Payments,505,Private Contractors,5042,Revenue,22.RESIDENTIAL
04/09/2017,1492554,520.05,DAV HOMES LTD,390262,"Health, Education, Care and Safeguarding",Adult Social Care,101,Third Party Payments,505,Private Contractors,5042,Revenue,22.RESIDENTIAL
04/09/2017,1492554,525.00,DAV HOMES LTD,390262,"Health, Education, Care and Safeguarding",Public Health,112,Third Party Payments,505,Other Establishments,5041,Revenue,22.RESIDENTIAL
04/09/2017,1492554,538.64,DAV HOMES LTD,390262,"Health, Education, Care and Safeguarding",Adult Social Care,101,Third Party Payments,505,Private Contractors,5042,Revenue,22.RESIDENTIAL
04/09/2017,1492554,538.64,DAV HOMES LTD,390262,"Health, Education, Care and Safeguarding",Adult Social Care,101,Third Party Payments,505,Private Contractors,5042,Revenue,22.RESIDENTIAL
04/09/2017,1492554,538.64,DAV HOMES LTD,390262,"Health, Education, Care and Safeguarding",Adult Social Care,101,Third Party Payments,505,Private Contractors,5042,Revenue,22.RESIDENTIAL
04/09/2017,1492554,538.64,DAV HOMES LTD,390262,"Health, Education, Care and Safeguarding",Adult Social Care,101,Third Party Payments,505,Private Contractors,5042,Revenue,22.RESIDENTIAL
04/09/2017,1492554,538.64,DAV HOMES LTD,390262,"Health, Education, Care and Safeguarding",Adult Social Care,101,Third Party Payments,505,Private Contractors,5042,Revenue,22.RESIDENTIAL
04/09/2017,1492554,538.64,DAV HOMES LTD,390262,"Health, Education, Care and Safeguarding",Adult Social Care,101,Third Party Payments,505,Private Contractors,5042,Revenue,22.RESIDENTIAL
04/09/2017,1492554,538.64,DAV HOMES LTD,390262,"Health, Education, Care and Safeguarding",Adult Social Care,101,Third Party Payments,505,Private Contractors,5042,Revenue,22.RESIDENTIAL
04/09/2017,1492554,538.64,DAV HOMES LTD,390262,"Health, Education, Care and Safeguarding",Adult Social Care,101,Third Party Payments,505,Private Contractors,5042,Revenue,22.RESIDENTIAL
04/09/2017,1492554,538.64,DAV HOMES LTD,390262,"Health, Education, Care and Safeguarding",Adult Social Care,101,Third Party Payments,505,Private Contractors,5042,Revenue,22.RESIDENTIAL
04/09/2017,1492554,538.64,DAV HOMES LTD,390262,"Health, Education, Care and Safeguarding",Adult Social Care,101,Third Party Payments,505,Private Contractors,5042,Revenue,22.RESIDENTIAL
04/09/2017,1492554,538.64,DAV HOMES LTD,390262,"Health, Education, Care and Safeguarding",Adult Social Care,101,Third Party Payments,505,Private Contractors,5042,Revenue,22.RESIDENTIAL
04/09/2017,1492554,560.10,DAV HOMES LTD,390262,"Health, Education, Care and Safeguarding",Adult Social Care,101,Third Party Payments,505,Private Contractors,5042,Revenue,22.RESIDENTIAL
04/09/2017,1492554,584.59,DAV HOMES LTD,390262,"Health, Education, Care and Safeguarding",Adult Social Care,101,Third Party Payments,505,Private Contractors,5042,Revenue,22.RESIDENTIAL
04/09/2017,1492554,584.59,DAV HOMES LTD,390262,"Health, Education, Care and Safeguarding",Adult Social Care,101,Third Party Payments,505,Private Contractors,5042,Revenue,22.RESIDENTIAL
04/09/2017,1492554,584.59,DAV HOMES LTD,390262,"Health, Education, Care and Safeguarding",Adult Social Care,101,Third Party Payments,505,Private Contractors,5042,Revenue,22.RESIDENTIAL
04/09/2017,1492554,584.59,DAV HOMES LTD,390262,"Health, Education, Care and Safeguarding",Adult Social Care,101,Third Party Payments,505,Private Contractors,5042,Revenue,22.RESIDENTIAL
04/09/2017,1492554,584.59,DAV HOMES LTD,390262,"Health, Education, Care and Safeguarding",Adult Social Care,101,Third Party Payments,505,Private Contractors,5042,Revenue,22.RESIDENTIAL
04/09/2017,1492554,584.59,DAV HOMES LTD,390262,"Health, Education, Care and Safeguarding",Adult Social Care,101,Third Party Payments,505,Private Contractors,5042,Revenue,22.RESIDENTIAL
04/09/2017,1492554,584.59,DAV HOMES LTD,390262,"Health, Education, Care and Safeguarding",Adult Social Care,101,Third Party Payments,505,Private Contractors,5042,Revenue,22.RESIDENTIAL
04/09/2017,1492554,584.59,DAV HOMES LTD,390262,"Health, Education, Care and Safeguarding",Adult Social Care,101,Third Party Payments,505,Private Contractors,5042,Revenue,22.RESIDENTIAL
04/09/2017,1492554,584.59,DAV HOMES LTD,390262,"Health, Education, Care and Safeguarding",Adult Social Care,101,Third Party Payments,505,Private Contractors,5042,Revenue,22.RESIDENTIAL
04/09/2017,1492554,638.57,DAV HOMES LTD,390262,"Health, Education, Care and Safeguarding",Public Health,112,Third Party Payments,505,Other Establishments,5041,Revenue,22.RESIDENTIAL
04/09/2017,1492554,705.10,DAV HOMES LTD,390262,"Health, Education, Care and Safeguarding",Adult Social Care,101,Third Party Payments,505,Other Establishments,5041,Revenue,22.RESIDENTIAL
04/09/2017,1492554,705.10,DAV HOMES LTD,390262,"Health, Education, Care and Safeguarding",Adult Social Care,101,Third Party Payments,505,Other Establishments,5041,Revenue,22.RESIDENTIAL
04/09/2017,1492554,705.10,DAV HOMES LTD,390262,"Health, Education, Care and Safeguarding",Public Health,112,Third Party Payments,505,Other Establishments,5041,Revenue,22.RESIDENTIAL
04/09/2017,1492554,723.69,DAV HOMES LTD,390262,"Health, Education, Care and Safeguarding",Adult Social Care,101,Third Party Payments,505,Other Establishments,5041,Revenue,22.RESIDENTIAL
04/09/2017,1492554,723.69,DAV HOMES LTD,390262,"Health, Education, Care and Safeguarding",Public Health,112,Third Party Payments,505,Other Establishments,5041,Revenue,22.RESIDENTIAL
04/09/2017,1492554,723.69,DAV HOMES LTD,390262,"Health, Education, Care and Safeguarding",Public Health,112,Third Party Payments,505,Other Establishments,5041,Revenue,22.RESIDENTIAL
04/09/2017,1492554,723.69,DAV HOMES LTD,390262,"Health, Education, Care and Safeguarding",Public Health,112,Third Party Payments,505,Other Establishments,5041,Revenue,22.RESIDENTIAL
04/09/2017,1492554,723.69,DAV HOMES LTD,390262,"Health, Education, Care and Safeguarding",Public Health,112,Third Party Payments,505,Other Establishments,5041,Revenue,22.RESIDENTIAL
04/09/2017,1492554,723.69,DAV HOMES LTD,390262,"Health, Education, Care and Safeguarding",Public Health,112,Third Party Payments,505,Other Establishments,5041,Revenue,22.RESIDENTIAL
04/09/2017,1492554,723.69,DAV HOMES LTD,390262,"Health, Education, Care and Safeguarding",Public Health,112,Third Party Payments,505,Other Establishments,5041,Revenue,22.RESIDENTIAL
04/09/2017,1492554,723.69,DAV HOMES LTD,390262,"Health, Education, Care and Safeguarding",Public Health,112,Third Party Payments,505,Other Establishments,5041,Revenue,22.RESIDENTIAL
04/09/2017,1492554,747.41,DAV HOMES LTD,390262,"Health, Education, Care and Safeguarding",Public Health,112,Third Party Payments,505,Other Establishments,5041,Revenue,22.RESIDENTIAL
04/09/2017,1492554,769.64,DAV HOMES LTD,390262,"Health, Education, Care and Safeguarding",Public Health,112,Third Party Payments,505,Other Establishments,5041,Revenue,22.RESIDENTIAL
04/09/2017,1492554,837.20,DAV HOMES LTD,390262,"Health, Education, Care and Safeguarding",Adult Social Care,101,Third Party Payments,505,Private Contractors,5042,Revenue,22.RESIDENTIAL
04/09/2017,1492554,837.20,DAV HOMES LTD,390262,"Health, Education, Care and Safeguarding",Adult Social Care,101,Third Party Payments,505,Private Contractors,5042,Revenue,22.RESIDENTIAL
04/09/2017,1492554,837.20,DAV HOMES LTD,390262,"Health, Education, Care and Safeguarding",Adult Social Care,101,Third Party Payments,505,Private Contractors,5042,Revenue,22.RESIDENTIAL
04/09/2017,1492554,1022.25,DAV HOMES LTD,390262,"Health, Education, Care and Safeguarding",Adult Social Care,101,Third Party Payments,505,Other Establishments,5041,Revenue,22.RESIDENTIAL
04/09/2017,1492554,1022.25,DAV HOMES LTD,390262,"Health, Education, Care and Safeguarding",Adult Social Care,101,Third Party Payments,505,Other Establishments,5041,Revenue,22.RESIDENTIAL
04/09/2017,1492554,4331.33,DAV HOMES LTD,390262,"Health, Education, Care and Safeguarding",Public Health,112,Third Party Payments,505,Other Establishments,5041,Revenue,22.RESIDENTIAL
04/09/2017,1492554,6245.17,DAV HOMES LTD,390262,"Health, Education, Care and Safeguarding",Public Health,112,Third Party Payments,505,Other Establishments,5041,Revenue,22.RESIDENTIAL
04/09/2017,1492554,7453.91,DAV HOMES LTD,390262,"Health, Education, Care and Safeguarding",Adult Social Care,101,Third Party Payments,505,Other Establishments,5041,Revenue,22.RESIDENTIAL
04/09/2017,1492554,12385.65,DAV HOMES LTD,390262,"Health, Education, Care and Safeguarding",Public Health,112,Third Party Payments,505,Other Establishments,5041,Revenue,22.RESIDENTIAL
04/09/2017,1492556,210.00,INSPIRED SUPPORT LIMITED,390108,"Health, Education, Care and Safeguarding",Adult Social Care,101,Third Party Payments,505,Other Establishments,5041,Revenue,22.SUPPORT SERVICES
04/09/2017,1492556,215.00,INSPIRED SUPPORT LIMITED,390108,"Health, Education, Care and Safeguarding",Adult Social Care,101,Third Party Payments,505,Other Establishments,5041,Revenue,22.SUPPORT SERVICES
